Workbook

Sheet GENERAL GUIDANCE
A3: Round 6 PROJECT Application Form - Part 2 [WITHDRAWN]
A5: ● The Regional Growth Fund (RGF) application form consists of two parts. Part 2 (this Excel workbook) is made up of four sections (A, B, C and D) to capture the key data relating to the project. THIS SHOULD BE SUBMITTED IN EXCEL FORMAT ALONGSIDE PART 1 OF THE APPLICATION AND THE ACCOMPANYING DOCUMENTATION (see Part 1 of the application form).
A6: ● THIS PART OF THE APPLICATION IS SPECIFIC TO PROJECTS. A SEPARATE FORM IS PROVIDED FOR PROGRAMMES.
A7: ● Guidance, technical notes and examples are provided to help you complete this form correctly. Please read this information carefully.
A8: ● Please complete these spreadsheets as fully as possible as they form an essential part of the appraisal process. The information you provide will be scrutinised in detail and you should be prepared to explain the basis of their contents as part of the Due Diligence stage if you receive a conditional offer. It is therefore recommended that all working papers etc relating to the completion of these forms be retained until the RGF process is completed.
A10: © Crown copyright 2014
A26: URN BIS-14-837

Sheet Section A notes
B2: How to fill in Section A [WITHDRAWN]
B4: Section A definitions gives a guide to the terms used in this section;
B6: 1. All job figures should be expressed in full time equivalent terms (see definitions below).
B7: 2. Jobs are considered direct where you are willing to contract for their delivery. This will include a clawback provision whereby the RGF funding becomes repayable if the jobs are not delivered and maintained for the period for which they are included in Table 1a.
B8: 3. Please refer to Section A examples before completing your employment estimates.
B9: 4. Direct and indirect jobs should be separated into created and safeguarded. Construction jobs should be clearly separated and included within indirect jobs, unless you are willing to contract for their delivery.
B10: 5. Types of jobs should be listed separately. However, please do not add any further lines to the spreadsheet or change the formatting in any other way. If there are more than 15 types of job in any given section please group them sensibly into a maximum of 15 categories.
B11: 6. Where insufficient detail of employment impacts to complete Section A is known applicants should provide as much detail as possible in the notes section, including why it is not possible to provide more detail.
B12: 7. Please comment in the notes section in column S on the means of forecasting the employment impacts e.g. modelled on past experience/expected sales, modelled using a particular benchmark (if so include brief details) etc.
B13: 8. The notes section in column S can also be used to provide other information which you think is relevant.
B14: 9. Do not change the formulas included, this will delay the processing of your application.
B15: 10. You should only provide information on skills and training activities which are likely to add value. E.g. productivity improvements or addressing skills gaps. Where appropriate, please set out the expected increase in salary, if any, which employees are expected to earn as a result of skills and training development opportunities. Training and related costs that organisations are already required to meet such as health and safety or professional membership fees are unlikely to be able to demonstrate additional value-added from public funding and should not be included in the spreadsheet.
B17: Glossary & NVQ levels
B19: Term | C19: Definition/guidance
B20: Full-time equivalent | C20: Equal to one full-time job or two part-time jobs where: Full-time job = 30 or more hours per week for a full year. Part-time job = more than 15 hours, but fewer than 30 hours per week for a full year.
B21: Direct, Contractable Jobs | C21: Those employed directly as a result of an investment which you are happy to be contracted for, with associated clawback of the grant if these are not acheived. This may include temporary jobs that you are willing to contract for e.g. in construction, which should be clearly identified in the pro-forma with an indication of the period over which these jobs will continue.
B22: Indirect, Non-Contractable Jobs - supply chain / construction jobs | C22: Those individuals employed as a result of the project within the supply chain in England. Jobs created through income multipliers should not be included. It is unusual that there will be more supply chain jobs than directly contractable jobs. Evidence should be included (see question H01 in part 1) for all indirect/supply chain jobs.
B23: Jobs created | C23: New jobs that will be created as a direct result of the investment projects supported by the programme (and would not be created if the programme did not go ahead). This may include temporary jobs e.g. in construction, which should be clearly identified in the pro-forma with an indication of the period over which these jobs will continue.
B24: Jobs safeguarded | C24: Jobs that will be maintained as a result of the investment projects supported by the project. Jobs can only be considered safeguarded where there is real threat that they will be lost in the near future if the programme does not proceed. Jobs created/safeguarded (even where these have the same job title) should be entered on separate lines.
B25: NVQ qualification level | C25: See below for guidance.
B26: Salary | C26: This should be the gross annual basic salary (excluding any overtime, commission, expenses, bonus and shift pay and excluding employer contributions), stated in 2014 prices.
B29: NVQ Level | C29: Academic NVQ Qualification Name | D29: Vocational Qualification Name | E29: Description
B30: Level 1 | C30: ● GCSE/SCE/O-level grades below C (or fewer than 5 at grades A-C) | D30: ● BTEC/SCOTBTEC/SQA-First Certificate | E30: ● Competence that involves the application of knowledge in the performance of a range of varied work activities, most of which are routine and predictable.
D31: ● BEC/SCOTBEC – General Certificate / Diploma
D32: ● City & Guilds – Operative Awards
C33: ● CSE grades below 1 | D33: ● CPVE- Year 1 (Technician)
C34: ● 1 AS level | D34: ● LCCI/RSA/PEI – Elementary/ First Level
D35: ● RSA- Vocational Certificate
D36: ● Foundation GNVQ/GSVQ
D37: ● NVQ/SVQ Level 1
B38: Level 2 | C38: ● 5 or more GCSE/SCE/O-level grades at A – C | D38: ● BTEC/SCOTVEC/SQA-First Diploma | E38: ● Competence that involves the application of knowledge in a significant range of varied work activities, performed in a variety of contexts.
D39: ● BEC/SCOTBEC/BTEC/SCOTVEC/SQA – General Certificate / Diploma with credit
C40: ● CSE grade 1
C41: ● 1 A level pass | D41: ● City & Guilds – Higher Operative / craft | E41: ● Collaboration with others, perhaps through membership of a work group or team, is often a requirement.
C42: ● 2 or 3 AS levels | D42: ● LCCI – Certificate / Second Level
D43: ● PEI – Stage 2
D44: ● Pitmans – Intermediate Level 2 Diploma Certificate
D45: ● RSA- Diploma
D46: ● Intermediate GNVQ/GSVQ
D47: ● NVQ/SVQ Level 2
B48: Level 3 | C48: ● 2 or more A level passes | D48: ● BEC/SCOTBEC BTEC/SCOTVEC/SQA – National OND | E48: ● Competence that involves the application of knowledge in a broad range of varied work activities performed in a wide variety of contexts, most of which are complex and non-routine.
C49: ● 4 or more AS levels
D50: ● TEC/SCOTEC – Certificate / Diploma
D51: ● City & Guilds – Advanced Craft
D52: ● LCCI – Third level Diploma | E52: ● There is considerable responsibility and autonomy and control or guidance of others is often required.
D53: ● Pitmans – Level 3 Advanced Higher Certificate
D54: ● RSA- Stage 3 Advanced Diploma
D55: ● Advanced GNVQ/GSVQ
D56: ● Access to Higher Education Courses
D57: ● Advanced awards in ESOL and foreign languages
D58: ● NVQ/SVQ Level 3
B59: Level 4 | C59: ● Teaching qualifications (including PGCE) | D59: ● BEC/SCOTBEC BTEC/SCOTVEC/SQA – HND / HNC | E59: ● Competence that involves the application of knowledge in a broad range of complex, technical or professional work activities performed in a variety of contexts and with a substantial degree of personal responsibility and autonomy.
C60: ● First degree | D60: ● TEC/SCOTEC – Higher Certificate / Diploma
D61: ● LCCI – Advanced level
D62: ● RSA - Advanced Certificate/ Higher Diploma
D63: ● Diploma in Higher Education | E63: ● Responsibility for the work of others and the allocation of resources is often present.
D64: ● Nursing (SRN)
D65: ● Certificate in Higher Education
D66: ● NVQ/SVQ Level 4
B67: Level 5 | C67: ● Higher degree | D67: ● Continuing Education Diploma | E67: ● Competence that involves the application of a range of fundamental principles across a wide and often unpredictable variety of contexts.
D68: ● Other high level professional qualification
E70: ● Very substantial personal autonomy and often significant responsibility for the work of others and for the allocation of substantial resources features strongly, as do personal accountabilities for analysis, diagnosis, design, planning, execution and evaluation

Sheet names of lists (hidden)
B7: sectorcb | D7: Manufacturing – Auto
D8: Manufacturing – Aero
D9: Manufacturing – Chemicals
D10: Manufacturing – Electronics
D11: Manufacturing – Food
D12: Manufacturing – Waste
D13: Manufacturing – Low Carbon/ Renewables/ Energy
D14: Manufacturing – Transport/ telecoms/ utilities/ ports/ infrastructure
D15: Manufacturing – Materials
D16: Manufacturing – Chemicals
D17: Manufacturing – Pharma
D18: Manufacturing – General/ not specified
D19: Services – Media/technology
D20: Services – Cultural and recreational activities (including tourism)
D21: Services – Financial and business services
D22: Services – Accommodation and food retail
D23: Services – General/ Not specified
D24: Wholesale and retail distribution
D25: Development – commercial
D26: Development – housing
D27: Development – mixed
D28: Access to finance
D29: Business support
D30: Skills
D31: Small
B32: sizecb | D32: Medium
D33: Large
D34: Varied
D35: 1
D36: 2
B37: nvqcb | D37: 3
D38: 4
D39: 5
D40: 1 to 3
D41: 4 to 5
D42: 1 to 5
D43: Public funding
D44: UK-based funding (please specify in comments box)
D45: European Regional Development Fund (ERDF)
D46: Private funding
D47: Company existing funds (including Group Funds)
D48: New equity (e.g. shareholder funds)
D49: Bank and related financing (including loans, mortgages, overdrafts, other forms of asset financing)
D50: Future cash flows
D51: In-kind contributions (time and wage costs)
D52: Other (please specify)
D53: Funding Types
D54: RGF
D55: Public funding - UK (please specify)
D56: Public funding - European (please specify)
D57: Private funding - company existing funds (including Group funds)
B58: fundingcb | D58: Private funding - new equity
D59: Private funding - bank and related lending
D60: Private funding - future cash flows
D61: Private funding - beneficiary match funding
D62: Private funding - other (please specify)
D65: Is the Funding Confirmed
B66: confirmcb | D66: Secured already
D67: Subject to RGF award
D68: Not Confirmed
D69: Cash/In-Kind
B70: inkindcb | D70: Cash
D71: In-Kind
D73: GBER Categories
D74: Regional investment and employment aid
D75: SME investment and employment aid
B76: gbercb | D76: Aid for research, development and innovation
D77: Training aid
D78: Environmental aid
D79: Other GBER categories of aid
D80: Types of R&D
D81: Fundamental
B82: randdcb | D82: Industrial
D83: Experimental
D84: Not R&D
D85: RGF
B86: publiccb | D86: Public funding - UK (please specify)
D87: Public funding - European (please specify)
B88: capex | D88: Construction of new buildings
D89: Upgrade of existing premises
D90: Purchase of land
D91: Leasing of premises/land
D92: Purchase of plant and machinery
D93: Lease of plant and machinery
D94: Purchase of non-physical assets e.g. software
D95: Other
B96: RGFuse | D96: Construction of new buildings
D97: Upgrade of existing premises
D98: Purchase of land
D99: Leasing of premises/land
D100: Purchase of plant and machinery
D101: Lease of plant and machinery
D102: Purchase of non-physical assets e.g. software
D103: Fundamental R&D
D104: Industrial R&D
D105: Experimental R&D
D106: General skills and training
D107: Specific skills and training
D108: Other

Sheet Section A Example
A2: Employment impacts [WITHDRAWN]
A5: Table 1a: Direct, Contractable Jobs - Created
A6: Job Title | B6: Location (Local Authority) | C6: Employer | D6: Company Size | E6: Sector | F6: NVQ Qualification Level | G6: 2014 Salary £ (if range use average) | H6: FY 2014/15 | I6: FY 2015/16 | J6: FY 2016/17 | K6: FY 2017/18 | L6: FY 2018/19 | M6: FY 2019/20 | N6: FY 2020/21 | O6: FY 2021/22 | P6: FY 2022/23 | Q6: FY 2023/24 | S6: Notes
B7: Local Authority
A8: Machine operatives | B8: Rotherham | C8: Company Z (Applicant) | D8: Medium | E8: Manufacturing – Auto | F8: 3 | G8: 25000 | J8: 100 | K8: 150 | L8: 150 | M8: 150 | N8: 150 | S8: Machine operatives directly employed in the new production. Capacity will be at 2/3 in year 3 and reach full capacity in year 4.
A9: Support staff | B9: Rotherham | C9: Company Z (Applicant) | D9: Medium | E9: Manufacturing – Auto | F9: 2 | G9: 18000 | H9: 3 | I9: 5 | J9: 5 | K9: 7 | L9: 7 | M9: 7 | N9: 7 | S9: Support staff directly contracted. These will come on stream in year 1 to manage systems related to the project.
A11: Company Z is a medium sized manufacturing firm in the car industry. Their project involves increasing the capacity of the current factory. This will create 150 new machines operative roles, directly employed by the company. It will also create 7 new support staff roles directly employed by the company. Company X is willing to guarantee these jobs until 2020/21.
A22: Total Direct Jobs - Created | H22: =SUM(H8:H21) -> 3 | I22: 5 | J22: 105 | K22: 157 | L22: 157 | M22: 157 | N22: 157 | O22: 0 | P22: 0 | Q22: 0 | R22: =AVERAGE(H22:Q22) -> 74.1 | S22: Average
A25: Table 1b: Direct, Contractable Jobs - Safeguarded
A26: Job Title | B26: Location (Local Authority) | C26: Employer | D26: Company Size | E26: Sector | F26: NVQ Qualification Level | G26: 2014 Salary £ (if range use average) | H26: FY 2014/15 | I26: FY 2015/16 | J26: FY 2016/17 | K26: FY 2017/18 | L26: FY 2018/19 | M26: FY 2019/20 | N26: FY 2020/21 | O26: FY 2021/22 | P26: FY 2022/23 | Q26: FY 2023/24 | S26: Notes
A44: Total Direct Jobs - Safeguarded | H44: =SUM(H28:H43) -> 0 | I44: 0 | J44: 0 | K44: 0 | L44: 0 | M44: 0 | N44: 0 | O44: 0 | P44: 0 | Q44: 0 | R44: =AVERAGE(H44:Q44) -> 0 | S44: Average
A47: Table 2a: Indirect, Non-Contractable Jobs, Created - Supply Chain or Other (e.g. construction, developments etc)
A48: Type and source of job (eg. supply chain, other users of infrastucture) | B48: Location (Local Authority) | C48: Employer | D48: Company Size | E48: Sector | F48: NVQ Qualification Level | G48: 2014 Salary £ (if range use average) | H48: FY 2014/15 | I48: FY 2015/16 | J48: FY 2016/17 | K48: FY 2017/18 | L48: FY 2018/19 | M48: FY 2019/20 | N48: FY 2020/21 | O48: FY 2021/22 | P48: FY 2022/23 | Q48: FY 2023/24 | S48: Notes
A50: Supply chain manufacturing jobs | B50: Doncaster | C50: Supplier A | D50: Large | E50: Manufacturing – Auto | F50: 2 | G50: 17500 | J50: 20 | K50: 20 | L50: 20 | M50: 20 | N50: 20 | S50: We have spoken to Supplier A who estimate an increase of 20 full time employees will be needed for the duration of the project in order to supply our electronics
A51: Supply chain manufacturing jobs | B51: Doncaster | C51: Supplier B | D51: Medium | E51: Manufacturing – Auto | F51: 2 | G51: 19250 | J51: 10 | K51: 10 | L51: 10 | M51: 10 | N51: 10 | S51: We have spoken to Supplier B who estimates an increase of 10 full time employees will be needed for the duration of the project in order to supply our increased volume of steel frames.
A52: Construction | B52: Doncaster | C52: Contractor X | D52: Large | E52: Development – commercial | F52: 2 | G52: 17500 | H52: 30 | I52: 30 | S52: We have spoken to Contractor X who have estimated that delivering our development will require 30 full-time construction workers for the period of 2 years.
A53: Material suppliers - construction | B53: Sheffield | C53: Supplier Y | D53: Large | E53: Manufacturing – Auto | F53: 3 | G53: 22000 | H53: 10 | I53: 10 | S53: We have used the DCLG report referenced in question H01 to calculate the impacts on the construction supply chain of Contractor X. This has been estimated at 10 FTE jobs for the 2 year construction period.
A55: The increase in Company Z's output means that it will have to buy more from its suppliers. Company Z has consulted its main suppliers regarding the project. Supplier A estimates that it will have to increase their headcount by 20 to meet Company Z's extra demand. Supplier B estimates they will have to increase their headcount by 10.
A57: Company Z will have to employ building contractors to build the extension. Contractor X has estimated the cost and told Company Z that this will result in the employment of 30 construction workers for the two year build period. Building and factory materials will also be required to complete this development. Company Z have used a Department of Communities and Local Government published figure estimating the supply chain impacts of industrial development in the North-East to calculate an estimate of 10 new jobs in the construction supply chain.
A65: Total Indirect Jobs - Created | H65: =SUM(H50:H64) -> 40 | I65: 40 | J65: 30 | K65: 30 | L65: 30 | M65: 30 | N65: 30 | O65: 0 | P65: =SUM(P51:P64) -> 0 | Q65: =SUM(Q51:Q64) -> 0 | R65: =AVERAGE(H65:Q65) -> 23 | S65: Average
A68: Table 2b: Indirect, Non-Contractable Jobs, Safeguarded - Supply Chain or Other (e.g. construction, developments etc)
A69: Type and source of job (eg. supply chain, other users of infrastucture) | B69: Location (Local Authority) | C69: Employer | D69: Company Size | E69: Sector | F69: NVQ Qualification Level | G69: 2014 Salary £ (if range use average) | H69: FY 2014/15 | I69: FY 2015/16 | J69: FY 2016/17 | K69: FY 2017/18 | L69: FY 2018/19 | M69: FY 2019/20 | N69: FY 2020/21 | O69: FY 2021/22 | P69: FY 2022/23 | Q69: FY 2023/24 | S69: Notes
A86: Total Indirect Jobs - Safeguarded | H86: =SUM(H71:H85) -> 0 | I86: 0 | J86: 0 | K86: 0 | L86: 0 | M86: 0 | N86: 0 | O86: 0 | P86: 0 | Q86: 0 | R86: =AVERAGE(H86:Q86) -> 0 | S86: Average
A89: Table 3: Total number of people in project benefitting from skills and training activities by new NVQ level attained
A90: ENTER THE EMPLOYEE IN THE YEAR THE TRAINING IS COMPLETED
A91: New NVQ level attained | B91: Location (Local Authority) | C91: Employer | D91: Company Size | E91: Sector | F91: Salary pre-training £ (if range use average) | G91: Salary post-training £ (if range use average) | H91: FY 2014/15 | I91: FY 2015/16 | J91: FY 2016/17 | K91: FY 2017/18 | L91: FY 2018/19 | M91: FY 2019/20 | N91: FY 2020/21 | O91: FY 2021/22 | P91: FY 2022/23 | Q91: FY 2023/24 | S91: Notes
A93: Level 5
A94: Level 4
A95: Level 3 | B95: Rotherham | C95: Company Z - Applicant | D95: Medium | E95: Manufacturing – Auto | F95: 18000 | G95: 21000 | J95: 5 | K95: 5 | L95: 5 | M95: 5 | N95: 5 | O95: 5 | P95: 5 | Q95: 5 | S95: We will start training 5 apprentices in year 1. They will complete their training in 2016/17, at which point they will gain a £3,000 salary increase.
A96: Level 2
A97: Level 1
A98: TOTAL | H98: =SUM(H93:H97) -> 0 | I98: =SUM(I93:I97) -> 0 | J98: 5 | K98: 5 | L98: 5 | M98: 5 | N98: 5 | O98: 5 | P98: 5 | Q98: 5 | R98: =AVERAGE(H98:Q98) -> 4 | S98: Average

Sheet Section A
A2: Section A: Employment impacts [WITHDRAWN]
A5: Table 1a: Direct, Contractable Jobs - Created
A6: Job Title | B6: Location (Local Authority) | C6: Employer | D6: Company Size | E6: Sector | F6: NVQ Qualification Level | G6: 2014 Salary £ (if range use average) | H6: FY 2014/15 | I6: FY 2015/16 | J6: FY 2016/17 | K6: FY 2017/18 | L6: FY 2018/19 | M6: FY 2019/20 | N6: FY 2020/21 | O6: FY 2021/22 | P6: FY 2022/23 | Q6: FY 2023/24 | S6: Notes
B7: Local Authority
A24: Total Direct Jobs - Created | H24: =SUM(H8:H23) -> 0 | I24: =SUM(I8:I23) -> 0 | J24: 0 | K24: 0 | L24: 0 | M24: 0 | N24: 0 | O24: 0 | P24: 0 | Q24: 0 | R24: =AVERAGE(H24:Q24) -> 0 | S24: Average
A27: Table 1b: Direct, Contractable Jobs - Safeguarded
A28: Job Title | B28: Location (Local Authority) | C28: Employer | D28: Company Size | E28: Sector | F28: NVQ Qualification Level | G28: 2014 Salary £ (if range use average) | H28: FY 2014/15 | I28: FY 2015/16 | J28: FY 2016/17 | K28: FY 2017/18 | L28: FY 2018/19 | M28: FY 2019/20 | N28: FY 2020/21 | O28: FY 2021/22 | P28: FY 2022/23 | Q28: FY 2023/24 | S28: Notes
A46: Total Direct Jobs - Safeguarded | H46: =SUM(H30:H45) -> 0 | I46: =SUM(I30:I45) -> 0 | J46: 0 | K46: 0 | L46: 0 | M46: 0 | N46: 0 | O46: 0 | P46: 0 | Q46: 0 | R46: =AVERAGE(H46:Q46) -> 0 | S46: Average
A49: Table 2a: Non-Contractable Jobs, Created - Supply Chain or Other (e.g. construction, developments etc)
A50: Type and source of job (eg. supply chain, other users of infrastucture) | B50: Location (Local Authority) | C50: Employer | D50: Company Size | E50: Sector | F50: NVQ Qualification Level | G50: 2014 Salary £ (if range use average) | H50: FY 2014/15 | I50: FY 2015/16 | J50: FY 2016/17 | K50: FY 2017/18 | L50: FY 2018/19 | M50: FY 2019/20 | N50: FY 2020/21 | O50: FY 2021/22 | P50: FY 2022/23 | Q50: FY 2023/24 | S50: Notes
A67: Total Indirect Jobs - Created | H67: =SUM(H52:H66) -> 0 | I67: =SUM(I52:I66) -> 0 | J67: 0 | K67: 0 | L67: 0 | M67: 0 | N67: 0 | O67: 0 | P67: 0 | Q67: 0 | R67: =AVERAGE(H67:Q67) -> 0 | S67: Average
A70: Table 2b: Non-Contractable Jobs, Safeguarded - Supply Chain or Other (e.g. construction, developments etc)
A71: Type and source of job (eg. supply chain, other users of infrastucture) | B71: Location (Local Authority) | C71: Employer | D71: Company Size | E71: Sector | F71: NVQ Qualification Level | G71: 2014 Salary £ (if range use average) | H71: FY 2014/15 | I71: FY 2015/16 | J71: FY 2016/17 | K71: FY 2017/18 | L71: FY 2018/19 | M71: FY 2019/20 | N71: FY 2020/21 | O71: FY 2021/22 | P71: FY 2022/23 | Q71: FY 2023/24 | S71: Notes
A88: Total Indirect Jobs - Safeguarded | H88: =SUM(H73:H87) -> 0 | I88: =SUM(I73:I87) -> 0 | J88: 0 | K88: 0 | L88: 0 | M88: 0 | N88: 0 | O88: 0 | P88: 0 | Q88: 0 | R88: =AVERAGE(H88:Q88) -> 0 | S88: Average
A91: Table 3: Total number of people in project benefitting from skills and training activities by new NVQ level attained
A92: ENTER THE EMPLOYEE IN THE YEAR THE TRAINING IS COMPLETED
A93: New NVQ level attained | B93: Location (Local Authority) | C93: Employer | D93: Company Size | E93: Sector | F93: Salary pre-training £ (if range use average) | G93: Salary post-training £ (if range use average) | H93: FY 2014/15 | I93: FY 2015/16 | J93: FY 2016/17 | K93: FY 2017/18 | L93: FY 2018/19 | M93: FY 2019/20 | N93: FY 2020/21 | O93: FY 2021/22 | P93: FY 2022/23 | Q93: FY 2023/24 | S93: Notes
A95: Level 5
A96: Level 4
A97: Level 3
A98: Level 2
A99: Level 1
A100: TOTAL | H100: =SUM(H95:H99) -> 0 | I100: =SUM(I95:I99) -> 0 | J100: 0 | K100: 0 | L100: 0 | M100: 0 | N100: 0 | O100: 0 | P100: 0 | Q100: 0 | R100: =AVERAGE(H100:Q100) -> 0 | S100: Average

Sheet Section B notes
B2: How to fill in Section B [WITHDRAWN]
B4: 1. Use column B in the table to show the estimated spread of direct employment impacts (both created and safeguarded) – this must sum to 100%; and
B5: 2. Use the values in cells C5, C6, C7 and C8 to answer question C12 in Part 1.

Sheet Section B
A2: Section B: Distribution of employment impacts [WITHDRAWN]
A5: Q. C12a - Proportion of resident population aged 16-64 claiming out of work benefits | C5: =IF($B$348=1,C$348,"ERROR, Your employment impacts do not sum to 100%") -> ERROR, Your employment impacts do not sum to 100% | F5: =IF(C5="Error, Your employment impacts do not sum to 100%","", SUM(IF(Working!$E$2:$E$327>=C5,1,0)) & "/326") -> 
A6: Q. C12b - Public sector employee job share | C6: =IF($B$348=1,D$348,"ERROR, Your employment impacts do not sum to 100%") -> ERROR, Your employment impacts do not sum to 100% | F6: =IF(C6="Error, Your employment impacts do not sum to 100%","", SUM(IF(Working!$H$2:$H$327>=C6,1,0)) &"/326") -> 
A7: Q. C12c - Private sector employee job growth | C7: =IF($B$348=1,E$348,"ERROR, Your employment impacts do not sum to 100%") -> ERROR, Your employment impacts do not sum to 100% | F7: =IF(C7="Error, Your employment impacts do not sum to 100%","",SUM(IF(Working!$K$2:$K$327>=C7,1,0))& "/326") -> 
A8: Q. C12d - Number of active enterprises per 1,000 resident population | C8: =IF($B$348=1,F$348,"ERROR, Your employment impacts do not sum to 100%") -> ERROR, Your employment impacts do not sum to 100% | F8: =IF(C8="Error, Your employment impacts do not sum to 100%","",SUM(IF(Working!$N$2:$N$327 <=C8,1,0)) & "/326") -> 
A10: Geographic Area (Local Authority District or Region) | B10: Approximate proportion of direct employment impacts (%) | C10: WEIGHTED - Proportion of resident population aged 16-64 claiming out of work benefits February 2012 | D10: WEIGHTED - Public sector employee job share 2009 | E10: WEIGHTED - Private sector employee job growth 2003-2008 | F10: WEIGHTED - Number of active enterprises per 1,000 resident population 2011
A11: Adur | B11: 0 | C11: =VLOOKUP($A11,Working!$B$2:$O$339,4,FALSE)*($B11/(1-$B$347)) -> 0 | D11: =VLOOKUP($A11,Working!$B$2:$O$339,7,FALSE)*($B11/(1-$B$347)) -> 0 | E11: =VLOOKUP($A11,Working!$B$2:$L$339,10,FALSE)*($B11/(1-$B$347)) -> 0 | F11: =(VLOOKUP($A11,Working!$B$2:$O$339,11,FALSE)/(VLOOKUP($A11,Working!$B$2:$O$339,12,FALSE)/1000))*($B11/(1-$B$347)) -> 0
A12: Allerdale | B12: 0 | C12: =VLOOKUP($A12,Working!$B$2:$O$339,4,FALSE)*($B12/(1-$B$347)) -> 0 | D12: =VLOOKUP($A12,Working!$B$2:$O$339,7,FALSE)*($B12/(1-$B$347)) -> 0 | E12: =VLOOKUP($A12,Working!$B$2:$L$339,10,FALSE)*($B12/(1-$B$347)) -> 0 | F12: =(VLOOKUP($A12,Working!$B$2:$O$339,11,FALSE)/(VLOOKUP($A12,Working!$B$2:$O$339,12,FALSE)/1000))*($B12/(1-$B$347)) -> 0
A13: Amber Valley | B13: 0 | C13: =VLOOKUP($A13,Working!$B$2:$O$339,4,FALSE)*($B13/(1-$B$347)) -> 0 | D13: =VLOOKUP($A13,Working!$B$2:$O$339,7,FALSE)*($B13/(1-$B$347)) -> 0 | E13: =VLOOKUP($A13,Working!$B$2:$L$339,10,FALSE)*($B13/(1-$B$347)) -> 0 | F13: =(VLOOKUP($A13,Working!$B$2:$O$339,11,FALSE)/(VLOOKUP($A13,Working!$B$2:$O$339,12,FALSE)/1000))*($B13/(1-$B$347)) -> 0
A14: Arun | B14: 0 | C14: =VLOOKUP($A14,Working!$B$2:$O$339,4,FALSE)*($B14/(1-$B$347)) -> 0 | D14: =VLOOKUP($A14,Working!$B$2:$O$339,7,FALSE)*($B14/(1-$B$347)) -> 0 | E14: =VLOOKUP($A14,Working!$B$2:$L$339,10,FALSE)*($B14/(1-$B$347)) -> 0 | F14: =(VLOOKUP($A14,Working!$B$2:$O$339,11,FALSE)/(VLOOKUP($A14,Working!$B$2:$O$339,12,FALSE)/1000))*($B14/(1-$B$347)) -> 0
A15: Ashfield | B15: 0 | C15: =VLOOKUP($A15,Working!$B$2:$O$339,4,FALSE)*($B15/(1-$B$347)) -> 0 | D15: =VLOOKUP($A15,Working!$B$2:$O$339,7,FALSE)*($B15/(1-$B$347)) -> 0 | E15: =VLOOKUP($A15,Working!$B$2:$L$339,10,FALSE)*($B15/(1-$B$347)) -> 0 | F15: =(VLOOKUP($A15,Working!$B$2:$O$339,11,FALSE)/(VLOOKUP($A15,Working!$B$2:$O$339,12,FALSE)/1000))*($B15/(1-$B$347)) -> 0
A16: Ashford | B16: 0 | C16: =VLOOKUP($A16,Working!$B$2:$O$339,4,FALSE)*($B16/(1-$B$347)) -> 0 | D16: =VLOOKUP($A16,Working!$B$2:$O$339,7,FALSE)*($B16/(1-$B$347)) -> 0 | E16: =VLOOKUP($A16,Working!$B$2:$L$339,10,FALSE)*($B16/(1-$B$347)) -> 0 | F16: =(VLOOKUP($A16,Working!$B$2:$O$339,11,FALSE)/(VLOOKUP($A16,Working!$B$2:$O$339,12,FALSE)/1000))*($B16/(1-$B$347)) -> 0
A17: Aylesbury Vale | B17: 0 | C17: =VLOOKUP($A17,Working!$B$2:$O$339,4,FALSE)*($B17/(1-$B$347)) -> 0 | D17: =VLOOKUP($A17,Working!$B$2:$O$339,7,FALSE)*($B17/(1-$B$347)) -> 0 | E17: =VLOOKUP($A17,Working!$B$2:$L$339,10,FALSE)*($B17/(1-$B$347)) -> 0 | F17: =(VLOOKUP($A17,Working!$B$2:$O$339,11,FALSE)/(VLOOKUP($A17,Working!$B$2:$O$339,12,FALSE)/1000))*($B17/(1-$B$347)) -> 0
A18: Babergh | B18: 0 | C18: =VLOOKUP($A18,Working!$B$2:$O$339,4,FALSE)*($B18/(1-$B$347)) -> 0 | D18: =VLOOKUP($A18,Working!$B$2:$O$339,7,FALSE)*($B18/(1-$B$347)) -> 0 | E18: =VLOOKUP($A18,Working!$B$2:$L$339,10,FALSE)*($B18/(1-$B$347)) -> 0 | F18: =(VLOOKUP($A18,Working!$B$2:$O$339,11,FALSE)/(VLOOKUP($A18,Working!$B$2:$O$339,12,FALSE)/1000))*($B18/(1-$B$347)) -> 0
A19: Barking and Dagenham | B19: 0 | C19: =VLOOKUP($A19,Working!$B$2:$O$339,4,FALSE)*($B19/(1-$B$347)) -> 0 | D19: =VLOOKUP($A19,Working!$B$2:$O$339,7,FALSE)*($B19/(1-$B$347)) -> 0 | E19: =VLOOKUP($A19,Working!$B$2:$L$339,10,FALSE)*($B19/(1-$B$347)) -> 0 | F19: =(VLOOKUP($A19,Working!$B$2:$O$339,11,FALSE)/(VLOOKUP($A19,Working!$B$2:$O$339,12,FALSE)/1000))*($B19/(1-$B$347)) -> 0
A20: Barnet | B20: 0 | C20: =VLOOKUP($A20,Working!$B$2:$O$339,4,FALSE)*($B20/(1-$B$347)) -> 0 | D20: =VLOOKUP($A20,Working!$B$2:$O$339,7,FALSE)*($B20/(1-$B$347)) -> 0 | E20: =VLOOKUP($A20,Working!$B$2:$L$339,10,FALSE)*($B20/(1-$B$347)) -> 0 | F20: =(VLOOKUP($A20,Working!$B$2:$O$339,11,FALSE)/(VLOOKUP($A20,Working!$B$2:$O$339,12,FALSE)/1000))*($B20/(1-$B$347)) -> 0
A21: Barnsley | B21: 0 | C21: =VLOOKUP($A21,Working!$B$2:$O$339,4,FALSE)*($B21/(1-$B$347)) -> 0 | D21: =VLOOKUP($A21,Working!$B$2:$O$339,7,FALSE)*($B21/(1-$B$347)) -> 0 | E21: =VLOOKUP($A21,Working!$B$2:$L$339,10,FALSE)*($B21/(1-$B$347)) -> 0 | F21: =(VLOOKUP($A21,Working!$B$2:$O$339,11,FALSE)/(VLOOKUP($A21,Working!$B$2:$O$339,12,FALSE)/1000))*($B21/(1-$B$347)) -> 0
A22: Barrow-in-Furness | B22: 0 | C22: =VLOOKUP($A22,Working!$B$2:$O$339,4,FALSE)*($B22/(1-$B$347)) -> 0 | D22: =VLOOKUP($A22,Working!$B$2:$O$339,7,FALSE)*($B22/(1-$B$347)) -> 0 | E22: =VLOOKUP($A22,Working!$B$2:$L$339,10,FALSE)*($B22/(1-$B$347)) -> 0 | F22: =(VLOOKUP($A22,Working!$B$2:$O$339,11,FALSE)/(VLOOKUP($A22,Working!$B$2:$O$339,12,FALSE)/1000))*($B22/(1-$B$347)) -> 0
A23: Basildon | B23: 0 | C23: =VLOOKUP($A23,Working!$B$2:$O$339,4,FALSE)*($B23/(1-$B$347)) -> 0 | D23: =VLOOKUP($A23,Working!$B$2:$O$339,7,FALSE)*($B23/(1-$B$347)) -> 0 | E23: =VLOOKUP($A23,Working!$B$2:$L$339,10,FALSE)*($B23/(1-$B$347)) -> 0 | F23: =(VLOOKUP($A23,Working!$B$2:$O$339,11,FALSE)/(VLOOKUP($A23,Working!$B$2:$O$339,12,FALSE)/1000))*($B23/(1-$B$347)) -> 0
A24: Basingstoke and Deane | B24: 0 | C24: =VLOOKUP($A24,Working!$B$2:$O$339,4,FALSE)*($B24/(1-$B$347)) -> 0 | D24: =VLOOKUP($A24,Working!$B$2:$O$339,7,FALSE)*($B24/(1-$B$347)) -> 0 | E24: =VLOOKUP($A24,Working!$B$2:$L$339,10,FALSE)*($B24/(1-$B$347)) -> 0 | F24: =(VLOOKUP($A24,Working!$B$2:$O$339,11,FALSE)/(VLOOKUP($A24,Working!$B$2:$O$339,12,FALSE)/1000))*($B24/(1-$B$347)) -> 0
A25: Bassetlaw | B25: 0 | C25: =VLOOKUP($A25,Working!$B$2:$O$339,4,FALSE)*($B25/(1-$B$347)) -> 0 | D25: =VLOOKUP($A25,Working!$B$2:$O$339,7,FALSE)*($B25/(1-$B$347)) -> 0 | E25: =VLOOKUP($A25,Working!$B$2:$L$339,10,FALSE)*($B25/(1-$B$347)) -> 0 | F25: =(VLOOKUP($A25,Working!$B$2:$O$339,11,FALSE)/(VLOOKUP($A25,Working!$B$2:$O$339,12,FALSE)/1000))*($B25/(1-$B$347)) -> 0
A26: Bath and North East Somerset | B26: 0 | C26: =VLOOKUP($A26,Working!$B$2:$O$339,4,FALSE)*($B26/(1-$B$347)) -> 0 | D26: =VLOOKUP($A26,Working!$B$2:$O$339,7,FALSE)*($B26/(1-$B$347)) -> 0 | E26: =VLOOKUP($A26,Working!$B$2:$L$339,10,FALSE)*($B26/(1-$B$347)) -> 0 | F26: =(VLOOKUP($A26,Working!$B$2:$O$339,11,FALSE)/(VLOOKUP($A26,Working!$B$2:$O$339,12,FALSE)/1000))*($B26/(1-$B$347)) -> 0
A27: Bedford | B27: 0 | C27: =VLOOKUP($A27,Working!$B$2:$O$339,4,FALSE)*($B27/(1-$B$347)) -> 0 | D27: =VLOOKUP($A27,Working!$B$2:$O$339,7,FALSE)*($B27/(1-$B$347)) -> 0 | E27: =VLOOKUP($A27,Working!$B$2:$L$339,10,FALSE)*($B27/(1-$B$347)) -> 0 | F27: =(VLOOKUP($A27,Working!$B$2:$O$339,11,FALSE)/(VLOOKUP($A27,Working!$B$2:$O$339,12,FALSE)/1000))*($B27/(1-$B$347)) -> 0
A28: Bexley | B28: 0 | C28: =VLOOKUP($A28,Working!$B$2:$O$339,4,FALSE)*($B28/(1-$B$347)) -> 0 | D28: =VLOOKUP($A28,Working!$B$2:$O$339,7,FALSE)*($B28/(1-$B$347)) -> 0 | E28: =VLOOKUP($A28,Working!$B$2:$L$339,10,FALSE)*($B28/(1-$B$347)) -> 0 | F28: =(VLOOKUP($A28,Working!$B$2:$O$339,11,FALSE)/(VLOOKUP($A28,Working!$B$2:$O$339,12,FALSE)/1000))*($B28/(1-$B$347)) -> 0
A29: Birmingham | B29: 0 | C29: =VLOOKUP($A29,Working!$B$2:$O$339,4,FALSE)*($B29/(1-$B$347)) -> 0 | D29: =VLOOKUP($A29,Working!$B$2:$O$339,7,FALSE)*($B29/(1-$B$347)) -> 0 | E29: =VLOOKUP($A29,Working!$B$2:$L$339,10,FALSE)*($B29/(1-$B$347)) -> 0 | F29: =(VLOOKUP($A29,Working!$B$2:$O$339,11,FALSE)/(VLOOKUP($A29,Working!$B$2:$O$339,12,FALSE)/1000))*($B29/(1-$B$347)) -> 0
A30: Blaby | B30: 0 | C30: =VLOOKUP($A30,Working!$B$2:$O$339,4,FALSE)*($B30/(1-$B$347)) -> 0 | D30: =VLOOKUP($A30,Working!$B$2:$O$339,7,FALSE)*($B30/(1-$B$347)) -> 0 | E30: =VLOOKUP($A30,Working!$B$2:$L$339,10,FALSE)*($B30/(1-$B$347)) -> 0 | F30: =(VLOOKUP($A30,Working!$B$2:$O$339,11,FALSE)/(VLOOKUP($A30,Working!$B$2:$O$339,12,FALSE)/1000))*($B30/(1-$B$347)) -> 0
A31: Blackburn with Darwen | B31: 0 | C31: =VLOOKUP($A31,Working!$B$2:$O$339,4,FALSE)*($B31/(1-$B$347)) -> 0 | D31: =VLOOKUP($A31,Working!$B$2:$O$339,7,FALSE)*($B31/(1-$B$347)) -> 0 | E31: =VLOOKUP($A31,Working!$B$2:$L$339,10,FALSE)*($B31/(1-$B$347)) -> 0 | F31: =(VLOOKUP($A31,Working!$B$2:$O$339,11,FALSE)/(VLOOKUP($A31,Working!$B$2:$O$339,12,FALSE)/1000))*($B31/(1-$B$347)) -> 0
A32: Blackpool | B32: 0 | C32: =VLOOKUP($A32,Working!$B$2:$O$339,4,FALSE)*($B32/(1-$B$347)) -> 0 | D32: =VLOOKUP($A32,Working!$B$2:$O$339,7,FALSE)*($B32/(1-$B$347)) -> 0 | E32: =VLOOKUP($A32,Working!$B$2:$L$339,10,FALSE)*($B32/(1-$B$347)) -> 0 | F32: =(VLOOKUP($A32,Working!$B$2:$O$339,11,FALSE)/(VLOOKUP($A32,Working!$B$2:$O$339,12,FALSE)/1000))*($B32/(1-$B$347)) -> 0
A33: Bolsover | B33: 0 | C33: =VLOOKUP($A33,Working!$B$2:$O$339,4,FALSE)*($B33/(1-$B$347)) -> 0 | D33: =VLOOKUP($A33,Working!$B$2:$O$339,7,FALSE)*($B33/(1-$B$347)) -> 0 | E33: =VLOOKUP($A33,Working!$B$2:$L$339,10,FALSE)*($B33/(1-$B$347)) -> 0 | F33: =(VLOOKUP($A33,Working!$B$2:$O$339,11,FALSE)/(VLOOKUP($A33,Working!$B$2:$O$339,12,FALSE)/1000))*($B33/(1-$B$347)) -> 0
A34: Bolton | B34: 0 | C34: =VLOOKUP($A34,Working!$B$2:$O$339,4,FALSE)*($B34/(1-$B$347)) -> 0 | D34: =VLOOKUP($A34,Working!$B$2:$O$339,7,FALSE)*($B34/(1-$B$347)) -> 0 | E34: =VLOOKUP($A34,Working!$B$2:$L$339,10,FALSE)*($B34/(1-$B$347)) -> 0 | F34: =(VLOOKUP($A34,Working!$B$2:$O$339,11,FALSE)/(VLOOKUP($A34,Working!$B$2:$O$339,12,FALSE)/1000))*($B34/(1-$B$347)) -> 0
A35: Boston | B35: 0 | C35: =VLOOKUP($A35,Working!$B$2:$O$339,4,FALSE)*($B35/(1-$B$347)) -> 0 | D35: =VLOOKUP($A35,Working!$B$2:$O$339,7,FALSE)*($B35/(1-$B$347)) -> 0 | E35: =VLOOKUP($A35,Working!$B$2:$L$339,10,FALSE)*($B35/(1-$B$347)) -> 0 | F35: =(VLOOKUP($A35,Working!$B$2:$O$339,11,FALSE)/(VLOOKUP($A35,Working!$B$2:$O$339,12,FALSE)/1000))*($B35/(1-$B$347)) -> 0
A36: Bournemouth | B36: 0 | C36: =VLOOKUP($A36,Working!$B$2:$O$339,4,FALSE)*($B36/(1-$B$347)) -> 0 | D36: =VLOOKUP($A36,Working!$B$2:$O$339,7,FALSE)*($B36/(1-$B$347)) -> 0 | E36: =VLOOKUP($A36,Working!$B$2:$L$339,10,FALSE)*($B36/(1-$B$347)) -> 0 | F36: =(VLOOKUP($A36,Working!$B$2:$O$339,11,FALSE)/(VLOOKUP($A36,Working!$B$2:$O$339,12,FALSE)/1000))*($B36/(1-$B$347)) -> 0
A37: Bracknell Forest | B37: 0 | C37: =VLOOKUP($A37,Working!$B$2:$O$339,4,FALSE)*($B37/(1-$B$347)) -> 0 | D37: =VLOOKUP($A37,Working!$B$2:$O$339,7,FALSE)*($B37/(1-$B$347)) -> 0 | E37: =VLOOKUP($A37,Working!$B$2:$L$339,10,FALSE)*($B37/(1-$B$347)) -> 0 | F37: =(VLOOKUP($A37,Working!$B$2:$O$339,11,FALSE)/(VLOOKUP($A37,Working!$B$2:$O$339,12,FALSE)/1000))*($B37/(1-$B$347)) -> 0
A38: Bradford | B38: 0 | C38: =VLOOKUP($A38,Working!$B$2:$O$339,4,FALSE)*($B38/(1-$B$347)) -> 0 | D38: =VLOOKUP($A38,Working!$B$2:$O$339,7,FALSE)*($B38/(1-$B$347)) -> 0 | E38: =VLOOKUP($A38,Working!$B$2:$L$339,10,FALSE)*($B38/(1-$B$347)) -> 0 | F38: =(VLOOKUP($A38,Working!$B$2:$O$339,11,FALSE)/(VLOOKUP($A38,Working!$B$2:$O$339,12,FALSE)/1000))*($B38/(1-$B$347)) -> 0
A39: Braintree | B39: 0 | C39: =VLOOKUP($A39,Working!$B$2:$O$339,4,FALSE)*($B39/(1-$B$347)) -> 0 | D39: =VLOOKUP($A39,Working!$B$2:$O$339,7,FALSE)*($B39/(1-$B$347)) -> 0 | E39: =VLOOKUP($A39,Working!$B$2:$L$339,10,FALSE)*($B39/(1-$B$347)) -> 0 | F39: =(VLOOKUP($A39,Working!$B$2:$O$339,11,FALSE)/(VLOOKUP($A39,Working!$B$2:$O$339,12,FALSE)/1000))*($B39/(1-$B$347)) -> 0
A40: Breckland | B40: 0 | C40: =VLOOKUP($A40,Working!$B$2:$O$339,4,FALSE)*($B40/(1-$B$347)) -> 0 | D40: =VLOOKUP($A40,Working!$B$2:$O$339,7,FALSE)*($B40/(1-$B$347)) -> 0 | E40: =VLOOKUP($A40,Working!$B$2:$L$339,10,FALSE)*($B40/(1-$B$347)) -> 0 | F40: =(VLOOKUP($A40,Working!$B$2:$O$339,11,FALSE)/(VLOOKUP($A40,Working!$B$2:$O$339,12,FALSE)/1000))*($B40/(1-$B$347)) -> 0
A41: Brent | B41: 0 | C41: =VLOOKUP($A41,Working!$B$2:$O$339,4,FALSE)*($B41/(1-$B$347)) -> 0 | D41: =VLOOKUP($A41,Working!$B$2:$O$339,7,FALSE)*($B41/(1-$B$347)) -> 0 | E41: =VLOOKUP($A41,Working!$B$2:$L$339,10,FALSE)*($B41/(1-$B$347)) -> 0 | F41: =(VLOOKUP($A41,Working!$B$2:$O$339,11,FALSE)/(VLOOKUP($A41,Working!$B$2:$O$339,12,FALSE)/1000))*($B41/(1-$B$347)) -> 0
A42: Brentwood | B42: 0 | C42: =VLOOKUP($A42,Working!$B$2:$O$339,4,FALSE)*($B42/(1-$B$347)) -> 0 | D42: =VLOOKUP($A42,Working!$B$2:$O$339,7,FALSE)*($B42/(1-$B$347)) -> 0 | E42: =VLOOKUP($A42,Working!$B$2:$L$339,10,FALSE)*($B42/(1-$B$347)) -> 0 | F42: =(VLOOKUP($A42,Working!$B$2:$O$339,11,FALSE)/(VLOOKUP($A42,Working!$B$2:$O$339,12,FALSE)/1000))*($B42/(1-$B$347)) -> 0
A43: Brighton and Hove | B43: 0 | C43: =VLOOKUP($A43,Working!$B$2:$O$339,4,FALSE)*($B43/(1-$B$347)) -> 0 | D43: =VLOOKUP($A43,Working!$B$2:$O$339,7,FALSE)*($B43/(1-$B$347)) -> 0 | E43: =VLOOKUP($A43,Working!$B$2:$L$339,10,FALSE)*($B43/(1-$B$347)) -> 0 | F43: =(VLOOKUP($A43,Working!$B$2:$O$339,11,FALSE)/(VLOOKUP($A43,Working!$B$2:$O$339,12,FALSE)/1000))*($B43/(1-$B$347)) -> 0
A44: Bristol, City of | B44: 0 | C44: =VLOOKUP($A44,Working!$B$2:$O$339,4,FALSE)*($B44/(1-$B$347)) -> 0 | D44: =VLOOKUP($A44,Working!$B$2:$O$339,7,FALSE)*($B44/(1-$B$347)) -> 0 | E44: =VLOOKUP($A44,Working!$B$2:$L$339,10,FALSE)*($B44/(1-$B$347)) -> 0 | F44: =(VLOOKUP($A44,Working!$B$2:$O$339,11,FALSE)/(VLOOKUP($A44,Working!$B$2:$O$339,12,FALSE)/1000))*($B44/(1-$B$347)) -> 0
A45: Broadland | B45: 0 | C45: =VLOOKUP($A45,Working!$B$2:$O$339,4,FALSE)*($B45/(1-$B$347)) -> 0 | D45: =VLOOKUP($A45,Working!$B$2:$O$339,7,FALSE)*($B45/(1-$B$347)) -> 0 | E45: =VLOOKUP($A45,Working!$B$2:$L$339,10,FALSE)*($B45/(1-$B$347)) -> 0 | F45: =(VLOOKUP($A45,Working!$B$2:$O$339,11,FALSE)/(VLOOKUP($A45,Working!$B$2:$O$339,12,FALSE)/1000))*($B45/(1-$B$347)) -> 0
A46: Bromley | B46: 0 | C46: =VLOOKUP($A46,Working!$B$2:$O$339,4,FALSE)*($B46/(1-$B$347)) -> 0 | D46: =VLOOKUP($A46,Working!$B$2:$O$339,7,FALSE)*($B46/(1-$B$347)) -> 0 | E46: =VLOOKUP($A46,Working!$B$2:$L$339,10,FALSE)*($B46/(1-$B$347)) -> 0 | F46: =(VLOOKUP($A46,Working!$B$2:$O$339,11,FALSE)/(VLOOKUP($A46,Working!$B$2:$O$339,12,FALSE)/1000))*($B46/(1-$B$347)) -> 0
A47: Bromsgrove | B47: 0 | C47: =VLOOKUP($A47,Working!$B$2:$O$339,4,FALSE)*($B47/(1-$B$347)) -> 0 | D47: =VLOOKUP($A47,Working!$B$2:$O$339,7,FALSE)*($B47/(1-$B$347)) -> 0 | E47: =VLOOKUP($A47,Working!$B$2:$L$339,10,FALSE)*($B47/(1-$B$347)) -> 0 | F47: =(VLOOKUP($A47,Working!$B$2:$O$339,11,FALSE)/(VLOOKUP($A47,Working!$B$2:$O$339,12,FALSE)/1000))*($B47/(1-$B$347)) -> 0
A48: Broxbourne | B48: 0 | C48: =VLOOKUP($A48,Working!$B$2:$O$339,4,FALSE)*($B48/(1-$B$347)) -> 0 | D48: =VLOOKUP($A48,Working!$B$2:$O$339,7,FALSE)*($B48/(1-$B$347)) -> 0 | E48: =VLOOKUP($A48,Working!$B$2:$L$339,10,FALSE)*($B48/(1-$B$347)) -> 0 | F48: =(VLOOKUP($A48,Working!$B$2:$O$339,11,FALSE)/(VLOOKUP($A48,Working!$B$2:$O$339,12,FALSE)/1000))*($B48/(1-$B$347)) -> 0
A49: Broxtowe | B49: 0 | C49: =VLOOKUP($A49,Working!$B$2:$O$339,4,FALSE)*($B49/(1-$B$347)) -> 0 | D49: =VLOOKUP($A49,Working!$B$2:$O$339,7,FALSE)*($B49/(1-$B$347)) -> 0 | E49: =VLOOKUP($A49,Working!$B$2:$L$339,10,FALSE)*($B49/(1-$B$347)) -> 0 | F49: =(VLOOKUP($A49,Working!$B$2:$O$339,11,FALSE)/(VLOOKUP($A49,Working!$B$2:$O$339,12,FALSE)/1000))*($B49/(1-$B$347)) -> 0
A50: Burnley | B50: 0 | C50: =VLOOKUP($A50,Working!$B$2:$O$339,4,FALSE)*($B50/(1-$B$347)) -> 0 | D50: =VLOOKUP($A50,Working!$B$2:$O$339,7,FALSE)*($B50/(1-$B$347)) -> 0 | E50: =VLOOKUP($A50,Working!$B$2:$L$339,10,FALSE)*($B50/(1-$B$347)) -> 0 | F50: =(VLOOKUP($A50,Working!$B$2:$O$339,11,FALSE)/(VLOOKUP($A50,Working!$B$2:$O$339,12,FALSE)/1000))*($B50/(1-$B$347)) -> 0
A51: Bury | B51: 0 | C51: =VLOOKUP($A51,Working!$B$2:$O$339,4,FALSE)*($B51/(1-$B$347)) -> 0 | D51: =VLOOKUP($A51,Working!$B$2:$O$339,7,FALSE)*($B51/(1-$B$347)) -> 0 | E51: =VLOOKUP($A51,Working!$B$2:$L$339,10,FALSE)*($B51/(1-$B$347)) -> 0 | F51: =(VLOOKUP($A51,Working!$B$2:$O$339,11,FALSE)/(VLOOKUP($A51,Working!$B$2:$O$339,12,FALSE)/1000))*($B51/(1-$B$347)) -> 0
A52: Calderdale | B52: 0 | C52: =VLOOKUP($A52,Working!$B$2:$O$339,4,FALSE)*($B52/(1-$B$347)) -> 0 | D52: =VLOOKUP($A52,Working!$B$2:$O$339,7,FALSE)*($B52/(1-$B$347)) -> 0 | E52: =VLOOKUP($A52,Working!$B$2:$L$339,10,FALSE)*($B52/(1-$B$347)) -> 0 | F52: =(VLOOKUP($A52,Working!$B$2:$O$339,11,FALSE)/(VLOOKUP($A52,Working!$B$2:$O$339,12,FALSE)/1000))*($B52/(1-$B$347)) -> 0
A53: Cambridge | B53: 0 | C53: =VLOOKUP($A53,Working!$B$2:$O$339,4,FALSE)*($B53/(1-$B$347)) -> 0 | D53: =VLOOKUP($A53,Working!$B$2:$O$339,7,FALSE)*($B53/(1-$B$347)) -> 0 | E53: =VLOOKUP($A53,Working!$B$2:$L$339,10,FALSE)*($B53/(1-$B$347)) -> 0 | F53: =(VLOOKUP($A53,Working!$B$2:$O$339,11,FALSE)/(VLOOKUP($A53,Working!$B$2:$O$339,12,FALSE)/1000))*($B53/(1-$B$347)) -> 0
A54: Camden | B54: 0 | C54: =VLOOKUP($A54,Working!$B$2:$O$339,4,FALSE)*($B54/(1-$B$347)) -> 0 | D54: =VLOOKUP($A54,Working!$B$2:$O$339,7,FALSE)*($B54/(1-$B$347)) -> 0 | E54: =VLOOKUP($A54,Working!$B$2:$L$339,10,FALSE)*($B54/(1-$B$347)) -> 0 | F54: =(VLOOKUP($A54,Working!$B$2:$O$339,11,FALSE)/(VLOOKUP($A54,Working!$B$2:$O$339,12,FALSE)/1000))*($B54/(1-$B$347)) -> 0
A55: Cannock Chase | B55: 0 | C55: =VLOOKUP($A55,Working!$B$2:$O$339,4,FALSE)*($B55/(1-$B$347)) -> 0 | D55: =VLOOKUP($A55,Working!$B$2:$O$339,7,FALSE)*($B55/(1-$B$347)) -> 0 | E55: =VLOOKUP($A55,Working!$B$2:$L$339,10,FALSE)*($B55/(1-$B$347)) -> 0 | F55: =(VLOOKUP($A55,Working!$B$2:$O$339,11,FALSE)/(VLOOKUP($A55,Working!$B$2:$O$339,12,FALSE)/1000))*($B55/(1-$B$347)) -> 0
A56: Canterbury | B56: 0 | C56: =VLOOKUP($A56,Working!$B$2:$O$339,4,FALSE)*($B56/(1-$B$347)) -> 0 | D56: =VLOOKUP($A56,Working!$B$2:$O$339,7,FALSE)*($B56/(1-$B$347)) -> 0 | E56: =VLOOKUP($A56,Working!$B$2:$L$339,10,FALSE)*($B56/(1-$B$347)) -> 0 | F56: =(VLOOKUP($A56,Working!$B$2:$O$339,11,FALSE)/(VLOOKUP($A56,Working!$B$2:$O$339,12,FALSE)/1000))*($B56/(1-$B$347)) -> 0
A57: Carlisle | B57: 0 | C57: =VLOOKUP($A57,Working!$B$2:$O$339,4,FALSE)*($B57/(1-$B$347)) -> 0 | D57: =VLOOKUP($A57,Working!$B$2:$O$339,7,FALSE)*($B57/(1-$B$347)) -> 0 | E57: =VLOOKUP($A57,Working!$B$2:$L$339,10,FALSE)*($B57/(1-$B$347)) -> 0 | F57: =(VLOOKUP($A57,Working!$B$2:$O$339,11,FALSE)/(VLOOKUP($A57,Working!$B$2:$O$339,12,FALSE)/1000))*($B57/(1-$B$347)) -> 0
A58: Castle Point | B58: 0 | C58: =VLOOKUP($A58,Working!$B$2:$O$339,4,FALSE)*($B58/(1-$B$347)) -> 0 | D58: =VLOOKUP($A58,Working!$B$2:$O$339,7,FALSE)*($B58/(1-$B$347)) -> 0 | E58: =VLOOKUP($A58,Working!$B$2:$L$339,10,FALSE)*($B58/(1-$B$347)) -> 0 | F58: =(VLOOKUP($A58,Working!$B$2:$O$339,11,FALSE)/(VLOOKUP($A58,Working!$B$2:$O$339,12,FALSE)/1000))*($B58/(1-$B$347)) -> 0
A59: Central Bedfordshire | B59: 0 | C59: =VLOOKUP($A59,Working!$B$2:$O$339,4,FALSE)*($B59/(1-$B$347)) -> 0 | D59: =VLOOKUP($A59,Working!$B$2:$O$339,7,FALSE)*($B59/(1-$B$347)) -> 0 | E59: =VLOOKUP($A59,Working!$B$2:$L$339,10,FALSE)*($B59/(1-$B$347)) -> 0 | F59: =(VLOOKUP($A59,Working!$B$2:$O$339,11,FALSE)/(VLOOKUP($A59,Working!$B$2:$O$339,12,FALSE)/1000))*($B59/(1-$B$347)) -> 0
A60: Charnwood | B60: 0 | C60: =VLOOKUP($A60,Working!$B$2:$O$339,4,FALSE)*($B60/(1-$B$347)) -> 0 | D60: =VLOOKUP($A60,Working!$B$2:$O$339,7,FALSE)*($B60/(1-$B$347)) -> 0 | E60: =VLOOKUP($A60,Working!$B$2:$L$339,10,FALSE)*($B60/(1-$B$347)) -> 0 | F60: =(VLOOKUP($A60,Working!$B$2:$O$339,11,FALSE)/(VLOOKUP($A60,Working!$B$2:$O$339,12,FALSE)/1000))*($B60/(1-$B$347)) -> 0
A61: Chelmsford | B61: 0 | C61: =VLOOKUP($A61,Working!$B$2:$O$339,4,FALSE)*($B61/(1-$B$347)) -> 0 | D61: =VLOOKUP($A61,Working!$B$2:$O$339,7,FALSE)*($B61/(1-$B$347)) -> 0 | E61: =VLOOKUP($A61,Working!$B$2:$L$339,10,FALSE)*($B61/(1-$B$347)) -> 0 | F61: =(VLOOKUP($A61,Working!$B$2:$O$339,11,FALSE)/(VLOOKUP($A61,Working!$B$2:$O$339,12,FALSE)/1000))*($B61/(1-$B$347)) -> 0
A62: Cheltenham | B62: 0 | C62: =VLOOKUP($A62,Working!$B$2:$O$339,4,FALSE)*($B62/(1-$B$347)) -> 0 | D62: =VLOOKUP($A62,Working!$B$2:$O$339,7,FALSE)*($B62/(1-$B$347)) -> 0 | E62: =VLOOKUP($A62,Working!$B$2:$L$339,10,FALSE)*($B62/(1-$B$347)) -> 0 | F62: =(VLOOKUP($A62,Working!$B$2:$O$339,11,FALSE)/(VLOOKUP($A62,Working!$B$2:$O$339,12,FALSE)/1000))*($B62/(1-$B$347)) -> 0
A63: Cherwell | B63: 0 | C63: =VLOOKUP($A63,Working!$B$2:$O$339,4,FALSE)*($B63/(1-$B$347)) -> 0 | D63: =VLOOKUP($A63,Working!$B$2:$O$339,7,FALSE)*($B63/(1-$B$347)) -> 0 | E63: =VLOOKUP($A63,Working!$B$2:$L$339,10,FALSE)*($B63/(1-$B$347)) -> 0 | F63: =(VLOOKUP($A63,Working!$B$2:$O$339,11,FALSE)/(VLOOKUP($A63,Working!$B$2:$O$339,12,FALSE)/1000))*($B63/(1-$B$347)) -> 0
A64: Cheshire East | B64: 0 | C64: =VLOOKUP($A64,Working!$B$2:$O$339,4,FALSE)*($B64/(1-$B$347)) -> 0 | D64: =VLOOKUP($A64,Working!$B$2:$O$339,7,FALSE)*($B64/(1-$B$347)) -> 0 | E64: =VLOOKUP($A64,Working!$B$2:$L$339,10,FALSE)*($B64/(1-$B$347)) -> 0 | F64: =(VLOOKUP($A64,Working!$B$2:$O$339,11,FALSE)/(VLOOKUP($A64,Working!$B$2:$O$339,12,FALSE)/1000))*($B64/(1-$B$347)) -> 0
A65: Cheshire West & Chester | B65: 0 | C65: =VLOOKUP($A65,Working!$B$2:$O$339,4,FALSE)*($B65/(1-$B$347)) -> 0 | D65: =VLOOKUP($A65,Working!$B$2:$O$339,7,FALSE)*($B65/(1-$B$347)) -> 0 | E65: =VLOOKUP($A65,Working!$B$2:$L$339,10,FALSE)*($B65/(1-$B$347)) -> 0 | F65: =(VLOOKUP($A65,Working!$B$2:$O$339,11,FALSE)/(VLOOKUP($A65,Working!$B$2:$O$339,12,FALSE)/1000))*($B65/(1-$B$347)) -> 0
A66: Chesterfield | B66: 0 | C66: =VLOOKUP($A66,Working!$B$2:$O$339,4,FALSE)*($B66/(1-$B$347)) -> 0 | D66: =VLOOKUP($A66,Working!$B$2:$O$339,7,FALSE)*($B66/(1-$B$347)) -> 0 | E66: =VLOOKUP($A66,Working!$B$2:$L$339,10,FALSE)*($B66/(1-$B$347)) -> 0 | F66: =(VLOOKUP($A66,Working!$B$2:$O$339,11,FALSE)/(VLOOKUP($A66,Working!$B$2:$O$339,12,FALSE)/1000))*($B66/(1-$B$347)) -> 0
A67: Chichester | B67: 0 | C67: =VLOOKUP($A67,Working!$B$2:$O$339,4,FALSE)*($B67/(1-$B$347)) -> 0 | D67: =VLOOKUP($A67,Working!$B$2:$O$339,7,FALSE)*($B67/(1-$B$347)) -> 0 | E67: =VLOOKUP($A67,Working!$B$2:$L$339,10,FALSE)*($B67/(1-$B$347)) -> 0 | F67: =(VLOOKUP($A67,Working!$B$2:$O$339,11,FALSE)/(VLOOKUP($A67,Working!$B$2:$O$339,12,FALSE)/1000))*($B67/(1-$B$347)) -> 0
A68: Chiltern | B68: 0 | C68: =VLOOKUP($A68,Working!$B$2:$O$339,4,FALSE)*($B68/(1-$B$347)) -> 0 | D68: =VLOOKUP($A68,Working!$B$2:$O$339,7,FALSE)*($B68/(1-$B$347)) -> 0 | E68: =VLOOKUP($A68,Working!$B$2:$L$339,10,FALSE)*($B68/(1-$B$347)) -> 0 | F68: =(VLOOKUP($A68,Working!$B$2:$O$339,11,FALSE)/(VLOOKUP($A68,Working!$B$2:$O$339,12,FALSE)/1000))*($B68/(1-$B$347)) -> 0
A69: Chorley | B69: 0 | C69: =VLOOKUP($A69,Working!$B$2:$O$339,4,FALSE)*($B69/(1-$B$347)) -> 0 | D69: =VLOOKUP($A69,Working!$B$2:$O$339,7,FALSE)*($B69/(1-$B$347)) -> 0 | E69: =VLOOKUP($A69,Working!$B$2:$L$339,10,FALSE)*($B69/(1-$B$347)) -> 0 | F69: =(VLOOKUP($A69,Working!$B$2:$O$339,11,FALSE)/(VLOOKUP($A69,Working!$B$2:$O$339,12,FALSE)/1000))*($B69/(1-$B$347)) -> 0
A70: Christchurch | B70: 0 | C70: =VLOOKUP($A70,Working!$B$2:$O$339,4,FALSE)*($B70/(1-$B$347)) -> 0 | D70: =VLOOKUP($A70,Working!$B$2:$O$339,7,FALSE)*($B70/(1-$B$347)) -> 0 | E70: =VLOOKUP($A70,Working!$B$2:$L$339,10,FALSE)*($B70/(1-$B$347)) -> 0 | F70: =(VLOOKUP($A70,Working!$B$2:$O$339,11,FALSE)/(VLOOKUP($A70,Working!$B$2:$O$339,12,FALSE)/1000))*($B70/(1-$B$347)) -> 0
A71: City of London | B71: 0 | C71: =VLOOKUP($A71,Working!$B$2:$O$339,4,FALSE)*($B71/(1-$B$347)) -> 0 | D71: =VLOOKUP($A71,Working!$B$2:$O$339,7,FALSE)*($B71/(1-$B$347)) -> 0 | E71: =VLOOKUP($A71,Working!$B$2:$L$339,10,FALSE)*($B71/(1-$B$347)) -> 0 | F71: =(VLOOKUP($A71,Working!$B$2:$O$339,11,FALSE)/(VLOOKUP($A71,Working!$B$2:$O$339,12,FALSE)/1000))*($B71/(1-$B$347)) -> 0
A72: Colchester | B72: 0 | C72: =VLOOKUP($A72,Working!$B$2:$O$339,4,FALSE)*($B72/(1-$B$347)) -> 0 | D72: =VLOOKUP($A72,Working!$B$2:$O$339,7,FALSE)*($B72/(1-$B$347)) -> 0 | E72: =VLOOKUP($A72,Working!$B$2:$L$339,10,FALSE)*($B72/(1-$B$347)) -> 0 | F72: =(VLOOKUP($A72,Working!$B$2:$O$339,11,FALSE)/(VLOOKUP($A72,Working!$B$2:$O$339,12,FALSE)/1000))*($B72/(1-$B$347)) -> 0
A73: Copeland | B73: 0 | C73: =VLOOKUP($A73,Working!$B$2:$O$339,4,FALSE)*($B73/(1-$B$347)) -> 0 | D73: =VLOOKUP($A73,Working!$B$2:$O$339,7,FALSE)*($B73/(1-$B$347)) -> 0 | E73: =VLOOKUP($A73,Working!$B$2:$L$339,10,FALSE)*($B73/(1-$B$347)) -> 0 | F73: =(VLOOKUP($A73,Working!$B$2:$O$339,11,FALSE)/(VLOOKUP($A73,Working!$B$2:$O$339,12,FALSE)/1000))*($B73/(1-$B$347)) -> 0
A74: Corby | B74: 0 | C74: =VLOOKUP($A74,Working!$B$2:$O$339,4,FALSE)*($B74/(1-$B$347)) -> 0 | D74: =VLOOKUP($A74,Working!$B$2:$O$339,7,FALSE)*($B74/(1-$B$347)) -> 0 | E74: =VLOOKUP($A74,Working!$B$2:$L$339,10,FALSE)*($B74/(1-$B$347)) -> 0 | F74: =(VLOOKUP($A74,Working!$B$2:$O$339,11,FALSE)/(VLOOKUP($A74,Working!$B$2:$O$339,12,FALSE)/1000))*($B74/(1-$B$347)) -> 0
A75: Cornwall | B75: 0 | C75: =VLOOKUP($A75,Working!$B$2:$O$339,4,FALSE)*($B75/(1-$B$347)) -> 0 | D75: =VLOOKUP($A75,Working!$B$2:$O$339,7,FALSE)*($B75/(1-$B$347)) -> 0 | E75: =VLOOKUP($A75,Working!$B$2:$L$339,10,FALSE)*($B75/(1-$B$347)) -> 0 | F75: =(VLOOKUP($A75,Working!$B$2:$O$339,11,FALSE)/(VLOOKUP($A75,Working!$B$2:$O$339,12,FALSE)/1000))*($B75/(1-$B$347)) -> 0
A76: Cotswold | B76: 0 | C76: =VLOOKUP($A76,Working!$B$2:$O$339,4,FALSE)*($B76/(1-$B$347)) -> 0 | D76: =VLOOKUP($A76,Working!$B$2:$O$339,7,FALSE)*($B76/(1-$B$347)) -> 0 | E76: =VLOOKUP($A76,Working!$B$2:$L$339,10,FALSE)*($B76/(1-$B$347)) -> 0 | F76: =(VLOOKUP($A76,Working!$B$2:$O$339,11,FALSE)/(VLOOKUP($A76,Working!$B$2:$O$339,12,FALSE)/1000))*($B76/(1-$B$347)) -> 0
A77: County Durham | B77: 0 | C77: =VLOOKUP($A77,Working!$B$2:$O$339,4,FALSE)*($B77/(1-$B$347)) -> 0 | D77: =VLOOKUP($A77,Working!$B$2:$O$339,7,FALSE)*($B77/(1-$B$347)) -> 0 | E77: =VLOOKUP($A77,Working!$B$2:$L$339,10,FALSE)*($B77/(1-$B$347)) -> 0 | F77: =(VLOOKUP($A77,Working!$B$2:$O$339,11,FALSE)/(VLOOKUP($A77,Working!$B$2:$O$339,12,FALSE)/1000))*($B77/(1-$B$347)) -> 0
A78: Coventry | B78: 0 | C78: =VLOOKUP($A78,Working!$B$2:$O$339,4,FALSE)*($B78/(1-$B$347)) -> 0 | D78: =VLOOKUP($A78,Working!$B$2:$O$339,7,FALSE)*($B78/(1-$B$347)) -> 0 | E78: =VLOOKUP($A78,Working!$B$2:$L$339,10,FALSE)*($B78/(1-$B$347)) -> 0 | F78: =(VLOOKUP($A78,Working!$B$2:$O$339,11,FALSE)/(VLOOKUP($A78,Working!$B$2:$O$339,12,FALSE)/1000))*($B78/(1-$B$347)) -> 0
A79: Craven | B79: 0 | C79: =VLOOKUP($A79,Working!$B$2:$O$339,4,FALSE)*($B79/(1-$B$347)) -> 0 | D79: =VLOOKUP($A79,Working!$B$2:$O$339,7,FALSE)*($B79/(1-$B$347)) -> 0 | E79: =VLOOKUP($A79,Working!$B$2:$L$339,10,FALSE)*($B79/(1-$B$347)) -> 0 | F79: =(VLOOKUP($A79,Working!$B$2:$O$339,11,FALSE)/(VLOOKUP($A79,Working!$B$2:$O$339,12,FALSE)/1000))*($B79/(1-$B$347)) -> 0
A80: Crawley | B80: 0 | C80: =VLOOKUP($A80,Working!$B$2:$O$339,4,FALSE)*($B80/(1-$B$347)) -> 0 | D80: =VLOOKUP($A80,Working!$B$2:$O$339,7,FALSE)*($B80/(1-$B$347)) -> 0 | E80: =VLOOKUP($A80,Working!$B$2:$L$339,10,FALSE)*($B80/(1-$B$347)) -> 0 | F80: =(VLOOKUP($A80,Working!$B$2:$O$339,11,FALSE)/(VLOOKUP($A80,Working!$B$2:$O$339,12,FALSE)/1000))*($B80/(1-$B$347)) -> 0
A81: Croydon | B81: 0 | C81: =VLOOKUP($A81,Working!$B$2:$O$339,4,FALSE)*($B81/(1-$B$347)) -> 0 | D81: =VLOOKUP($A81,Working!$B$2:$O$339,7,FALSE)*($B81/(1-$B$347)) -> 0 | E81: =VLOOKUP($A81,Working!$B$2:$L$339,10,FALSE)*($B81/(1-$B$347)) -> 0 | F81: =(VLOOKUP($A81,Working!$B$2:$O$339,11,FALSE)/(VLOOKUP($A81,Working!$B$2:$O$339,12,FALSE)/1000))*($B81/(1-$B$347)) -> 0
A82: Dacorum | B82: 0 | C82: =VLOOKUP($A82,Working!$B$2:$O$339,4,FALSE)*($B82/(1-$B$347)) -> 0 | D82: =VLOOKUP($A82,Working!$B$2:$O$339,7,FALSE)*($B82/(1-$B$347)) -> 0 | E82: =VLOOKUP($A82,Working!$B$2:$L$339,10,FALSE)*($B82/(1-$B$347)) -> 0 | F82: =(VLOOKUP($A82,Working!$B$2:$O$339,11,FALSE)/(VLOOKUP($A82,Working!$B$2:$O$339,12,FALSE)/1000))*($B82/(1-$B$347)) -> 0
A83: Darlington | B83: 0 | C83: =VLOOKUP($A83,Working!$B$2:$O$339,4,FALSE)*($B83/(1-$B$347)) -> 0 | D83: =VLOOKUP($A83,Working!$B$2:$O$339,7,FALSE)*($B83/(1-$B$347)) -> 0 | E83: =VLOOKUP($A83,Working!$B$2:$L$339,10,FALSE)*($B83/(1-$B$347)) -> 0 | F83: =(VLOOKUP($A83,Working!$B$2:$O$339,11,FALSE)/(VLOOKUP($A83,Working!$B$2:$O$339,12,FALSE)/1000))*($B83/(1-$B$347)) -> 0
A84: Dartford | B84: 0 | C84: =VLOOKUP($A84,Working!$B$2:$O$339,4,FALSE)*($B84/(1-$B$347)) -> 0 | D84: =VLOOKUP($A84,Working!$B$2:$O$339,7,FALSE)*($B84/(1-$B$347)) -> 0 | E84: =VLOOKUP($A84,Working!$B$2:$L$339,10,FALSE)*($B84/(1-$B$347)) -> 0 | F84: =(VLOOKUP($A84,Working!$B$2:$O$339,11,FALSE)/(VLOOKUP($A84,Working!$B$2:$O$339,12,FALSE)/1000))*($B84/(1-$B$347)) -> 0
A85: Daventry | B85: 0 | C85: =VLOOKUP($A85,Working!$B$2:$O$339,4,FALSE)*($B85/(1-$B$347)) -> 0 | D85: =VLOOKUP($A85,Working!$B$2:$O$339,7,FALSE)*($B85/(1-$B$347)) -> 0 | E85: =VLOOKUP($A85,Working!$B$2:$L$339,10,FALSE)*($B85/(1-$B$347)) -> 0 | F85: =(VLOOKUP($A85,Working!$B$2:$O$339,11,FALSE)/(VLOOKUP($A85,Working!$B$2:$O$339,12,FALSE)/1000))*($B85/(1-$B$347)) -> 0
A86: Derby | B86: 0 | C86: =VLOOKUP($A86,Working!$B$2:$O$339,4,FALSE)*($B86/(1-$B$347)) -> 0 | D86: =VLOOKUP($A86,Working!$B$2:$O$339,7,FALSE)*($B86/(1-$B$347)) -> 0 | E86: =VLOOKUP($A86,Working!$B$2:$L$339,10,FALSE)*($B86/(1-$B$347)) -> 0 | F86: =(VLOOKUP($A86,Working!$B$2:$O$339,11,FALSE)/(VLOOKUP($A86,Working!$B$2:$O$339,12,FALSE)/1000))*($B86/(1-$B$347)) -> 0
A87: Derbyshire Dales | B87: 0 | C87: =VLOOKUP($A87,Working!$B$2:$O$339,4,FALSE)*($B87/(1-$B$347)) -> 0 | D87: =VLOOKUP($A87,Working!$B$2:$O$339,7,FALSE)*($B87/(1-$B$347)) -> 0 | E87: =VLOOKUP($A87,Working!$B$2:$L$339,10,FALSE)*($B87/(1-$B$347)) -> 0 | F87: =(VLOOKUP($A87,Working!$B$2:$O$339,11,FALSE)/(VLOOKUP($A87,Working!$B$2:$O$339,12,FALSE)/1000))*($B87/(1-$B$347)) -> 0
A88: Doncaster | B88: 0 | C88: =VLOOKUP($A88,Working!$B$2:$O$339,4,FALSE)*($B88/(1-$B$347)) -> 0 | D88: =VLOOKUP($A88,Working!$B$2:$O$339,7,FALSE)*($B88/(1-$B$347)) -> 0 | E88: =VLOOKUP($A88,Working!$B$2:$L$339,10,FALSE)*($B88/(1-$B$347)) -> 0 | F88: =(VLOOKUP($A88,Working!$B$2:$O$339,11,FALSE)/(VLOOKUP($A88,Working!$B$2:$O$339,12,FALSE)/1000))*($B88/(1-$B$347)) -> 0
A89: Dover | B89: 0 | C89: =VLOOKUP($A89,Working!$B$2:$O$339,4,FALSE)*($B89/(1-$B$347)) -> 0 | D89: =VLOOKUP($A89,Working!$B$2:$O$339,7,FALSE)*($B89/(1-$B$347)) -> 0 | E89: =VLOOKUP($A89,Working!$B$2:$L$339,10,FALSE)*($B89/(1-$B$347)) -> 0 | F89: =(VLOOKUP($A89,Working!$B$2:$O$339,11,FALSE)/(VLOOKUP($A89,Working!$B$2:$O$339,12,FALSE)/1000))*($B89/(1-$B$347)) -> 0
A90: Dudley | B90: 0 | C90: =VLOOKUP($A90,Working!$B$2:$O$339,4,FALSE)*($B90/(1-$B$347)) -> 0 | D90: =VLOOKUP($A90,Working!$B$2:$O$339,7,FALSE)*($B90/(1-$B$347)) -> 0 | E90: =VLOOKUP($A90,Working!$B$2:$L$339,10,FALSE)*($B90/(1-$B$347)) -> 0 | F90: =(VLOOKUP($A90,Working!$B$2:$O$339,11,FALSE)/(VLOOKUP($A90,Working!$B$2:$O$339,12,FALSE)/1000))*($B90/(1-$B$347)) -> 0
A91: Ealing | B91: 0 | C91: =VLOOKUP($A91,Working!$B$2:$O$339,4,FALSE)*($B91/(1-$B$347)) -> 0 | D91: =VLOOKUP($A91,Working!$B$2:$O$339,7,FALSE)*($B91/(1-$B$347)) -> 0 | E91: =VLOOKUP($A91,Working!$B$2:$L$339,10,FALSE)*($B91/(1-$B$347)) -> 0 | F91: =(VLOOKUP($A91,Working!$B$2:$O$339,11,FALSE)/(VLOOKUP($A91,Working!$B$2:$O$339,12,FALSE)/1000))*($B91/(1-$B$347)) -> 0
A92: East Cambridgeshire | B92: 0 | C92: =VLOOKUP($A92,Working!$B$2:$O$339,4,FALSE)*($B92/(1-$B$347)) -> 0 | D92: =VLOOKUP($A92,Working!$B$2:$O$339,7,FALSE)*($B92/(1-$B$347)) -> 0 | E92: =VLOOKUP($A92,Working!$B$2:$L$339,10,FALSE)*($B92/(1-$B$347)) -> 0 | F92: =(VLOOKUP($A92,Working!$B$2:$O$339,11,FALSE)/(VLOOKUP($A92,Working!$B$2:$O$339,12,FALSE)/1000))*($B92/(1-$B$347)) -> 0
A93: East Devon | B93: 0 | C93: =VLOOKUP($A93,Working!$B$2:$O$339,4,FALSE)*($B93/(1-$B$347)) -> 0 | D93: =VLOOKUP($A93,Working!$B$2:$O$339,7,FALSE)*($B93/(1-$B$347)) -> 0 | E93: =VLOOKUP($A93,Working!$B$2:$L$339,10,FALSE)*($B93/(1-$B$347)) -> 0 | F93: =(VLOOKUP($A93,Working!$B$2:$O$339,11,FALSE)/(VLOOKUP($A93,Working!$B$2:$O$339,12,FALSE)/1000))*($B93/(1-$B$347)) -> 0
A94: East Dorset | B94: 0 | C94: =VLOOKUP($A94,Working!$B$2:$O$339,4,FALSE)*($B94/(1-$B$347)) -> 0 | D94: =VLOOKUP($A94,Working!$B$2:$O$339,7,FALSE)*($B94/(1-$B$347)) -> 0 | E94: =VLOOKUP($A94,Working!$B$2:$L$339,10,FALSE)*($B94/(1-$B$347)) -> 0 | F94: =(VLOOKUP($A94,Working!$B$2:$O$339,11,FALSE)/(VLOOKUP($A94,Working!$B$2:$O$339,12,FALSE)/1000))*($B94/(1-$B$347)) -> 0
A95: East Hampshire | B95: 0 | C95: =VLOOKUP($A95,Working!$B$2:$O$339,4,FALSE)*($B95/(1-$B$347)) -> 0 | D95: =VLOOKUP($A95,Working!$B$2:$O$339,7,FALSE)*($B95/(1-$B$347)) -> 0 | E95: =VLOOKUP($A95,Working!$B$2:$L$339,10,FALSE)*($B95/(1-$B$347)) -> 0 | F95: =(VLOOKUP($A95,Working!$B$2:$O$339,11,FALSE)/(VLOOKUP($A95,Working!$B$2:$O$339,12,FALSE)/1000))*($B95/(1-$B$347)) -> 0
A96: East Hertfordshire | B96: 0 | C96: =VLOOKUP($A96,Working!$B$2:$O$339,4,FALSE)*($B96/(1-$B$347)) -> 0 | D96: =VLOOKUP($A96,Working!$B$2:$O$339,7,FALSE)*($B96/(1-$B$347)) -> 0 | E96: =VLOOKUP($A96,Working!$B$2:$L$339,10,FALSE)*($B96/(1-$B$347)) -> 0 | F96: =(VLOOKUP($A96,Working!$B$2:$O$339,11,FALSE)/(VLOOKUP($A96,Working!$B$2:$O$339,12,FALSE)/1000))*($B96/(1-$B$347)) -> 0
A97: East Lindsey | B97: 0 | C97: =VLOOKUP($A97,Working!$B$2:$O$339,4,FALSE)*($B97/(1-$B$347)) -> 0 | D97: =VLOOKUP($A97,Working!$B$2:$O$339,7,FALSE)*($B97/(1-$B$347)) -> 0 | E97: =VLOOKUP($A97,Working!$B$2:$L$339,10,FALSE)*($B97/(1-$B$347)) -> 0 | F97: =(VLOOKUP($A97,Working!$B$2:$O$339,11,FALSE)/(VLOOKUP($A97,Working!$B$2:$O$339,12,FALSE)/1000))*($B97/(1-$B$347)) -> 0
A98: East Northamptonshire | B98: 0 | C98: =VLOOKUP($A98,Working!$B$2:$O$339,4,FALSE)*($B98/(1-$B$347)) -> 0 | D98: =VLOOKUP($A98,Working!$B$2:$O$339,7,FALSE)*($B98/(1-$B$347)) -> 0 | E98: =VLOOKUP($A98,Working!$B$2:$L$339,10,FALSE)*($B98/(1-$B$347)) -> 0 | F98: =(VLOOKUP($A98,Working!$B$2:$O$339,11,FALSE)/(VLOOKUP($A98,Working!$B$2:$O$339,12,FALSE)/1000))*($B98/(1-$B$347)) -> 0
A99: East Riding of Yorkshire | B99: 0 | C99: =VLOOKUP($A99,Working!$B$2:$O$339,4,FALSE)*($B99/(1-$B$347)) -> 0 | D99: =VLOOKUP($A99,Working!$B$2:$O$339,7,FALSE)*($B99/(1-$B$347)) -> 0 | E99: =VLOOKUP($A99,Working!$B$2:$L$339,10,FALSE)*($B99/(1-$B$347)) -> 0 | F99: =(VLOOKUP($A99,Working!$B$2:$O$339,11,FALSE)/(VLOOKUP($A99,Working!$B$2:$O$339,12,FALSE)/1000))*($B99/(1-$B$347)) -> 0
A100: East Staffordshire | B100: 0 | C100: =VLOOKUP($A100,Working!$B$2:$O$339,4,FALSE)*($B100/(1-$B$347)) -> 0 | D100: =VLOOKUP($A100,Working!$B$2:$O$339,7,FALSE)*($B100/(1-$B$347)) -> 0 | E100: =VLOOKUP($A100,Working!$B$2:$L$339,10,FALSE)*($B100/(1-$B$347)) -> 0 | F100: =(VLOOKUP($A100,Working!$B$2:$O$339,11,FALSE)/(VLOOKUP($A100,Working!$B$2:$O$339,12,FALSE)/1000))*($B100/(1-$B$347)) -> 0
A101: Eastbourne | B101: 0 | C101: =VLOOKUP($A101,Working!$B$2:$O$339,4,FALSE)*($B101/(1-$B$347)) -> 0 | D101: =VLOOKUP($A101,Working!$B$2:$O$339,7,FALSE)*($B101/(1-$B$347)) -> 0 | E101: =VLOOKUP($A101,Working!$B$2:$L$339,10,FALSE)*($B101/(1-$B$347)) -> 0 | F101: =(VLOOKUP($A101,Working!$B$2:$O$339,11,FALSE)/(VLOOKUP($A101,Working!$B$2:$O$339,12,FALSE)/1000))*($B101/(1-$B$347)) -> 0
A102: Eastleigh | B102: 0 | C102: =VLOOKUP($A102,Working!$B$2:$O$339,4,FALSE)*($B102/(1-$B$347)) -> 0 | D102: =VLOOKUP($A102,Working!$B$2:$O$339,7,FALSE)*($B102/(1-$B$347)) -> 0 | E102: =VLOOKUP($A102,Working!$B$2:$L$339,10,FALSE)*($B102/(1-$B$347)) -> 0 | F102: =(VLOOKUP($A102,Working!$B$2:$O$339,11,FALSE)/(VLOOKUP($A102,Working!$B$2:$O$339,12,FALSE)/1000))*($B102/(1-$B$347)) -> 0
A103: Eden | B103: 0 | C103: =VLOOKUP($A103,Working!$B$2:$O$339,4,FALSE)*($B103/(1-$B$347)) -> 0 | D103: =VLOOKUP($A103,Working!$B$2:$O$339,7,FALSE)*($B103/(1-$B$347)) -> 0 | E103: =VLOOKUP($A103,Working!$B$2:$L$339,10,FALSE)*($B103/(1-$B$347)) -> 0 | F103: =(VLOOKUP($A103,Working!$B$2:$O$339,11,FALSE)/(VLOOKUP($A103,Working!$B$2:$O$339,12,FALSE)/1000))*($B103/(1-$B$347)) -> 0
A104: Elmbridge | B104: 0 | C104: =VLOOKUP($A104,Working!$B$2:$O$339,4,FALSE)*($B104/(1-$B$347)) -> 0 | D104: =VLOOKUP($A104,Working!$B$2:$O$339,7,FALSE)*($B104/(1-$B$347)) -> 0 | E104: =VLOOKUP($A104,Working!$B$2:$L$339,10,FALSE)*($B104/(1-$B$347)) -> 0 | F104: =(VLOOKUP($A104,Working!$B$2:$O$339,11,FALSE)/(VLOOKUP($A104,Working!$B$2:$O$339,12,FALSE)/1000))*($B104/(1-$B$347)) -> 0
A105: Enfield | B105: 0 | C105: =VLOOKUP($A105,Working!$B$2:$O$339,4,FALSE)*($B105/(1-$B$347)) -> 0 | D105: =VLOOKUP($A105,Working!$B$2:$O$339,7,FALSE)*($B105/(1-$B$347)) -> 0 | E105: =VLOOKUP($A105,Working!$B$2:$L$339,10,FALSE)*($B105/(1-$B$347)) -> 0 | F105: =(VLOOKUP($A105,Working!$B$2:$O$339,11,FALSE)/(VLOOKUP($A105,Working!$B$2:$O$339,12,FALSE)/1000))*($B105/(1-$B$347)) -> 0
A106: Epping Forest | B106: 0 | C106: =VLOOKUP($A106,Working!$B$2:$O$339,4,FALSE)*($B106/(1-$B$347)) -> 0 | D106: =VLOOKUP($A106,Working!$B$2:$O$339,7,FALSE)*($B106/(1-$B$347)) -> 0 | E106: =VLOOKUP($A106,Working!$B$2:$L$339,10,FALSE)*($B106/(1-$B$347)) -> 0 | F106: =(VLOOKUP($A106,Working!$B$2:$O$339,11,FALSE)/(VLOOKUP($A106,Working!$B$2:$O$339,12,FALSE)/1000))*($B106/(1-$B$347)) -> 0
A107: Epsom and Ewell | B107: 0 | C107: =VLOOKUP($A107,Working!$B$2:$O$339,4,FALSE)*($B107/(1-$B$347)) -> 0 | D107: =VLOOKUP($A107,Working!$B$2:$O$339,7,FALSE)*($B107/(1-$B$347)) -> 0 | E107: =VLOOKUP($A107,Working!$B$2:$L$339,10,FALSE)*($B107/(1-$B$347)) -> 0 | F107: =(VLOOKUP($A107,Working!$B$2:$O$339,11,FALSE)/(VLOOKUP($A107,Working!$B$2:$O$339,12,FALSE)/1000))*($B107/(1-$B$347)) -> 0
A108: Erewash | B108: 0 | C108: =VLOOKUP($A108,Working!$B$2:$O$339,4,FALSE)*($B108/(1-$B$347)) -> 0 | D108: =VLOOKUP($A108,Working!$B$2:$O$339,7,FALSE)*($B108/(1-$B$347)) -> 0 | E108: =VLOOKUP($A108,Working!$B$2:$L$339,10,FALSE)*($B108/(1-$B$347)) -> 0 | F108: =(VLOOKUP($A108,Working!$B$2:$O$339,11,FALSE)/(VLOOKUP($A108,Working!$B$2:$O$339,12,FALSE)/1000))*($B108/(1-$B$347)) -> 0
A109: Exeter | B109: 0 | C109: =VLOOKUP($A109,Working!$B$2:$O$339,4,FALSE)*($B109/(1-$B$347)) -> 0 | D109: =VLOOKUP($A109,Working!$B$2:$O$339,7,FALSE)*($B109/(1-$B$347)) -> 0 | E109: =VLOOKUP($A109,Working!$B$2:$L$339,10,FALSE)*($B109/(1-$B$347)) -> 0 | F109: =(VLOOKUP($A109,Working!$B$2:$O$339,11,FALSE)/(VLOOKUP($A109,Working!$B$2:$O$339,12,FALSE)/1000))*($B109/(1-$B$347)) -> 0
A110: Fareham | B110: 0 | C110: =VLOOKUP($A110,Working!$B$2:$O$339,4,FALSE)*($B110/(1-$B$347)) -> 0 | D110: =VLOOKUP($A110,Working!$B$2:$O$339,7,FALSE)*($B110/(1-$B$347)) -> 0 | E110: =VLOOKUP($A110,Working!$B$2:$L$339,10,FALSE)*($B110/(1-$B$347)) -> 0 | F110: =(VLOOKUP($A110,Working!$B$2:$O$339,11,FALSE)/(VLOOKUP($A110,Working!$B$2:$O$339,12,FALSE)/1000))*($B110/(1-$B$347)) -> 0
A111: Fenland | B111: 0 | C111: =VLOOKUP($A111,Working!$B$2:$O$339,4,FALSE)*($B111/(1-$B$347)) -> 0 | D111: =VLOOKUP($A111,Working!$B$2:$O$339,7,FALSE)*($B111/(1-$B$347)) -> 0 | E111: =VLOOKUP($A111,Working!$B$2:$L$339,10,FALSE)*($B111/(1-$B$347)) -> 0 | F111: =(VLOOKUP($A111,Working!$B$2:$O$339,11,FALSE)/(VLOOKUP($A111,Working!$B$2:$O$339,12,FALSE)/1000))*($B111/(1-$B$347)) -> 0
A112: Forest Heath | B112: 0 | C112: =VLOOKUP($A112,Working!$B$2:$O$339,4,FALSE)*($B112/(1-$B$347)) -> 0 | D112: =VLOOKUP($A112,Working!$B$2:$O$339,7,FALSE)*($B112/(1-$B$347)) -> 0 | E112: =VLOOKUP($A112,Working!$B$2:$L$339,10,FALSE)*($B112/(1-$B$347)) -> 0 | F112: =(VLOOKUP($A112,Working!$B$2:$O$339,11,FALSE)/(VLOOKUP($A112,Working!$B$2:$O$339,12,FALSE)/1000))*($B112/(1-$B$347)) -> 0
A113: Forest of Dean | B113: 0 | C113: =VLOOKUP($A113,Working!$B$2:$O$339,4,FALSE)*($B113/(1-$B$347)) -> 0 | D113: =VLOOKUP($A113,Working!$B$2:$O$339,7,FALSE)*($B113/(1-$B$347)) -> 0 | E113: =VLOOKUP($A113,Working!$B$2:$L$339,10,FALSE)*($B113/(1-$B$347)) -> 0 | F113: =(VLOOKUP($A113,Working!$B$2:$O$339,11,FALSE)/(VLOOKUP($A113,Working!$B$2:$O$339,12,FALSE)/1000))*($B113/(1-$B$347)) -> 0
A114: Fylde | B114: 0 | C114: =VLOOKUP($A114,Working!$B$2:$O$339,4,FALSE)*($B114/(1-$B$347)) -> 0 | D114: =VLOOKUP($A114,Working!$B$2:$O$339,7,FALSE)*($B114/(1-$B$347)) -> 0 | E114: =VLOOKUP($A114,Working!$B$2:$L$339,10,FALSE)*($B114/(1-$B$347)) -> 0 | F114: =(VLOOKUP($A114,Working!$B$2:$O$339,11,FALSE)/(VLOOKUP($A114,Working!$B$2:$O$339,12,FALSE)/1000))*($B114/(1-$B$347)) -> 0
A115: Gateshead | B115: 0 | C115: =VLOOKUP($A115,Working!$B$2:$O$339,4,FALSE)*($B115/(1-$B$347)) -> 0 | D115: =VLOOKUP($A115,Working!$B$2:$O$339,7,FALSE)*($B115/(1-$B$347)) -> 0 | E115: =VLOOKUP($A115,Working!$B$2:$L$339,10,FALSE)*($B115/(1-$B$347)) -> 0 | F115: =(VLOOKUP($A115,Working!$B$2:$O$339,11,FALSE)/(VLOOKUP($A115,Working!$B$2:$O$339,12,FALSE)/1000))*($B115/(1-$B$347)) -> 0
A116: Gedling | B116: 0 | C116: =VLOOKUP($A116,Working!$B$2:$O$339,4,FALSE)*($B116/(1-$B$347)) -> 0 | D116: =VLOOKUP($A116,Working!$B$2:$O$339,7,FALSE)*($B116/(1-$B$347)) -> 0 | E116: =VLOOKUP($A116,Working!$B$2:$L$339,10,FALSE)*($B116/(1-$B$347)) -> 0 | F116: =(VLOOKUP($A116,Working!$B$2:$O$339,11,FALSE)/(VLOOKUP($A116,Working!$B$2:$O$339,12,FALSE)/1000))*($B116/(1-$B$347)) -> 0
A117: Gloucester | B117: 0 | C117: =VLOOKUP($A117,Working!$B$2:$O$339,4,FALSE)*($B117/(1-$B$347)) -> 0 | D117: =VLOOKUP($A117,Working!$B$2:$O$339,7,FALSE)*($B117/(1-$B$347)) -> 0 | E117: =VLOOKUP($A117,Working!$B$2:$L$339,10,FALSE)*($B117/(1-$B$347)) -> 0 | F117: =(VLOOKUP($A117,Working!$B$2:$O$339,11,FALSE)/(VLOOKUP($A117,Working!$B$2:$O$339,12,FALSE)/1000))*($B117/(1-$B$347)) -> 0
A118: Gosport | B118: 0 | C118: =VLOOKUP($A118,Working!$B$2:$O$339,4,FALSE)*($B118/(1-$B$347)) -> 0 | D118: =VLOOKUP($A118,Working!$B$2:$O$339,7,FALSE)*($B118/(1-$B$347)) -> 0 | E118: =VLOOKUP($A118,Working!$B$2:$L$339,10,FALSE)*($B118/(1-$B$347)) -> 0 | F118: =(VLOOKUP($A118,Working!$B$2:$O$339,11,FALSE)/(VLOOKUP($A118,Working!$B$2:$O$339,12,FALSE)/1000))*($B118/(1-$B$347)) -> 0
A119: Gravesham | B119: 0 | C119: =VLOOKUP($A119,Working!$B$2:$O$339,4,FALSE)*($B119/(1-$B$347)) -> 0 | D119: =VLOOKUP($A119,Working!$B$2:$O$339,7,FALSE)*($B119/(1-$B$347)) -> 0 | E119: =VLOOKUP($A119,Working!$B$2:$L$339,10,FALSE)*($B119/(1-$B$347)) -> 0 | F119: =(VLOOKUP($A119,Working!$B$2:$O$339,11,FALSE)/(VLOOKUP($A119,Working!$B$2:$O$339,12,FALSE)/1000))*($B119/(1-$B$347)) -> 0
A120: Great Yarmouth | B120: 0 | C120: =VLOOKUP($A120,Working!$B$2:$O$339,4,FALSE)*($B120/(1-$B$347)) -> 0 | D120: =VLOOKUP($A120,Working!$B$2:$O$339,7,FALSE)*($B120/(1-$B$347)) -> 0 | E120: =VLOOKUP($A120,Working!$B$2:$L$339,10,FALSE)*($B120/(1-$B$347)) -> 0 | F120: =(VLOOKUP($A120,Working!$B$2:$O$339,11,FALSE)/(VLOOKUP($A120,Working!$B$2:$O$339,12,FALSE)/1000))*($B120/(1-$B$347)) -> 0
A121: Greenwich | B121: 0 | C121: =VLOOKUP($A121,Working!$B$2:$O$339,4,FALSE)*($B121/(1-$B$347)) -> 0 | D121: =VLOOKUP($A121,Working!$B$2:$O$339,7,FALSE)*($B121/(1-$B$347)) -> 0 | E121: =VLOOKUP($A121,Working!$B$2:$L$339,10,FALSE)*($B121/(1-$B$347)) -> 0 | F121: =(VLOOKUP($A121,Working!$B$2:$O$339,11,FALSE)/(VLOOKUP($A121,Working!$B$2:$O$339,12,FALSE)/1000))*($B121/(1-$B$347)) -> 0
A122: Guildford | B122: 0 | C122: =VLOOKUP($A122,Working!$B$2:$O$339,4,FALSE)*($B122/(1-$B$347)) -> 0 | D122: =VLOOKUP($A122,Working!$B$2:$O$339,7,FALSE)*($B122/(1-$B$347)) -> 0 | E122: =VLOOKUP($A122,Working!$B$2:$L$339,10,FALSE)*($B122/(1-$B$347)) -> 0 | F122: =(VLOOKUP($A122,Working!$B$2:$O$339,11,FALSE)/(VLOOKUP($A122,Working!$B$2:$O$339,12,FALSE)/1000))*($B122/(1-$B$347)) -> 0
A123: Hackney | B123: 0 | C123: =VLOOKUP($A123,Working!$B$2:$O$339,4,FALSE)*($B123/(1-$B$347)) -> 0 | D123: =VLOOKUP($A123,Working!$B$2:$O$339,7,FALSE)*($B123/(1-$B$347)) -> 0 | E123: =VLOOKUP($A123,Working!$B$2:$L$339,10,FALSE)*($B123/(1-$B$347)) -> 0 | F123: =(VLOOKUP($A123,Working!$B$2:$O$339,11,FALSE)/(VLOOKUP($A123,Working!$B$2:$O$339,12,FALSE)/1000))*($B123/(1-$B$347)) -> 0
A124: Halton | B124: 0 | C124: =VLOOKUP($A124,Working!$B$2:$O$339,4,FALSE)*($B124/(1-$B$347)) -> 0 | D124: =VLOOKUP($A124,Working!$B$2:$O$339,7,FALSE)*($B124/(1-$B$347)) -> 0 | E124: =VLOOKUP($A124,Working!$B$2:$L$339,10,FALSE)*($B124/(1-$B$347)) -> 0 | F124: =(VLOOKUP($A124,Working!$B$2:$O$339,11,FALSE)/(VLOOKUP($A124,Working!$B$2:$O$339,12,FALSE)/1000))*($B124/(1-$B$347)) -> 0
A125: Hambleton | B125: 0 | C125: =VLOOKUP($A125,Working!$B$2:$O$339,4,FALSE)*($B125/(1-$B$347)) -> 0 | D125: =VLOOKUP($A125,Working!$B$2:$O$339,7,FALSE)*($B125/(1-$B$347)) -> 0 | E125: =VLOOKUP($A125,Working!$B$2:$L$339,10,FALSE)*($B125/(1-$B$347)) -> 0 | F125: =(VLOOKUP($A125,Working!$B$2:$O$339,11,FALSE)/(VLOOKUP($A125,Working!$B$2:$O$339,12,FALSE)/1000))*($B125/(1-$B$347)) -> 0
A126: Hammersmith and Fulham | B126: 0 | C126: =VLOOKUP($A126,Working!$B$2:$O$339,4,FALSE)*($B126/(1-$B$347)) -> 0 | D126: =VLOOKUP($A126,Working!$B$2:$O$339,7,FALSE)*($B126/(1-$B$347)) -> 0 | E126: =VLOOKUP($A126,Working!$B$2:$L$339,10,FALSE)*($B126/(1-$B$347)) -> 0 | F126: =(VLOOKUP($A126,Working!$B$2:$O$339,11,FALSE)/(VLOOKUP($A126,Working!$B$2:$O$339,12,FALSE)/1000))*($B126/(1-$B$347)) -> 0
A127: Harborough | B127: 0 | C127: =VLOOKUP($A127,Working!$B$2:$O$339,4,FALSE)*($B127/(1-$B$347)) -> 0 | D127: =VLOOKUP($A127,Working!$B$2:$O$339,7,FALSE)*($B127/(1-$B$347)) -> 0 | E127: =VLOOKUP($A127,Working!$B$2:$L$339,10,FALSE)*($B127/(1-$B$347)) -> 0 | F127: =(VLOOKUP($A127,Working!$B$2:$O$339,11,FALSE)/(VLOOKUP($A127,Working!$B$2:$O$339,12,FALSE)/1000))*($B127/(1-$B$347)) -> 0
A128: Haringey | B128: 0 | C128: =VLOOKUP($A128,Working!$B$2:$O$339,4,FALSE)*($B128/(1-$B$347)) -> 0 | D128: =VLOOKUP($A128,Working!$B$2:$O$339,7,FALSE)*($B128/(1-$B$347)) -> 0 | E128: =VLOOKUP($A128,Working!$B$2:$L$339,10,FALSE)*($B128/(1-$B$347)) -> 0 | F128: =(VLOOKUP($A128,Working!$B$2:$O$339,11,FALSE)/(VLOOKUP($A128,Working!$B$2:$O$339,12,FALSE)/1000))*($B128/(1-$B$347)) -> 0
A129: Harlow | B129: 0 | C129: =VLOOKUP($A129,Working!$B$2:$O$339,4,FALSE)*($B129/(1-$B$347)) -> 0 | D129: =VLOOKUP($A129,Working!$B$2:$O$339,7,FALSE)*($B129/(1-$B$347)) -> 0 | E129: =VLOOKUP($A129,Working!$B$2:$L$339,10,FALSE)*($B129/(1-$B$347)) -> 0 | F129: =(VLOOKUP($A129,Working!$B$2:$O$339,11,FALSE)/(VLOOKUP($A129,Working!$B$2:$O$339,12,FALSE)/1000))*($B129/(1-$B$347)) -> 0
A130: Harrogate | B130: 0 | C130: =VLOOKUP($A130,Working!$B$2:$O$339,4,FALSE)*($B130/(1-$B$347)) -> 0 | D130: =VLOOKUP($A130,Working!$B$2:$O$339,7,FALSE)*($B130/(1-$B$347)) -> 0 | E130: =VLOOKUP($A130,Working!$B$2:$L$339,10,FALSE)*($B130/(1-$B$347)) -> 0 | F130: =(VLOOKUP($A130,Working!$B$2:$O$339,11,FALSE)/(VLOOKUP($A130,Working!$B$2:$O$339,12,FALSE)/1000))*($B130/(1-$B$347)) -> 0
A131: Harrow | B131: 0 | C131: =VLOOKUP($A131,Working!$B$2:$O$339,4,FALSE)*($B131/(1-$B$347)) -> 0 | D131: =VLOOKUP($A131,Working!$B$2:$O$339,7,FALSE)*($B131/(1-$B$347)) -> 0 | E131: =VLOOKUP($A131,Working!$B$2:$L$339,10,FALSE)*($B131/(1-$B$347)) -> 0 | F131: =(VLOOKUP($A131,Working!$B$2:$O$339,11,FALSE)/(VLOOKUP($A131,Working!$B$2:$O$339,12,FALSE)/1000))*($B131/(1-$B$347)) -> 0
A132: Hart | B132: 0 | C132: =VLOOKUP($A132,Working!$B$2:$O$339,4,FALSE)*($B132/(1-$B$347)) -> 0 | D132: =VLOOKUP($A132,Working!$B$2:$O$339,7,FALSE)*($B132/(1-$B$347)) -> 0 | E132: =VLOOKUP($A132,Working!$B$2:$L$339,10,FALSE)*($B132/(1-$B$347)) -> 0 | F132: =(VLOOKUP($A132,Working!$B$2:$O$339,11,FALSE)/(VLOOKUP($A132,Working!$B$2:$O$339,12,FALSE)/1000))*($B132/(1-$B$347)) -> 0
A133: Hartlepool | B133: 0 | C133: =VLOOKUP($A133,Working!$B$2:$O$339,4,FALSE)*($B133/(1-$B$347)) -> 0 | D133: =VLOOKUP($A133,Working!$B$2:$O$339,7,FALSE)*($B133/(1-$B$347)) -> 0 | E133: =VLOOKUP($A133,Working!$B$2:$L$339,10,FALSE)*($B133/(1-$B$347)) -> 0 | F133: =(VLOOKUP($A133,Working!$B$2:$O$339,11,FALSE)/(VLOOKUP($A133,Working!$B$2:$O$339,12,FALSE)/1000))*($B133/(1-$B$347)) -> 0
A134: Hastings | B134: 0 | C134: =VLOOKUP($A134,Working!$B$2:$O$339,4,FALSE)*($B134/(1-$B$347)) -> 0 | D134: =VLOOKUP($A134,Working!$B$2:$O$339,7,FALSE)*($B134/(1-$B$347)) -> 0 | E134: =VLOOKUP($A134,Working!$B$2:$L$339,10,FALSE)*($B134/(1-$B$347)) -> 0 | F134: =(VLOOKUP($A134,Working!$B$2:$O$339,11,FALSE)/(VLOOKUP($A134,Working!$B$2:$O$339,12,FALSE)/1000))*($B134/(1-$B$347)) -> 0
A135: Havant | B135: 0 | C135: =VLOOKUP($A135,Working!$B$2:$O$339,4,FALSE)*($B135/(1-$B$347)) -> 0 | D135: =VLOOKUP($A135,Working!$B$2:$O$339,7,FALSE)*($B135/(1-$B$347)) -> 0 | E135: =VLOOKUP($A135,Working!$B$2:$L$339,10,FALSE)*($B135/(1-$B$347)) -> 0 | F135: =(VLOOKUP($A135,Working!$B$2:$O$339,11,FALSE)/(VLOOKUP($A135,Working!$B$2:$O$339,12,FALSE)/1000))*($B135/(1-$B$347)) -> 0
A136: Havering | B136: 0 | C136: =VLOOKUP($A136,Working!$B$2:$O$339,4,FALSE)*($B136/(1-$B$347)) -> 0 | D136: =VLOOKUP($A136,Working!$B$2:$O$339,7,FALSE)*($B136/(1-$B$347)) -> 0 | E136: =VLOOKUP($A136,Working!$B$2:$L$339,10,FALSE)*($B136/(1-$B$347)) -> 0 | F136: =(VLOOKUP($A136,Working!$B$2:$O$339,11,FALSE)/(VLOOKUP($A136,Working!$B$2:$O$339,12,FALSE)/1000))*($B136/(1-$B$347)) -> 0
A137: Herefordshire, County of | B137: 0 | C137: =VLOOKUP($A137,Working!$B$2:$O$339,4,FALSE)*($B137/(1-$B$347)) -> 0 | D137: =VLOOKUP($A137,Working!$B$2:$O$339,7,FALSE)*($B137/(1-$B$347)) -> 0 | E137: =VLOOKUP($A137,Working!$B$2:$L$339,10,FALSE)*($B137/(1-$B$347)) -> 0 | F137: =(VLOOKUP($A137,Working!$B$2:$O$339,11,FALSE)/(VLOOKUP($A137,Working!$B$2:$O$339,12,FALSE)/1000))*($B137/(1-$B$347)) -> 0
A138: Hertsmere | B138: 0 | C138: =VLOOKUP($A138,Working!$B$2:$O$339,4,FALSE)*($B138/(1-$B$347)) -> 0 | D138: =VLOOKUP($A138,Working!$B$2:$O$339,7,FALSE)*($B138/(1-$B$347)) -> 0 | E138: =VLOOKUP($A138,Working!$B$2:$L$339,10,FALSE)*($B138/(1-$B$347)) -> 0 | F138: =(VLOOKUP($A138,Working!$B$2:$O$339,11,FALSE)/(VLOOKUP($A138,Working!$B$2:$O$339,12,FALSE)/1000))*($B138/(1-$B$347)) -> 0
A139: High Peak | B139: 0 | C139: =VLOOKUP($A139,Working!$B$2:$O$339,4,FALSE)*($B139/(1-$B$347)) -> 0 | D139: =VLOOKUP($A139,Working!$B$2:$O$339,7,FALSE)*($B139/(1-$B$347)) -> 0 | E139: =VLOOKUP($A139,Working!$B$2:$L$339,10,FALSE)*($B139/(1-$B$347)) -> 0 | F139: =(VLOOKUP($A139,Working!$B$2:$O$339,11,FALSE)/(VLOOKUP($A139,Working!$B$2:$O$339,12,FALSE)/1000))*($B139/(1-$B$347)) -> 0
A140: Hillingdon | B140: 0 | C140: =VLOOKUP($A140,Working!$B$2:$O$339,4,FALSE)*($B140/(1-$B$347)) -> 0 | D140: =VLOOKUP($A140,Working!$B$2:$O$339,7,FALSE)*($B140/(1-$B$347)) -> 0 | E140: =VLOOKUP($A140,Working!$B$2:$L$339,10,FALSE)*($B140/(1-$B$347)) -> 0 | F140: =(VLOOKUP($A140,Working!$B$2:$O$339,11,FALSE)/(VLOOKUP($A140,Working!$B$2:$O$339,12,FALSE)/1000))*($B140/(1-$B$347)) -> 0
A141: Hinckley and Bosworth | B141: 0 | C141: =VLOOKUP($A141,Working!$B$2:$O$339,4,FALSE)*($B141/(1-$B$347)) -> 0 | D141: =VLOOKUP($A141,Working!$B$2:$O$339,7,FALSE)*($B141/(1-$B$347)) -> 0 | E141: =VLOOKUP($A141,Working!$B$2:$L$339,10,FALSE)*($B141/(1-$B$347)) -> 0 | F141: =(VLOOKUP($A141,Working!$B$2:$O$339,11,FALSE)/(VLOOKUP($A141,Working!$B$2:$O$339,12,FALSE)/1000))*($B141/(1-$B$347)) -> 0
A142: Horsham | B142: 0 | C142: =VLOOKUP($A142,Working!$B$2:$O$339,4,FALSE)*($B142/(1-$B$347)) -> 0 | D142: =VLOOKUP($A142,Working!$B$2:$O$339,7,FALSE)*($B142/(1-$B$347)) -> 0 | E142: =VLOOKUP($A142,Working!$B$2:$L$339,10,FALSE)*($B142/(1-$B$347)) -> 0 | F142: =(VLOOKUP($A142,Working!$B$2:$O$339,11,FALSE)/(VLOOKUP($A142,Working!$B$2:$O$339,12,FALSE)/1000))*($B142/(1-$B$347)) -> 0
A143: Hounslow | B143: 0 | C143: =VLOOKUP($A143,Working!$B$2:$O$339,4,FALSE)*($B143/(1-$B$347)) -> 0 | D143: =VLOOKUP($A143,Working!$B$2:$O$339,7,FALSE)*($B143/(1-$B$347)) -> 0 | E143: =VLOOKUP($A143,Working!$B$2:$L$339,10,FALSE)*($B143/(1-$B$347)) -> 0 | F143: =(VLOOKUP($A143,Working!$B$2:$O$339,11,FALSE)/(VLOOKUP($A143,Working!$B$2:$O$339,12,FALSE)/1000))*($B143/(1-$B$347)) -> 0
A144: Huntingdonshire | B144: 0 | C144: =VLOOKUP($A144,Working!$B$2:$O$339,4,FALSE)*($B144/(1-$B$347)) -> 0 | D144: =VLOOKUP($A144,Working!$B$2:$O$339,7,FALSE)*($B144/(1-$B$347)) -> 0 | E144: =VLOOKUP($A144,Working!$B$2:$L$339,10,FALSE)*($B144/(1-$B$347)) -> 0 | F144: =(VLOOKUP($A144,Working!$B$2:$O$339,11,FALSE)/(VLOOKUP($A144,Working!$B$2:$O$339,12,FALSE)/1000))*($B144/(1-$B$347)) -> 0
A145: Hyndburn | B145: 0 | C145: =VLOOKUP($A145,Working!$B$2:$O$339,4,FALSE)*($B145/(1-$B$347)) -> 0 | D145: =VLOOKUP($A145,Working!$B$2:$O$339,7,FALSE)*($B145/(1-$B$347)) -> 0 | E145: =VLOOKUP($A145,Working!$B$2:$L$339,10,FALSE)*($B145/(1-$B$347)) -> 0 | F145: =(VLOOKUP($A145,Working!$B$2:$O$339,11,FALSE)/(VLOOKUP($A145,Working!$B$2:$O$339,12,FALSE)/1000))*($B145/(1-$B$347)) -> 0
A146: Ipswich | B146: 0 | C146: =VLOOKUP($A146,Working!$B$2:$O$339,4,FALSE)*($B146/(1-$B$347)) -> 0 | D146: =VLOOKUP($A146,Working!$B$2:$O$339,7,FALSE)*($B146/(1-$B$347)) -> 0 | E146: =VLOOKUP($A146,Working!$B$2:$L$339,10,FALSE)*($B146/(1-$B$347)) -> 0 | F146: =(VLOOKUP($A146,Working!$B$2:$O$339,11,FALSE)/(VLOOKUP($A146,Working!$B$2:$O$339,12,FALSE)/1000))*($B146/(1-$B$347)) -> 0
A147: Isle of Wight | B147: 0 | C147: =VLOOKUP($A147,Working!$B$2:$O$339,4,FALSE)*($B147/(1-$B$347)) -> 0 | D147: =VLOOKUP($A147,Working!$B$2:$O$339,7,FALSE)*($B147/(1-$B$347)) -> 0 | E147: =VLOOKUP($A147,Working!$B$2:$L$339,10,FALSE)*($B147/(1-$B$347)) -> 0 | F147: =(VLOOKUP($A147,Working!$B$2:$O$339,11,FALSE)/(VLOOKUP($A147,Working!$B$2:$O$339,12,FALSE)/1000))*($B147/(1-$B$347)) -> 0
A148: Isles of Scilly | B148: 0 | C148: =VLOOKUP($A148,Working!$B$2:$O$339,4,FALSE)*($B148/(1-$B$347)) -> 0 | D148: =VLOOKUP($A148,Working!$B$2:$O$339,7,FALSE)*($B148/(1-$B$347)) -> 0 | E148: =VLOOKUP($A148,Working!$B$2:$L$339,10,FALSE)*($B148/(1-$B$347)) -> 0 | F148: =(VLOOKUP($A148,Working!$B$2:$O$339,11,FALSE)/(VLOOKUP($A148,Working!$B$2:$O$339,12,FALSE)/1000))*($B148/(1-$B$347)) -> 0
A149: Islington | B149: 0 | C149: =VLOOKUP($A149,Working!$B$2:$O$339,4,FALSE)*($B149/(1-$B$347)) -> 0 | D149: =VLOOKUP($A149,Working!$B$2:$O$339,7,FALSE)*($B149/(1-$B$347)) -> 0 | E149: =VLOOKUP($A149,Working!$B$2:$L$339,10,FALSE)*($B149/(1-$B$347)) -> 0 | F149: =(VLOOKUP($A149,Working!$B$2:$O$339,11,FALSE)/(VLOOKUP($A149,Working!$B$2:$O$339,12,FALSE)/1000))*($B149/(1-$B$347)) -> 0
A150: Kensington and Chelsea | B150: 0 | C150: =VLOOKUP($A150,Working!$B$2:$O$339,4,FALSE)*($B150/(1-$B$347)) -> 0 | D150: =VLOOKUP($A150,Working!$B$2:$O$339,7,FALSE)*($B150/(1-$B$347)) -> 0 | E150: =VLOOKUP($A150,Working!$B$2:$L$339,10,FALSE)*($B150/(1-$B$347)) -> 0 | F150: =(VLOOKUP($A150,Working!$B$2:$O$339,11,FALSE)/(VLOOKUP($A150,Working!$B$2:$O$339,12,FALSE)/1000))*($B150/(1-$B$347)) -> 0
A151: Kettering | B151: 0 | C151: =VLOOKUP($A151,Working!$B$2:$O$339,4,FALSE)*($B151/(1-$B$347)) -> 0 | D151: =VLOOKUP($A151,Working!$B$2:$O$339,7,FALSE)*($B151/(1-$B$347)) -> 0 | E151: =VLOOKUP($A151,Working!$B$2:$L$339,10,FALSE)*($B151/(1-$B$347)) -> 0 | F151: =(VLOOKUP($A151,Working!$B$2:$O$339,11,FALSE)/(VLOOKUP($A151,Working!$B$2:$O$339,12,FALSE)/1000))*($B151/(1-$B$347)) -> 0
A152: King`s Lynn and West Norfolk | B152: 0 | C152: =VLOOKUP($A152,Working!$B$2:$O$339,4,FALSE)*($B152/(1-$B$347)) -> 0 | D152: =VLOOKUP($A152,Working!$B$2:$O$339,7,FALSE)*($B152/(1-$B$347)) -> 0 | E152: =VLOOKUP($A152,Working!$B$2:$L$339,10,FALSE)*($B152/(1-$B$347)) -> 0 | F152: =(VLOOKUP($A152,Working!$B$2:$O$339,11,FALSE)/(VLOOKUP($A152,Working!$B$2:$O$339,12,FALSE)/1000))*($B152/(1-$B$347)) -> 0
A153: Kingston upon Hull, City of | B153: 0 | C153: =VLOOKUP($A153,Working!$B$2:$O$339,4,FALSE)*($B153/(1-$B$347)) -> 0 | D153: =VLOOKUP($A153,Working!$B$2:$O$339,7,FALSE)*($B153/(1-$B$347)) -> 0 | E153: =VLOOKUP($A153,Working!$B$2:$L$339,10,FALSE)*($B153/(1-$B$347)) -> 0 | F153: =(VLOOKUP($A153,Working!$B$2:$O$339,11,FALSE)/(VLOOKUP($A153,Working!$B$2:$O$339,12,FALSE)/1000))*($B153/(1-$B$347)) -> 0
A154: Kingston upon Thames | B154: 0 | C154: =VLOOKUP($A154,Working!$B$2:$O$339,4,FALSE)*($B154/(1-$B$347)) -> 0 | D154: =VLOOKUP($A154,Working!$B$2:$O$339,7,FALSE)*($B154/(1-$B$347)) -> 0 | E154: =VLOOKUP($A154,Working!$B$2:$L$339,10,FALSE)*($B154/(1-$B$347)) -> 0 | F154: =(VLOOKUP($A154,Working!$B$2:$O$339,11,FALSE)/(VLOOKUP($A154,Working!$B$2:$O$339,12,FALSE)/1000))*($B154/(1-$B$347)) -> 0
A155: Kirklees | B155: 0 | C155: =VLOOKUP($A155,Working!$B$2:$O$339,4,FALSE)*($B155/(1-$B$347)) -> 0 | D155: =VLOOKUP($A155,Working!$B$2:$O$339,7,FALSE)*($B155/(1-$B$347)) -> 0 | E155: =VLOOKUP($A155,Working!$B$2:$L$339,10,FALSE)*($B155/(1-$B$347)) -> 0 | F155: =(VLOOKUP($A155,Working!$B$2:$O$339,11,FALSE)/(VLOOKUP($A155,Working!$B$2:$O$339,12,FALSE)/1000))*($B155/(1-$B$347)) -> 0
A156: Knowsley | B156: 0 | C156: =VLOOKUP($A156,Working!$B$2:$O$339,4,FALSE)*($B156/(1-$B$347)) -> 0 | D156: =VLOOKUP($A156,Working!$B$2:$O$339,7,FALSE)*($B156/(1-$B$347)) -> 0 | E156: =VLOOKUP($A156,Working!$B$2:$L$339,10,FALSE)*($B156/(1-$B$347)) -> 0 | F156: =(VLOOKUP($A156,Working!$B$2:$O$339,11,FALSE)/(VLOOKUP($A156,Working!$B$2:$O$339,12,FALSE)/1000))*($B156/(1-$B$347)) -> 0
A157: Lambeth | B157: 0 | C157: =VLOOKUP($A157,Working!$B$2:$O$339,4,FALSE)*($B157/(1-$B$347)) -> 0 | D157: =VLOOKUP($A157,Working!$B$2:$O$339,7,FALSE)*($B157/(1-$B$347)) -> 0 | E157: =VLOOKUP($A157,Working!$B$2:$L$339,10,FALSE)*($B157/(1-$B$347)) -> 0 | F157: =(VLOOKUP($A157,Working!$B$2:$O$339,11,FALSE)/(VLOOKUP($A157,Working!$B$2:$O$339,12,FALSE)/1000))*($B157/(1-$B$347)) -> 0
A158: Lancaster | B158: 0 | C158: =VLOOKUP($A158,Working!$B$2:$O$339,4,FALSE)*($B158/(1-$B$347)) -> 0 | D158: =VLOOKUP($A158,Working!$B$2:$O$339,7,FALSE)*($B158/(1-$B$347)) -> 0 | E158: =VLOOKUP($A158,Working!$B$2:$L$339,10,FALSE)*($B158/(1-$B$347)) -> 0 | F158: =(VLOOKUP($A158,Working!$B$2:$O$339,11,FALSE)/(VLOOKUP($A158,Working!$B$2:$O$339,12,FALSE)/1000))*($B158/(1-$B$347)) -> 0
A159: Leeds | B159: 0 | C159: =VLOOKUP($A159,Working!$B$2:$O$339,4,FALSE)*($B159/(1-$B$347)) -> 0 | D159: =VLOOKUP($A159,Working!$B$2:$O$339,7,FALSE)*($B159/(1-$B$347)) -> 0 | E159: =VLOOKUP($A159,Working!$B$2:$L$339,10,FALSE)*($B159/(1-$B$347)) -> 0 | F159: =(VLOOKUP($A159,Working!$B$2:$O$339,11,FALSE)/(VLOOKUP($A159,Working!$B$2:$O$339,12,FALSE)/1000))*($B159/(1-$B$347)) -> 0
A160: Leicester | B160: 0 | C160: =VLOOKUP($A160,Working!$B$2:$O$339,4,FALSE)*($B160/(1-$B$347)) -> 0 | D160: =VLOOKUP($A160,Working!$B$2:$O$339,7,FALSE)*($B160/(1-$B$347)) -> 0 | E160: =VLOOKUP($A160,Working!$B$2:$L$339,10,FALSE)*($B160/(1-$B$347)) -> 0 | F160: =(VLOOKUP($A160,Working!$B$2:$O$339,11,FALSE)/(VLOOKUP($A160,Working!$B$2:$O$339,12,FALSE)/1000))*($B160/(1-$B$347)) -> 0
A161: Lewes | B161: 0 | C161: =VLOOKUP($A161,Working!$B$2:$O$339,4,FALSE)*($B161/(1-$B$347)) -> 0 | D161: =VLOOKUP($A161,Working!$B$2:$O$339,7,FALSE)*($B161/(1-$B$347)) -> 0 | E161: =VLOOKUP($A161,Working!$B$2:$L$339,10,FALSE)*($B161/(1-$B$347)) -> 0 | F161: =(VLOOKUP($A161,Working!$B$2:$O$339,11,FALSE)/(VLOOKUP($A161,Working!$B$2:$O$339,12,FALSE)/1000))*($B161/(1-$B$347)) -> 0
A162: Lewisham | B162: 0 | C162: =VLOOKUP($A162,Working!$B$2:$O$339,4,FALSE)*($B162/(1-$B$347)) -> 0 | D162: =VLOOKUP($A162,Working!$B$2:$O$339,7,FALSE)*($B162/(1-$B$347)) -> 0 | E162: =VLOOKUP($A162,Working!$B$2:$L$339,10,FALSE)*($B162/(1-$B$347)) -> 0 | F162: =(VLOOKUP($A162,Working!$B$2:$O$339,11,FALSE)/(VLOOKUP($A162,Working!$B$2:$O$339,12,FALSE)/1000))*($B162/(1-$B$347)) -> 0
A163: Lichfield | B163: 0 | C163: =VLOOKUP($A163,Working!$B$2:$O$339,4,FALSE)*($B163/(1-$B$347)) -> 0 | D163: =VLOOKUP($A163,Working!$B$2:$O$339,7,FALSE)*($B163/(1-$B$347)) -> 0 | E163: =VLOOKUP($A163,Working!$B$2:$L$339,10,FALSE)*($B163/(1-$B$347)) -> 0 | F163: =(VLOOKUP($A163,Working!$B$2:$O$339,11,FALSE)/(VLOOKUP($A163,Working!$B$2:$O$339,12,FALSE)/1000))*($B163/(1-$B$347)) -> 0
A164: Lincoln | B164: 0 | C164: =VLOOKUP($A164,Working!$B$2:$O$339,4,FALSE)*($B164/(1-$B$347)) -> 0 | D164: =VLOOKUP($A164,Working!$B$2:$O$339,7,FALSE)*($B164/(1-$B$347)) -> 0 | E164: =VLOOKUP($A164,Working!$B$2:$L$339,10,FALSE)*($B164/(1-$B$347)) -> 0 | F164: =(VLOOKUP($A164,Working!$B$2:$O$339,11,FALSE)/(VLOOKUP($A164,Working!$B$2:$O$339,12,FALSE)/1000))*($B164/(1-$B$347)) -> 0
A165: Liverpool | B165: 0 | C165: =VLOOKUP($A165,Working!$B$2:$O$339,4,FALSE)*($B165/(1-$B$347)) -> 0 | D165: =VLOOKUP($A165,Working!$B$2:$O$339,7,FALSE)*($B165/(1-$B$347)) -> 0 | E165: =VLOOKUP($A165,Working!$B$2:$L$339,10,FALSE)*($B165/(1-$B$347)) -> 0 | F165: =(VLOOKUP($A165,Working!$B$2:$O$339,11,FALSE)/(VLOOKUP($A165,Working!$B$2:$O$339,12,FALSE)/1000))*($B165/(1-$B$347)) -> 0
A166: Luton | B166: 0 | C166: =VLOOKUP($A166,Working!$B$2:$O$339,4,FALSE)*($B166/(1-$B$347)) -> 0 | D166: =VLOOKUP($A166,Working!$B$2:$O$339,7,FALSE)*($B166/(1-$B$347)) -> 0 | E166: =VLOOKUP($A166,Working!$B$2:$L$339,10,FALSE)*($B166/(1-$B$347)) -> 0 | F166: =(VLOOKUP($A166,Working!$B$2:$O$339,11,FALSE)/(VLOOKUP($A166,Working!$B$2:$O$339,12,FALSE)/1000))*($B166/(1-$B$347)) -> 0
A167: Maidstone | B167: 0 | C167: =VLOOKUP($A167,Working!$B$2:$O$339,4,FALSE)*($B167/(1-$B$347)) -> 0 | D167: =VLOOKUP($A167,Working!$B$2:$O$339,7,FALSE)*($B167/(1-$B$347)) -> 0 | E167: =VLOOKUP($A167,Working!$B$2:$L$339,10,FALSE)*($B167/(1-$B$347)) -> 0 | F167: =(VLOOKUP($A167,Working!$B$2:$O$339,11,FALSE)/(VLOOKUP($A167,Working!$B$2:$O$339,12,FALSE)/1000))*($B167/(1-$B$347)) -> 0
A168: Maldon | B168: 0 | C168: =VLOOKUP($A168,Working!$B$2:$O$339,4,FALSE)*($B168/(1-$B$347)) -> 0 | D168: =VLOOKUP($A168,Working!$B$2:$O$339,7,FALSE)*($B168/(1-$B$347)) -> 0 | E168: =VLOOKUP($A168,Working!$B$2:$L$339,10,FALSE)*($B168/(1-$B$347)) -> 0 | F168: =(VLOOKUP($A168,Working!$B$2:$O$339,11,FALSE)/(VLOOKUP($A168,Working!$B$2:$O$339,12,FALSE)/1000))*($B168/(1-$B$347)) -> 0
A169: Malvern Hills | B169: 0 | C169: =VLOOKUP($A169,Working!$B$2:$O$339,4,FALSE)*($B169/(1-$B$347)) -> 0 | D169: =VLOOKUP($A169,Working!$B$2:$O$339,7,FALSE)*($B169/(1-$B$347)) -> 0 | E169: =VLOOKUP($A169,Working!$B$2:$L$339,10,FALSE)*($B169/(1-$B$347)) -> 0 | F169: =(VLOOKUP($A169,Working!$B$2:$O$339,11,FALSE)/(VLOOKUP($A169,Working!$B$2:$O$339,12,FALSE)/1000))*($B169/(1-$B$347)) -> 0
A170: Manchester | B170: 0 | C170: =VLOOKUP($A170,Working!$B$2:$O$339,4,FALSE)*($B170/(1-$B$347)) -> 0 | D170: =VLOOKUP($A170,Working!$B$2:$O$339,7,FALSE)*($B170/(1-$B$347)) -> 0 | E170: =VLOOKUP($A170,Working!$B$2:$L$339,10,FALSE)*($B170/(1-$B$347)) -> 0 | F170: =(VLOOKUP($A170,Working!$B$2:$O$339,11,FALSE)/(VLOOKUP($A170,Working!$B$2:$O$339,12,FALSE)/1000))*($B170/(1-$B$347)) -> 0
A171: Mansfield | B171: 0 | C171: =VLOOKUP($A171,Working!$B$2:$O$339,4,FALSE)*($B171/(1-$B$347)) -> 0 | D171: =VLOOKUP($A171,Working!$B$2:$O$339,7,FALSE)*($B171/(1-$B$347)) -> 0 | E171: =VLOOKUP($A171,Working!$B$2:$L$339,10,FALSE)*($B171/(1-$B$347)) -> 0 | F171: =(VLOOKUP($A171,Working!$B$2:$O$339,11,FALSE)/(VLOOKUP($A171,Working!$B$2:$O$339,12,FALSE)/1000))*($B171/(1-$B$347)) -> 0
A172: Medway | B172: 0 | C172: =VLOOKUP($A172,Working!$B$2:$O$339,4,FALSE)*($B172/(1-$B$347)) -> 0 | D172: =VLOOKUP($A172,Working!$B$2:$O$339,7,FALSE)*($B172/(1-$B$347)) -> 0 | E172: =VLOOKUP($A172,Working!$B$2:$L$339,10,FALSE)*($B172/(1-$B$347)) -> 0 | F172: =(VLOOKUP($A172,Working!$B$2:$O$339,11,FALSE)/(VLOOKUP($A172,Working!$B$2:$O$339,12,FALSE)/1000))*($B172/(1-$B$347)) -> 0
A173: Melton | B173: 0 | C173: =VLOOKUP($A173,Working!$B$2:$O$339,4,FALSE)*($B173/(1-$B$347)) -> 0 | D173: =VLOOKUP($A173,Working!$B$2:$O$339,7,FALSE)*($B173/(1-$B$347)) -> 0 | E173: =VLOOKUP($A173,Working!$B$2:$L$339,10,FALSE)*($B173/(1-$B$347)) -> 0 | F173: =(VLOOKUP($A173,Working!$B$2:$O$339,11,FALSE)/(VLOOKUP($A173,Working!$B$2:$O$339,12,FALSE)/1000))*($B173/(1-$B$347)) -> 0
A174: Mendip | B174: 0 | C174: =VLOOKUP($A174,Working!$B$2:$O$339,4,FALSE)*($B174/(1-$B$347)) -> 0 | D174: =VLOOKUP($A174,Working!$B$2:$O$339,7,FALSE)*($B174/(1-$B$347)) -> 0 | E174: =VLOOKUP($A174,Working!$B$2:$L$339,10,FALSE)*($B174/(1-$B$347)) -> 0 | F174: =(VLOOKUP($A174,Working!$B$2:$O$339,11,FALSE)/(VLOOKUP($A174,Working!$B$2:$O$339,12,FALSE)/1000))*($B174/(1-$B$347)) -> 0
A175: Merton | B175: 0 | C175: =VLOOKUP($A175,Working!$B$2:$O$339,4,FALSE)*($B175/(1-$B$347)) -> 0 | D175: =VLOOKUP($A175,Working!$B$2:$O$339,7,FALSE)*($B175/(1-$B$347)) -> 0 | E175: =VLOOKUP($A175,Working!$B$2:$L$339,10,FALSE)*($B175/(1-$B$347)) -> 0 | F175: =(VLOOKUP($A175,Working!$B$2:$O$339,11,FALSE)/(VLOOKUP($A175,Working!$B$2:$O$339,12,FALSE)/1000))*($B175/(1-$B$347)) -> 0
A176: Mid Devon | B176: 0 | C176: =VLOOKUP($A176,Working!$B$2:$O$339,4,FALSE)*($B176/(1-$B$347)) -> 0 | D176: =VLOOKUP($A176,Working!$B$2:$O$339,7,FALSE)*($B176/(1-$B$347)) -> 0 | E176: =VLOOKUP($A176,Working!$B$2:$L$339,10,FALSE)*($B176/(1-$B$347)) -> 0 | F176: =(VLOOKUP($A176,Working!$B$2:$O$339,11,FALSE)/(VLOOKUP($A176,Working!$B$2:$O$339,12,FALSE)/1000))*($B176/(1-$B$347)) -> 0
A177: Mid Suffolk | B177: 0 | C177: =VLOOKUP($A177,Working!$B$2:$O$339,4,FALSE)*($B177/(1-$B$347)) -> 0 | D177: =VLOOKUP($A177,Working!$B$2:$O$339,7,FALSE)*($B177/(1-$B$347)) -> 0 | E177: =VLOOKUP($A177,Working!$B$2:$L$339,10,FALSE)*($B177/(1-$B$347)) -> 0 | F177: =(VLOOKUP($A177,Working!$B$2:$O$339,11,FALSE)/(VLOOKUP($A177,Working!$B$2:$O$339,12,FALSE)/1000))*($B177/(1-$B$347)) -> 0
A178: Mid Sussex | B178: 0 | C178: =VLOOKUP($A178,Working!$B$2:$O$339,4,FALSE)*($B178/(1-$B$347)) -> 0 | D178: =VLOOKUP($A178,Working!$B$2:$O$339,7,FALSE)*($B178/(1-$B$347)) -> 0 | E178: =VLOOKUP($A178,Working!$B$2:$L$339,10,FALSE)*($B178/(1-$B$347)) -> 0 | F178: =(VLOOKUP($A178,Working!$B$2:$O$339,11,FALSE)/(VLOOKUP($A178,Working!$B$2:$O$339,12,FALSE)/1000))*($B178/(1-$B$347)) -> 0
A179: Middlesbrough | B179: 0 | C179: =VLOOKUP($A179,Working!$B$2:$O$339,4,FALSE)*($B179/(1-$B$347)) -> 0 | D179: =VLOOKUP($A179,Working!$B$2:$O$339,7,FALSE)*($B179/(1-$B$347)) -> 0 | E179: =VLOOKUP($A179,Working!$B$2:$L$339,10,FALSE)*($B179/(1-$B$347)) -> 0 | F179: =(VLOOKUP($A179,Working!$B$2:$O$339,11,FALSE)/(VLOOKUP($A179,Working!$B$2:$O$339,12,FALSE)/1000))*($B179/(1-$B$347)) -> 0
A180: Milton Keynes | B180: 0 | C180: =VLOOKUP($A180,Working!$B$2:$O$339,4,FALSE)*($B180/(1-$B$347)) -> 0 | D180: =VLOOKUP($A180,Working!$B$2:$O$339,7,FALSE)*($B180/(1-$B$347)) -> 0 | E180: =VLOOKUP($A180,Working!$B$2:$L$339,10,FALSE)*($B180/(1-$B$347)) -> 0 | F180: =(VLOOKUP($A180,Working!$B$2:$O$339,11,FALSE)/(VLOOKUP($A180,Working!$B$2:$O$339,12,FALSE)/1000))*($B180/(1-$B$347)) -> 0
A181: Mole Valley | B181: 0 | C181: =VLOOKUP($A181,Working!$B$2:$O$339,4,FALSE)*($B181/(1-$B$347)) -> 0 | D181: =VLOOKUP($A181,Working!$B$2:$O$339,7,FALSE)*($B181/(1-$B$347)) -> 0 | E181: =VLOOKUP($A181,Working!$B$2:$L$339,10,FALSE)*($B181/(1-$B$347)) -> 0 | F181: =(VLOOKUP($A181,Working!$B$2:$O$339,11,FALSE)/(VLOOKUP($A181,Working!$B$2:$O$339,12,FALSE)/1000))*($B181/(1-$B$347)) -> 0
A182: New Forest | B182: 0 | C182: =VLOOKUP($A182,Working!$B$2:$O$339,4,FALSE)*($B182/(1-$B$347)) -> 0 | D182: =VLOOKUP($A182,Working!$B$2:$O$339,7,FALSE)*($B182/(1-$B$347)) -> 0 | E182: =VLOOKUP($A182,Working!$B$2:$L$339,10,FALSE)*($B182/(1-$B$347)) -> 0 | F182: =(VLOOKUP($A182,Working!$B$2:$O$339,11,FALSE)/(VLOOKUP($A182,Working!$B$2:$O$339,12,FALSE)/1000))*($B182/(1-$B$347)) -> 0
A183: Newark and Sherwood | B183: 0 | C183: =VLOOKUP($A183,Working!$B$2:$O$339,4,FALSE)*($B183/(1-$B$347)) -> 0 | D183: =VLOOKUP($A183,Working!$B$2:$O$339,7,FALSE)*($B183/(1-$B$347)) -> 0 | E183: =VLOOKUP($A183,Working!$B$2:$L$339,10,FALSE)*($B183/(1-$B$347)) -> 0 | F183: =(VLOOKUP($A183,Working!$B$2:$O$339,11,FALSE)/(VLOOKUP($A183,Working!$B$2:$O$339,12,FALSE)/1000))*($B183/(1-$B$347)) -> 0
A184: Newcastle upon Tyne | B184: 0 | C184: =VLOOKUP($A184,Working!$B$2:$O$339,4,FALSE)*($B184/(1-$B$347)) -> 0 | D184: =VLOOKUP($A184,Working!$B$2:$O$339,7,FALSE)*($B184/(1-$B$347)) -> 0 | E184: =VLOOKUP($A184,Working!$B$2:$L$339,10,FALSE)*($B184/(1-$B$347)) -> 0 | F184: =(VLOOKUP($A184,Working!$B$2:$O$339,11,FALSE)/(VLOOKUP($A184,Working!$B$2:$O$339,12,FALSE)/1000))*($B184/(1-$B$347)) -> 0
A185: Newcastle-under-Lyme | B185: 0 | C185: =VLOOKUP($A185,Working!$B$2:$O$339,4,FALSE)*($B185/(1-$B$347)) -> 0 | D185: =VLOOKUP($A185,Working!$B$2:$O$339,7,FALSE)*($B185/(1-$B$347)) -> 0 | E185: =VLOOKUP($A185,Working!$B$2:$L$339,10,FALSE)*($B185/(1-$B$347)) -> 0 | F185: =(VLOOKUP($A185,Working!$B$2:$O$339,11,FALSE)/(VLOOKUP($A185,Working!$B$2:$O$339,12,FALSE)/1000))*($B185/(1-$B$347)) -> 0
A186: Newham | B186: 0 | C186: =VLOOKUP($A186,Working!$B$2:$O$339,4,FALSE)*($B186/(1-$B$347)) -> 0 | D186: =VLOOKUP($A186,Working!$B$2:$O$339,7,FALSE)*($B186/(1-$B$347)) -> 0 | E186: =VLOOKUP($A186,Working!$B$2:$L$339,10,FALSE)*($B186/(1-$B$347)) -> 0 | F186: =(VLOOKUP($A186,Working!$B$2:$O$339,11,FALSE)/(VLOOKUP($A186,Working!$B$2:$O$339,12,FALSE)/1000))*($B186/(1-$B$347)) -> 0
A187: North Devon | B187: 0 | C187: =VLOOKUP($A187,Working!$B$2:$O$339,4,FALSE)*($B187/(1-$B$347)) -> 0 | D187: =VLOOKUP($A187,Working!$B$2:$O$339,7,FALSE)*($B187/(1-$B$347)) -> 0 | E187: =VLOOKUP($A187,Working!$B$2:$L$339,10,FALSE)*($B187/(1-$B$347)) -> 0 | F187: =(VLOOKUP($A187,Working!$B$2:$O$339,11,FALSE)/(VLOOKUP($A187,Working!$B$2:$O$339,12,FALSE)/1000))*($B187/(1-$B$347)) -> 0
A188: North Dorset | B188: 0 | C188: =VLOOKUP($A188,Working!$B$2:$O$339,4,FALSE)*($B188/(1-$B$347)) -> 0 | D188: =VLOOKUP($A188,Working!$B$2:$O$339,7,FALSE)*($B188/(1-$B$347)) -> 0 | E188: =VLOOKUP($A188,Working!$B$2:$L$339,10,FALSE)*($B188/(1-$B$347)) -> 0 | F188: =(VLOOKUP($A188,Working!$B$2:$O$339,11,FALSE)/(VLOOKUP($A188,Working!$B$2:$O$339,12,FALSE)/1000))*($B188/(1-$B$347)) -> 0
A189: North East Derbyshire | B189: 0 | C189: =VLOOKUP($A189,Working!$B$2:$O$339,4,FALSE)*($B189/(1-$B$347)) -> 0 | D189: =VLOOKUP($A189,Working!$B$2:$O$339,7,FALSE)*($B189/(1-$B$347)) -> 0 | E189: =VLOOKUP($A189,Working!$B$2:$L$339,10,FALSE)*($B189/(1-$B$347)) -> 0 | F189: =(VLOOKUP($A189,Working!$B$2:$O$339,11,FALSE)/(VLOOKUP($A189,Working!$B$2:$O$339,12,FALSE)/1000))*($B189/(1-$B$347)) -> 0
A190: North East Lincolnshire | B190: 0 | C190: =VLOOKUP($A190,Working!$B$2:$O$339,4,FALSE)*($B190/(1-$B$347)) -> 0 | D190: =VLOOKUP($A190,Working!$B$2:$O$339,7,FALSE)*($B190/(1-$B$347)) -> 0 | E190: =VLOOKUP($A190,Working!$B$2:$L$339,10,FALSE)*($B190/(1-$B$347)) -> 0 | F190: =(VLOOKUP($A190,Working!$B$2:$O$339,11,FALSE)/(VLOOKUP($A190,Working!$B$2:$O$339,12,FALSE)/1000))*($B190/(1-$B$347)) -> 0
A191: North Hertfordshire | B191: 0 | C191: =VLOOKUP($A191,Working!$B$2:$O$339,4,FALSE)*($B191/(1-$B$347)) -> 0 | D191: =VLOOKUP($A191,Working!$B$2:$O$339,7,FALSE)*($B191/(1-$B$347)) -> 0 | E191: =VLOOKUP($A191,Working!$B$2:$L$339,10,FALSE)*($B191/(1-$B$347)) -> 0 | F191: =(VLOOKUP($A191,Working!$B$2:$O$339,11,FALSE)/(VLOOKUP($A191,Working!$B$2:$O$339,12,FALSE)/1000))*($B191/(1-$B$347)) -> 0
A192: North Kesteven | B192: 0 | C192: =VLOOKUP($A192,Working!$B$2:$O$339,4,FALSE)*($B192/(1-$B$347)) -> 0 | D192: =VLOOKUP($A192,Working!$B$2:$O$339,7,FALSE)*($B192/(1-$B$347)) -> 0 | E192: =VLOOKUP($A192,Working!$B$2:$L$339,10,FALSE)*($B192/(1-$B$347)) -> 0 | F192: =(VLOOKUP($A192,Working!$B$2:$O$339,11,FALSE)/(VLOOKUP($A192,Working!$B$2:$O$339,12,FALSE)/1000))*($B192/(1-$B$347)) -> 0
A193: North Lincolnshire | B193: 0 | C193: =VLOOKUP($A193,Working!$B$2:$O$339,4,FALSE)*($B193/(1-$B$347)) -> 0 | D193: =VLOOKUP($A193,Working!$B$2:$O$339,7,FALSE)*($B193/(1-$B$347)) -> 0 | E193: =VLOOKUP($A193,Working!$B$2:$L$339,10,FALSE)*($B193/(1-$B$347)) -> 0 | F193: =(VLOOKUP($A193,Working!$B$2:$O$339,11,FALSE)/(VLOOKUP($A193,Working!$B$2:$O$339,12,FALSE)/1000))*($B193/(1-$B$347)) -> 0
A194: North Norfolk | B194: 0 | C194: =VLOOKUP($A194,Working!$B$2:$O$339,4,FALSE)*($B194/(1-$B$347)) -> 0 | D194: =VLOOKUP($A194,Working!$B$2:$O$339,7,FALSE)*($B194/(1-$B$347)) -> 0 | E194: =VLOOKUP($A194,Working!$B$2:$L$339,10,FALSE)*($B194/(1-$B$347)) -> 0 | F194: =(VLOOKUP($A194,Working!$B$2:$O$339,11,FALSE)/(VLOOKUP($A194,Working!$B$2:$O$339,12,FALSE)/1000))*($B194/(1-$B$347)) -> 0
A195: North Somerset | B195: 0 | C195: =VLOOKUP($A195,Working!$B$2:$O$339,4,FALSE)*($B195/(1-$B$347)) -> 0 | D195: =VLOOKUP($A195,Working!$B$2:$O$339,7,FALSE)*($B195/(1-$B$347)) -> 0 | E195: =VLOOKUP($A195,Working!$B$2:$L$339,10,FALSE)*($B195/(1-$B$347)) -> 0 | F195: =(VLOOKUP($A195,Working!$B$2:$O$339,11,FALSE)/(VLOOKUP($A195,Working!$B$2:$O$339,12,FALSE)/1000))*($B195/(1-$B$347)) -> 0
A196: North Tyneside | B196: 0 | C196: =VLOOKUP($A196,Working!$B$2:$O$339,4,FALSE)*($B196/(1-$B$347)) -> 0 | D196: =VLOOKUP($A196,Working!$B$2:$O$339,7,FALSE)*($B196/(1-$B$347)) -> 0 | E196: =VLOOKUP($A196,Working!$B$2:$L$339,10,FALSE)*($B196/(1-$B$347)) -> 0 | F196: =(VLOOKUP($A196,Working!$B$2:$O$339,11,FALSE)/(VLOOKUP($A196,Working!$B$2:$O$339,12,FALSE)/1000))*($B196/(1-$B$347)) -> 0
A197: North Warwickshire | B197: 0 | C197: =VLOOKUP($A197,Working!$B$2:$O$339,4,FALSE)*($B197/(1-$B$347)) -> 0 | D197: =VLOOKUP($A197,Working!$B$2:$O$339,7,FALSE)*($B197/(1-$B$347)) -> 0 | E197: =VLOOKUP($A197,Working!$B$2:$L$339,10,FALSE)*($B197/(1-$B$347)) -> 0 | F197: =(VLOOKUP($A197,Working!$B$2:$O$339,11,FALSE)/(VLOOKUP($A197,Working!$B$2:$O$339,12,FALSE)/1000))*($B197/(1-$B$347)) -> 0
A198: North West Leicestershire | B198: 0 | C198: =VLOOKUP($A198,Working!$B$2:$O$339,4,FALSE)*($B198/(1-$B$347)) -> 0 | D198: =VLOOKUP($A198,Working!$B$2:$O$339,7,FALSE)*($B198/(1-$B$347)) -> 0 | E198: =VLOOKUP($A198,Working!$B$2:$L$339,10,FALSE)*($B198/(1-$B$347)) -> 0 | F198: =(VLOOKUP($A198,Working!$B$2:$O$339,11,FALSE)/(VLOOKUP($A198,Working!$B$2:$O$339,12,FALSE)/1000))*($B198/(1-$B$347)) -> 0
A199: Northampton | B199: 0 | C199: =VLOOKUP($A199,Working!$B$2:$O$339,4,FALSE)*($B199/(1-$B$347)) -> 0 | D199: =VLOOKUP($A199,Working!$B$2:$O$339,7,FALSE)*($B199/(1-$B$347)) -> 0 | E199: =VLOOKUP($A199,Working!$B$2:$L$339,10,FALSE)*($B199/(1-$B$347)) -> 0 | F199: =(VLOOKUP($A199,Working!$B$2:$O$339,11,FALSE)/(VLOOKUP($A199,Working!$B$2:$O$339,12,FALSE)/1000))*($B199/(1-$B$347)) -> 0
A200: Northumberland | B200: 0 | C200: =VLOOKUP($A200,Working!$B$2:$O$339,4,FALSE)*($B200/(1-$B$347)) -> 0 | D200: =VLOOKUP($A200,Working!$B$2:$O$339,7,FALSE)*($B200/(1-$B$347)) -> 0 | E200: =VLOOKUP($A200,Working!$B$2:$L$339,10,FALSE)*($B200/(1-$B$347)) -> 0 | F200: =(VLOOKUP($A200,Working!$B$2:$O$339,11,FALSE)/(VLOOKUP($A200,Working!$B$2:$O$339,12,FALSE)/1000))*($B200/(1-$B$347)) -> 0
A201: Norwich | B201: 0 | C201: =VLOOKUP($A201,Working!$B$2:$O$339,4,FALSE)*($B201/(1-$B$347)) -> 0 | D201: =VLOOKUP($A201,Working!$B$2:$O$339,7,FALSE)*($B201/(1-$B$347)) -> 0 | E201: =VLOOKUP($A201,Working!$B$2:$L$339,10,FALSE)*($B201/(1-$B$347)) -> 0 | F201: =(VLOOKUP($A201,Working!$B$2:$O$339,11,FALSE)/(VLOOKUP($A201,Working!$B$2:$O$339,12,FALSE)/1000))*($B201/(1-$B$347)) -> 0
A202: Nottingham | B202: 0 | C202: =VLOOKUP($A202,Working!$B$2:$O$339,4,FALSE)*($B202/(1-$B$347)) -> 0 | D202: =VLOOKUP($A202,Working!$B$2:$O$339,7,FALSE)*($B202/(1-$B$347)) -> 0 | E202: =VLOOKUP($A202,Working!$B$2:$L$339,10,FALSE)*($B202/(1-$B$347)) -> 0 | F202: =(VLOOKUP($A202,Working!$B$2:$O$339,11,FALSE)/(VLOOKUP($A202,Working!$B$2:$O$339,12,FALSE)/1000))*($B202/(1-$B$347)) -> 0
A203: Nuneaton and Bedworth | B203: 0 | C203: =VLOOKUP($A203,Working!$B$2:$O$339,4,FALSE)*($B203/(1-$B$347)) -> 0 | D203: =VLOOKUP($A203,Working!$B$2:$O$339,7,FALSE)*($B203/(1-$B$347)) -> 0 | E203: =VLOOKUP($A203,Working!$B$2:$L$339,10,FALSE)*($B203/(1-$B$347)) -> 0 | F203: =(VLOOKUP($A203,Working!$B$2:$O$339,11,FALSE)/(VLOOKUP($A203,Working!$B$2:$O$339,12,FALSE)/1000))*($B203/(1-$B$347)) -> 0
A204: Oadby and Wigston | B204: 0 | C204: =VLOOKUP($A204,Working!$B$2:$O$339,4,FALSE)*($B204/(1-$B$347)) -> 0 | D204: =VLOOKUP($A204,Working!$B$2:$O$339,7,FALSE)*($B204/(1-$B$347)) -> 0 | E204: =VLOOKUP($A204,Working!$B$2:$L$339,10,FALSE)*($B204/(1-$B$347)) -> 0 | F204: =(VLOOKUP($A204,Working!$B$2:$O$339,11,FALSE)/(VLOOKUP($A204,Working!$B$2:$O$339,12,FALSE)/1000))*($B204/(1-$B$347)) -> 0
... 144 more rows

Sheet Section C notes
B2: How to fill in Section C [WITHDRAWN]
B4: 1. Section C must be completed by all applicants.
B5: 2. Do not add additional lines or make any changes to the formatting or locked cells. Doing so will delay the processing of applications.
B6: 3. Enter all amounts in £m, to 3 decimal places.
B7: 4. Please ensure source and use of funding totals are identical (i.e. B5 = B6). Total cost over the length of the project cell in Table 1 should equal total use of funding over the length of the project cell in Table 2 (i.e. E22 = E40).
B8: 5. The funding and costs included should be all those unlocked by the provision of RGF funding.
B10: Table 1 - All Sources of Funding
B11: 6. The source of the funding should be identified i.e. name of provider. You should also provide the funding type using the following categories:
B12: RGF;
B13: Public funding
B14: UK-based funding (please specify in comments box)
B15: European Regional Development Fund (ERDF)
B16: Private funding
B17: Company existing funds (including Group Funds)
B18: New equity (e.g. shareholder funds)
B19: Bank and related financing (including loans, mortgages, overdrafts, other forms of asset financing)
B20: Future cash flows
B21: Other (please specify)
B23: 7. You must also specify to what extent the funding is confirmed (i.e. Secured already, Subject to RGF Award, Not Confirmed). Please include a short comment in Column P where appropriate noting how confident you are that the funding source will be realised (e.g. For bank debt, have you contacted a bank previously? Do you have an existing facility? For group funds, are these allocated subject to RGF? Or will RGF allow you to compete for them? Also confirm which funding source would cover any cost overrun).
B25: Table 2 - Use of all Project Funding
B26: 8. You should enter in this table the different uses of all sources of funding. The total for this table should equal the total in Table 1. Please also ensure that this total is equal to the sum of the totals in Tables 3, 4, 5 and 6 (i.e. E40 = E59 + E75 + E91 + E107).
B27: 9. If you include ongoing operating costs you should distinguish between these and the costs of the project itself; and
B28: 10. For costs that are eligible under the EU State Aid General Block Exemption Regulation (GBER) please include the GBER category for each line of spend. See GBER guidance to determine what category each line of expenditure should fall into:
B29: http://ec.europa.eu/competition/state_aid/legislation/gber_regulation_en.pdf
B31: Table 3 - R&D Expenditure Profile
B32: 11. Of the total project expenditure, as set out in Table 2, please provide a breakdown of the amount that will be spent on R&D. Each line should have a state aid category attributed to it, as per one of the following:
B33: "fundamental research" means experimental or theoretical work undertaken primarily to acquire new knowledge of the underlying foundations of phenomena and observable facts, without any direct practical application to developing new products or services
B34: "industrial research" means the planned research or critical investigation aimed at the acquisition of new knowledge and skills for developing new products, processes or services or for bringing about a significant improvement in existing products, processes or services. If it is an SME undertaking this research, appraisers should choose "Industrial SME" in the drop down menu, otherwise choose "Industrial"
B35: "experimental development". The development of commercially usable prototypes and pilot projects where the prototype is necessarily the final commercial product and where it is too expensive to produce for it to be used only for demonstration and validation purposes. Experimental development does not include the routine or periodic changes made to products, production lines, manufacturing processes, existing services and other operations in progress, even if such changes may represent improvements. If it is an SME carrying out this activity choose "Experimental SME" from the drop down menu, otherwise choose "Experimental"
B36: "Not R&D". Sometimes applicants will state they are undertaking R&D where in fact it will be a periodic change to products, services, processes etc. In this case choose "Not R&D" from the drop-down menu
B38: Table 4 - Skills Training Expenditure Profile
B39: 12. Of the total project expenditure, as set out in Table 2, please provide a breakdown of the amount that will be spent on skills training. You should include training and skills activity that is likely to add value e.g. productivity improvements or addressing skills gaps. Each line should have a state aid category attributed to it, as per one of the following:
B40: General - if the training relates to a generalist qualification, e.g. an NVQ or general industry qualification
B41: Specific - if the training is specific to skills required in the company and the new skills acquired cannot be used in another company
B42: General SME - As with general, but if the company is an SME
B43: Specific SME - As with specific, but if the company is an SME
B45: Table 5 - Capital Expenditure Profile
B46: 13. Of the total project expenditure, as set out in Table 2, please provide a breakdown of the amount that will be spent on capital equipment or investment.
B47: This will typically include investment in equipment, buildings, land, and capitalised salaries.
B49: Table 6 - Other Expenditure Profile
B50: 14. Of the total project expenditure, as set out in Table 2, please provide a breakdown of the amount that all activity that does not fall into the categories listed in Tables 3 to 5. This could include professional fees, taxation and other admin costs.
B52: Table 7 - Uses of Public Funding including RGF
B53: 15. You should enter in this table all the different uses of public funding including RGF.
B54: Of all the expenditure listed in tables 3, 4, 5 and 6, please specify which of these categories will be paid for by public funding sources including RGF. Please use the same expenditure descriptors as have been used in the previous tables. This should not include items that will be paid for by any private sector source.

Sheet Section C
A1: Section C: Sources and use of funding
A2: Please complete Tables 1 to 7
A3: Please ensure source and use of funding totals are identical (i.e. B5 = B6). Total cost over the length of the project cell in Table 1 should equal total use of funding over the length of the project cell in Table 2 (i.e. E22 = E40). Please also ensure that the use of funding total in Table 2 is equal to the sum of the totals in Tables 3, 4, 5 and 6 (i.e. E40 = E59 + E75 + E91 + E107).
A5: Total sources of funding | B5: =E22 -> 0
A6: Total uses of funding | B6: =E40 -> 0 | C6: =IF(B6=B5,"","ERROR - FUNDING SOURCES AND USES DO NOT MATCH") -> 
A8: Sources of funding
A10: Table 1 - All sources of funding
A11: Specify the sources of all public, private and RGF funding.
A13: Funding Type - Public, Private funding | B13: Source of funding | C13: Is the funding confirmed? | D13: Is this funding cash/In-kind? | E13: Total Contribution (£m) | F13: FY 2014/15 | G13: FY 2015/16 | H13: FY 2016/17 | I13: FY 2017/18 | J13: FY 2018/19 | K13: FY 2019/20 | L13: FY 2020/21 | M13: FY 2021/22 | N13: FY 2022/23 | O13: FY 2023/24 | P13: Comments
E14: =SUM(F14:O14) -> 0
E15: =SUM(F15:O15) -> 0
E16: 0
E17: 0
E18: 0
E19: 0
E20: 0
E21: 0
A22: PROJECT TOTAL | E22: =SUM(E14:E21) -> 0 | F22: =SUM(F14:F21) -> 0 | G22: =SUM(G14:G21) -> 0 | H22: 0 | I22: 0 | J22: 0 | K22: 0 | L22: 0 | M22: 0 | N22: 0 | O22: 0
A25: Uses of funding
A27: Table 2 - Uses of funding.
A28: Specify the uses of all public, private and RGF funding.
A30: Expenditure Items | B30: GBER category - See "Section C notes" | E30: Total Spend (£m) | F30: FY 2014/15 | G30: FY 2015/16 | H30: FY 2016/17 | I30: FY 2017/18 | J30: FY 2018/19 | K30: FY 2019/20 | L30: FY 2020/21 | M30: FY 2021/22 | N30: FY 2022/23 | O30: FY 2023/24 | P30: Comments
E31: =SUM(F31:O31) -> 0
E32: =SUM(F32:O32) -> 0
E33: 0
E34: 0
E35: 0
E36: 0
E37: 0
E38: 0
E39: 0
A40: Total | E40: =SUM(E31:E39) -> 0 | F40: =SUM(F31:F39) -> 0 | G40: =SUM(G31:G39) -> 0 | H40: 0 | I40: 0 | J40: 0 | K40: 0 | L40: 0 | M40: 0 | N40: 0 | O40: 0
A43: Breakdown of funding uses
A44: Tables 3, 4, 5 and 6 should sum to the totals in Table 2 above.
A46: Table 3 - R&D expenditure profile
A47: Of the total expenditure on the project (as in Table 2), specify the expenditure profile for all activity related to R&D .
A49: Expenditure Items | B49: Type of R&D (Fundamental, Industrial, Experimental) | E49: Total Spend (£m) | F49: FY 2014/15 | G49: FY 2015/16 | H49: FY 2016/17 | I49: FY 2017/18 | J49: FY 2018/19 | K49: FY 2019/20 | L49: FY 2020/21 | M49: FY 2021/22 | N49: FY 2022/23 | O49: FY 2023/24 | P49: Comments
E50: =SUM(F50:O50) -> 0
E51: 0
E52: 0
E53: 0
E54: 0
E55: 0
E56: 0
E57: 0
E58: 0
A59: Total | E59: =SUM(E50:E58) -> 0 | F59: =SUM(F50:F58) -> 0 | G59: =SUM(G50:G58) -> 0 | H59: 0 | I59: 0 | J59: 0 | K59: 0 | L59: 0 | M59: 0 | N59: 0 | O59: 0
A62: Table 4 - Skills training expenditure profile
A63: Of the total expenditure on the project (as in Table 2), specify the expenditure profile for all activity related to R&D .
A65: Expenditure Items | B65: Type of Training (General, Specific) | E65: Total Spend (£m) | F65: FY 2014/15 | G65: FY 2015/16 | H65: FY 2016/17 | I65: FY 2017/18 | J65: FY 2018/19 | K65: FY 2019/20 | L65: FY 2020/21 | M65: FY 2021/22 | N65: FY 2022/23 | O65: FY 2023/24 | P65: Comments
E66: =SUM(F66:O66) -> 0 | BK66: Type of training
E67: =SUM(F67:O67) -> 0 | BK67: General
E68: 0 | BK68: Specific
E69: 0 | BK69: General SME
E70: 0 | BK70: Specific SME
E71: 0
E72: 0
E73: 0
E74: 0
A75: Total | E75: =SUM(E66:E74) -> 0 | F75: 0 | G75: 0 | H75: 0 | I75: 0 | J75: 0 | K75: 0 | L75: 0 | M75: 0 | N75: 0 | O75: 0
A78: Table 5 - Capital expenditure profile
A79: Of the total expenditure on the project (as in Table 2), specify the expenditure profile for all activity related to capital.
A81: Expenditure Items | B81: Type of Capital Expenditure (land and buildings, plant and machinery, etc) | E81: Total Spend (£m) | F81: FY 2014/15 | G81: FY 2015/16 | H81: FY 2016/17 | I81: FY 2017/18 | J81: FY 2018/19 | K81: FY 2019/20 | L81: FY 2020/21 | M81: FY 2021/22 | N81: FY 2022/23 | O81: FY 2023/24 | P81: Comments
E82: =SUM(F82:O82) -> 0 | BK82: Type of training
E83: =SUM(F83:O83) -> 0 | BK83: General
E84: 0 | BK84: Specific
E85: 0 | BK85: General SME
E86: 0 | BK86: Specific SME
E87: 0
E88: 0
E89: 0
E90: 0
A91: Total | E91: =SUM(E82:E90) -> 0 | F91: 0 | G91: 0 | H91: 0 | I91: 0 | J91: 0 | K91: 0 | L91: 0 | M91: 0 | N91: 0 | O91: 0
A94: Table 6 - Other expenditure profile
A95: Of the total expenditure on the project (as in Table 2), specify the expenditure profile for all activity that does not fall into the categories listed in Tables 3 to 5.
A97: Expenditure Items | E97: Total Spend (£m) | F97: FY 2014/15 | G97: FY 2015/16 | H97: FY 2016/17 | I97: FY 2017/18 | J97: FY 2018/19 | K97: FY 2019/20 | L97: FY 2020/21 | M97: FY 2021/22 | N97: FY 2022/23 | O97: FY 2023/24 | P97: Comments
E98: =SUM(F98:O98) -> 0 | BK98: Type of training
E99: =SUM(F99:O99) -> 0 | BK99: General
E100: 0 | BK100: Specific
E101: 0 | BK101: General SME
E102: 0 | BK102: Specific SME
E103: 0
E104: 0
E105: 0
E106: 0
A107: Total | E107: =SUM(E98:E106) -> 0 | F107: 0 | G107: 0 | H107: 0 | I107: 0 | J107: 0 | K107: 0 | L107: 0 | M107: 0 | N107: 0 | O107: 0
A110: Specific Uses of Public Funding including RGF
A112: Table 7 - Uses of public funding including RGF
A113: Of the funding listed in Tables 3, 4, 5 and 6 specify the uses of RGF and any other public sector funding.
A114: Identify the expenditure items that public sector funding including RGF will be used to fund.
A116: Funding Type | B116: Specific type of funding (the source name. e.g. ERDF) | C116: Expenditure Items | D116: Type of expenditure | E116: Total Spend (£m) | F116: FY 2014/15 | G116: FY 2015/16 | H116: FY 2016/17 | I116: FY 2017/18 | J116: FY 2018/19 | K116: FY 2019/20 | L116: FY 2020/21 | M116: FY 2021/22 | N116: FY 2022/23 | O116: FY 2023/24 | P116: Comments
E117: =SUM(F117:O117) -> 0
E118: 0
E119: 0
E120: 0
E121: 0
E122: 0
E123: 0
E124: 0
E125: 0
A126: TOTAL | E126: =SUM(E117:E125) -> 0 | F126: =SUM(F117:F125) -> 0 | G126: =SUM(G117:G125) -> 0 | H126: 0 | I126: 0 | J126: 0 | K126: 0 | L126: 0 | M126: 0 | N126: 0 | O126: 0

Sheet Section D notes
B2: How to fill in Section D [WITHDRAWN]
B4: 1. Section D is an optional section for additional benefits and costs.
B5: 2. Do not add additional lines or make any changes to the formatting or locked cells. Doing so will delay the processing of applications.
B6: 3. Please enter monetised environmental and health benefits/costs in Table 1, and all other additional benefits/costs in Table 2.
B8: Table 1 - Quantified environmental and health benefits
B9: 4. Please enter environmental benefits/costs in Tonnes of Carbon Dioxide Equivalent (tCO2e). Guidelines for calculating this can be found at: http://www.ukconversionfactorscarbonsmart.co.uk/
B10: 5. Please enter health benefits/costs in Quality Adjusted Life Years (QALYs). Please see the application guidance document for information on calculating QALYs.
B11: 6. Enter benefits as positive numbers and costs as negative numbers.
B12: 7. If you cannot calculate these benefits in the required units, please enter them in Table 2 instead.
B14: Table 2 - Other costs and benefits
B15: 8. All other benefits should be included in Table 2. This includes any environmental and health benefits/costs that have NOT been included in Table 1.

Sheet Section D
A2: Section D: Wider impacts [WITHDRAWN]
A4: If relevant, please use the tables below to set out the wider (i.e. non-employment) costs / benefits associated with this project.
A6: Table 1: Quantified environmental and health impacts.
A7: ENTER BENEFITS AS POSITIVE NUMBERS AND COSTS AS NEGATIVE NUMBERS
A9: Quantified environmental and health impacts | C9: Unit | D9: Description | E9: FY 2014/15 | F9: FY 2015/16 | G9: FY 2016/17 | H9: FY 2017/18 | I9: FY 2018/19 | J9: FY 2019/20 | K9: FY 2020/21 | L9: FY 2021/22 | M9: FY 2022/23 | N9: FY 2023/24 | O9: Comments
B10: Local Authority
A11: Environmental Benefits / (Costs) | C11: Tonnes of Carbon Dioxide Equivalent (tCO2e)
A12: Health Benefits / (Costs) | C12: Quality Adjusted Life Years (QALYs)
A15: Table 2: Other costs and benefits
A16: If these impacts have been quantified, please provide us with details of the key assumptions used to monetise them
A18: Wider benefits non-employment impacts | B18: Select if Yes | C18: When and where? | D18: Supporting analysis and evidence (e.g. data, survey, research) including any quantification | E18: Guidance
A19: Agglomeration benefits / contribution to economic growth in cities
A20: Uplift in land values in neighbouring areas | E20: Such programmes as infrastructure/buildings and public works improve environments and amenity value of the area which are capitalised into land prices not only in the area itself but also in neighbouring areas.
A21: Increasing attractiveness of an area to businesses, due to improvements to public goods (e.g. parks and the public realm) or crime reductions | E21: Improvements in public realm and associated effects on perceptions of the area, crime level and fear of crime can provide pull factors for businesses
A22: Future savings to the Exchequer stemming from the higher likelihood of gaining and retaining employment by residents of the area | E22: As intervention improves mental and physical health outcomes of residents, their chance of getting and retaining employment also increases, yielding benefits to the Exchequer
A23: Future savings to the Exchequer as a result of reduced crime or improvements in health
A24: Environmental impacts, such as changes in GHG emissions, local environmental quality (e.g. air, water, noise), flood risk, green space, biodiversity, and impacts on landscape.
A25: Reductions in the distance from the labour market among residents of the area as they become more job-ready/move closer to the labour market | E25: For example, the hardest to reach (such as some minority ethnic groups and individuals with multiple and complex needs) are likely to move closer to the labour market, rather than enter it at the end of the intervention, if the approach is targeted and tailored to their needs
A26: Transport economic efficiency e.g. safety enhancements and time savings accruing to other businesses and consumers
A27: Improvements to social cohesion | E27: This could include improvements as a result of crime reductions, public realm improvements, etc.
A28: Option value | E28: Where the programme creates a significant incremental option to make follow-on investments, or flexibility to alter the investment at some point in the future
A29: Other (write in)

Sheet Working (hidden)
A1: ONS Code Local Authority Districts (Post 2009 Boundaries) | B1: Local Authority Districts (Post-2009 Boundaries) | C1: Working age client group : out-of-work benefits : Feb 2012 | D1: Working age population (16-64) 2011 | E1: Proportion of resident population aged 16-64 claiming out of work benefits Aug 2013 | F1: Public Sector Employees 2012 | G1: All Employees 2012 | H1: Public sector employee job share 2012 | I1: Private sector employees 2009 | J1: Private sector employees 2012 | K1: Private sector employee job growth 2009-2012 | L1: Number of active enterprises 2012 | M1: Mid-year population 2012 | N1: Number of active enterprises per 1,000 resident population 2011 | O1: Region
A2: E07000223 | B2: Adur | E2: 9.4 | F2: 3429 | G2: 19306 | H2: =F2*100/G2 -> 17.76131773 | I2: 15930 | J2: 16067 | K2: =((J2/I2)-1)*100 -> 0.8600125549 | L2: 1985 | M2: 61900 | N2: =L2/(M2*0.001) -> 32.06785137 | O2: South East
A3: E07000026 | B3: Allerdale | E3: 10.8 | F3: 7710 | G3: 37837 | H3: 20.37687977 | I3: 30389 | J3: 31788 | K3: 4.603639475 | L3: 3990 | M3: 96300 | N3: 41.43302181 | O3: North West
A4: E07000032 | B4: Amber Valley | E4: 9.2 | F4: 10505 | G4: 50667 | H4: 20.73341623 | I4: 42782 | J4: 40024 | K4: -6.446636436 | L4: 3905 | M4: 122700 | N4: 31.82559087 | O4: East Midlands
A5: E07000224 | B5: Arun | E5: 9.1 | F5: 6607 | G5: 42046 | H5: 15.71374209 | I5: 34495 | J5: 36637 | K5: 6.209595594 | L5: 4665 | M5: 151400 | N5: 30.81241744 | O5: South East
A6: E07000170 | B6: Ashfield | E6: 13.3 | F6: 11428 | G6: 48156 | H6: 23.73120691 | I6: 36678 | J6: 37653 | K6: 2.658269262 | L6: 2430 | M6: 120100 | N6: 20.23313905 | O6: East Midlands
A7: E07000105 | B7: Ashford | E7: 8.6 | F7: 10063 | G7: 52444 | H7: 19.18808634 | I7: 42641 | J7: 41936 | K7: -1.653338336 | L7: 5065 | M7: 120100 | N7: 42.17318901 | O7: South East
A8: E07000004 | B8: Aylesbury Vale | E8: 5.7 | F8: 15459 | G8: 69925 | H8: 22.10797283 | I8: 52438 | J8: 57634 | K8: 9.908844731 | L8: 8230 | M8: 177800 | N8: 46.287964 | O8: South East
A9: E07000200 | B9: Babergh | E9: 6.7 | F9: 4165 | G9: 30598 | H9: 13.61200078 | I9: 26935 | J9: 27213 | K9: 1.032114349 | L9: 3805 | M9: 87900 | N9: 43.28782708 | O9: East of England
A10: E09000002 | B10: Barking and Dagenham | E10: 15.4 | F10: 12494 | G10: 48337 | H10: 25.84769431 | I10: 35031 | J10: 38384 | K10: 9.571522366 | L10: 3700 | M10: 190600 | N10: 19.41238195 | O10: London
A11: E09000003 | B11: Barnet | E11: 8.4 | F11: 26063 | G11: 115750 | H11: 22.51663067 | I11: 91065 | J11: 95463 | K11: 4.829517378 | L11: 17065 | M11: 364000 | N11: 46.88186813 | O11: London
A12: E08000016 | B12: Barnsley | E12: 15.5 | F12: 19834 | G12: 72432 | H12: 27.38292467 | I12: 54806 | J12: 54435 | K12: -0.6769331825 | L12: 5015 | M12: 233700 | N12: 21.45913564 | O12: Yorkshire and The Humber
A13: E07000027 | B13: Barrow-in-Furness | E13: 14.8 | F13: 6803 | G13: 29370 | H13: 23.16309159 | I13: 23235 | J13: 22620 | K13: -2.646868948 | L13: 1645 | M13: 68400 | N13: 24.0497076 | O13: North West
A14: E07000066 | B14: Basildon | E14: 11.4 | F14: 16526 | G14: 76728 | H14: 21.53842144 | I14: 63514 | J14: 65161 | K14: 2.593129074 | L14: 5760 | M14: 176500 | N14: 32.63456091 | O14: East of England
A15: E07000084 | B15: Basingstoke and Deane | E15: 6.5 | F15: 12666 | G15: 84659 | H15: 14.96119727 | I15: 73694 | J15: 71573 | K15: -2.878117622 | L15: 6515 | M15: 170500 | N15: 38.2111437 | O15: South East
A16: E07000171 | B16: Bassetlaw | E16: 11.2 | F16: 10799 | G16: 45624 | H16: 23.66955988 | I16: 36615 | J16: 35809 | K16: -2.201283627 | L16: 3345 | M16: 113200 | N16: 29.54946996 | O16: East Midlands
A17: E06000022 | B17: Bath and North East Somerset | E17: 6.8 | F17: 19816 | G17: 85042 | H17: 23.30142753 | I17: 68045 | J17: 68991 | K17: 1.390256448 | L17: 7155 | M17: 177600 | N17: 40.28716216 | O17: South West
A18: E06000055 | B18: Bedford | E18: 10.2 | F18: 16218 | G18: 68381 | H18: 23.7171144 | I18: 54647 | J18: 52939 | K18: -3.125514667 | L18: 5445 | M18: 159200 | N18: 34.20226131 | O18: East of England
A19: E09000004 | B19: Bexley | E19: 9.1 | F19: 12620 | G19: 66700 | H19: 18.92053973 | I19: 53306 | J19: 55383 | K19: 3.896371891 | L19: 6140 | M19: 234300 | N19: 26.20571916 | O19: London
A20: E08000025 | B20: Birmingham | E20: 16.4 | F20: 129295 | G20: 467985 | H20: 27.62802227 | I20: 347061 | J20: 362224 | K20: 4.368972601 | L20: 24900 | M20: 1085400 | N20: 22.9408513 | O20: West Midlands
A21: E07000129 | B21: Blaby | E21: 6.2 | F21: 11750 | G21: 48285 | H21: 24.33467951 | I21: 38375 | J21: 42153 | K21: 9.84495114 | L21: 3535 | M21: 94600 | N21: 37.36786469 | O21: East Midlands
A22: E06000008 | B22: Blackburn with Darwen | E22: 15.9 | F22: 16611 | G22: 59992 | H22: 27.68869183 | I22: 46004 | J22: 44795 | K22: -2.628032345 | L22: 3780 | M22: 147700 | N22: 25.59241706 | O22: North West
A23: E06000009 | B23: Blackpool | E23: 19.9 | F23: 20692 | G23: 57070 | H23: 36.25722797 | I23: 41176 | J23: 38692 | K23: -6.032640373 | L23: 3155 | M23: 142000 | N23: 22.21830986 | O23: North West
A24: E07000033 | B24: Bolsover | E24: 12.9 | F24: 4579 | G24: 26223 | H24: 17.4617702 | I24: 21216 | J24: 22300 | K24: 5.109351433 | L24: 1715 | M24: 76400 | N24: 22.44764398 | O24: East Midlands
A25: E08000001 | B25: Bolton | E25: 14.5 | F25: 24582 | G25: 104727 | H25: 23.47245696 | I25: 82045 | J25: 81319 | K25: -0.8848802486 | L25: 7315 | M25: 279000 | N25: 26.21863799 | O25: North West
A26: E07000136 | B26: Boston | E26: 10.2 | F26: 6632 | G26: 30381 | H26: 21.82943287 | I26: 22320 | J26: 23619 | K26: 5.819892473 | L26: 1955 | M26: 64800 | N26: 30.16975309 | O26: East Midlands
A27: E06000028 | B27: Bournemouth | E27: 10.8 | F27: 14784 | G27: 74606 | H27: 19.81610058 | I27: 60516 | J27: 64085 | K27: 5.897613854 | L27: 5435 | M27: 186700 | N27: 29.11087306 | O27: South West
A28: E06000036 | B28: Bracknell Forest | E28: 6 | F28: 8008 | G28: 61567 | H28: 13.00696802 | I28: 50974 | J28: 51740 | K28: 1.50272688 | L28: 3995 | M28: 115100 | N28: 34.70894874 | O28: South East
A29: E08000032 | B29: Bradford | E29: 14.6 | F29: 49980 | G29: 197641 | H29: 25.28827521 | I29: 151403 | J29: 142569 | K29: -5.834758889 | L29: 12515 | M29: 524600 | N29: 23.85627144 | O29: Yorkshire and The Humber
A30: E07000067 | B30: Braintree | E30: 7.9 | F30: 8358 | G30: 48454 | H30: 17.2493499 | I30: 41894 | J30: 42593 | K30: 1.668496682 | L30: 5825 | M30: 148400 | N30: 39.25202156 | O30: East of England
A31: E07000143 | B31: Breckland | E31: 8.8 | F31: 5777 | G31: 40761 | H31: 14.17286131 | I31: 35464 | J31: 37944 | K31: 6.993006993 | L31: 4510 | M31: 131900 | N31: 34.19257013 | O31: East of England
A32: E09000005 | B32: Brent | E32: 11.5 | F32: 21083 | G32: 99000 | H32: 21.2959596 | I32: 77542 | J32: 88253 | K32: 13.81315932 | L32: 11145 | M32: 314700 | N32: 35.41468065 | O32: London
A33: E07000068 | B33: Brentwood | E33: 6 | F33: 4562 | G33: 31399 | H33: 14.52912513 | I33: 32046 | J33: 29517 | K33: -7.891780565 | L33: 3480 | M33: 74000 | N33: 47.02702703 | O33: East of England
A34: E06000043 | B34: Brighton and Hove | E34: 10.3 | F34: 24477 | G34: 121158 | H34: 20.20254544 | I34: 96974 | J34: 105315 | K34: 8.601274568 | L34: 10880 | M34: 275800 | N34: 39.448876 | O34: South East
A35: E06000023 | B35: Bristol, City of | E35: 12.1 | F35: 62975 | G35: 245874 | H35: 25.6127122 | I35: 187657 | J35: 184384 | K35: -1.744139574 | L35: 13850 | M35: 432500 | N35: 32.02312139 | O35: South West
A36: E07000144 | B36: Broadland | E36: 6.7 | F36: 7807 | G36: 47394 | H36: 16.47254927 | I36: 40016 | J36: 38192 | K36: -4.558176729 | L36: 4230 | M36: 125200 | N36: 33.78594249 | O36: East of England
A37: E09000006 | B37: Bromley | E37: 7.9 | F37: 21586 | G37: 103469 | H37: 20.86228726 | I37: 86295 | J37: 83189 | K37: -3.599281534 | L37: 11300 | M37: 314000 | N37: 35.98726115 | O37: London
A38: E07000234 | B38: Bromsgrove | E38: 6.3 | F38: 5712 | G38: 34397 | H38: 16.60609937 | I38: 29571 | J38: 30650 | K38: 3.648845152 | L38: 4115 | M38: 94300 | N38: 43.63732768 | O38: West Midlands
A39: E07000095 | B39: Broxbourne | E39: 9 | F39: 4609 | G39: 36870 | H39: 12.50067806 | I39: 34060 | J39: 35009 | K39: 2.786259542 | L39: 3250 | M39: 94500 | N39: 34.39153439 | O39: East of England
A40: E07000172 | B40: Broxtowe | E40: 8.8 | F40: 6214 | G40: 37360 | H40: 16.63276231 | I40: 34250 | J40: 32232 | K40: -5.891970803 | L40: 2670 | M40: 110700 | N40: 24.11924119 | O40: East Midlands
A41: E07000117 | B41: Burnley | E41: 16.7 | F41: 8201 | G41: 34152 | H41: 24.01323495 | I41: 26051 | J41: 27324 | K41: 4.886568654 | L41: 2160 | M41: 87100 | N41: 24.79908152 | O41: North West
A42: E08000002 | B42: Bury | E42: 12.5 | F42: 16777 | G42: 64943 | H42: 25.83342316 | I42: 48235 | J42: 48438 | K42: 0.4208562247 | L42: 5405 | M42: 186200 | N42: 29.02792696 | O42: North West
A43: E08000033 | B43: Calderdale | E43: 12.6 | F43: 26523 | G43: 89580 | H43: 29.60817147 | I43: 64996 | J43: 66413 | K43: 2.180134162 | L43: 6740 | M43: 205300 | N43: 32.83000487 | O43: Yorkshire and The Humber
A44: E07000008 | B44: Cambridge | E44: 6 | F44: 18951 | G44: 89712 | H44: 21.12426431 | I44: 70393 | J44: 73322 | K44: 4.160925092 | L44: 4180 | M44: 125200 | N44: 33.38658147 | O44: East of England
A45: E09000007 | B45: Camden | E45: 11 | F45: 44431 | G45: 289253 | H45: 15.36060127 | I45: 251697 | J45: 273289 | K45: 8.578568676 | L45: 21935 | M45: 225000 | N45: 97.48888889 | O45: London
A46: E07000192 | B46: Cannock Chase | E46: 10.6 | F46: 6082 | G46: 34597 | H46: 17.57955892 | I46: 30620 | J46: 29609 | K46: -3.301763553 | L46: 2985 | M46: 97900 | N46: 30.49029622 | O46: West Midlands
A47: E07000106 | B47: Canterbury | E47: 8.3 | F47: 13867 | G47: 63183 | H47: 21.94735926 | I47: 49754 | J47: 50461 | K47: 1.420991277 | L47: 4530 | M47: 153400 | N47: 29.53063885 | O47: South East
A48: E07000028 | B48: Carlisle | E48: 10.7 | F48: 11974 | G48: 55314 | H48: 21.64732256 | I48: 43130 | J48: 42150 | K48: -2.272200325 | L48: 3890 | M48: 108000 | N48: 36.01851852 | O48: North West
A49: E07000069 | B49: Castle Point | E49: 8.8 | F49: 4305 | G49: 20358 | H49: 21.14647804 | I49: 17139 | J49: 16884 | K49: -1.487834763 | L49: 2720 | M49: 88200 | N49: 30.83900227 | O49: East of England
A50: E06000056 | B50: Central Bedfordshire | E50: 6.7 | F50: 12797 | G50: 84963 | H50: 15.06185045 | I50: 76122 | J50: 77859 | K50: 2.281863325 | L50: 10280 | M50: 260000 | N50: 39.53846154 | O50: East of England
A51: E07000130 | B51: Charnwood | E51: 6.9 | F51: 10146 | G51: 63474 | H51: 15.98449759 | I51: 55060 | J51: 52018 | K51: -5.524881947 | L51: 5140 | M51: 168800 | N51: 30.45023697 | O51: East Midlands
A52: E07000070 | B52: Chelmsford | E52: 6.9 | F52: 26869 | G52: 83472 | H52: 32.18923711 | I52: 57423 | J52: 58249 | K52: 1.438448009 | L52: 6300 | M52: 169300 | N52: 37.21204962 | O52: East of England
A53: E07000078 | B53: Cheltenham | E53: 8.1 | F53: 17557 | G53: 65458 | H53: 26.82177885 | I53: 46586 | J53: 49061 | K53: 5.312754905 | L53: 4420 | M53: 116100 | N53: 38.07062877 | O53: South West
A54: E07000177 | B54: Cherwell | E54: 6.1 | F54: 12347 | G54: 68033 | H54: 18.14854556 | I54: 58159 | J54: 58459 | K54: 0.515827301 | L54: 5960 | M54: 142800 | N54: 41.73669468 | O54: South East
A55: E06000049 | B55: Cheshire East | E55: 7.6 | F55: 28565 | G55: 169899 | H55: 16.81293003 | I55: 147119 | J55: 149640 | K55: 1.713578804 | L55: 16430 | M55: 372100 | N55: 44.1547971 | O55: North West
A56: E06000050 | B56: Cheshire West & Chester | E56: 9.6 | F56: 32058 | G56: 152086 | H56: 21.07886327 | I56: 121306 | J56: 125747 | K56: 3.660989564 | L56: 11485 | M56: 330200 | N56: 34.78195033 | O56: North West
A57: E07000034 | B57: Chesterfield | E57: 13.5 | F57: 17156 | G57: 50770 | H57: 33.79160922 | I57: 34000 | J57: 35964 | K57: 5.776470588 | L57: 2750 | M57: 103800 | N57: 26.49325626 | O57: East Midlands
A58: E07000225 | B58: Chichester | E58: 6.5 | F58: 13716 | G58: 59203 | H58: 23.16774488 | I58: 42808 | J58: 44894 | K58: 4.872920949 | L58: 5820 | M58: 114500 | N58: 50.82969432 | O58: South East
A59: E07000005 | B59: Chiltern | E59: 4.8 | F59: 4749 | G59: 32803 | H59: 14.47733439 | I59: 29368 | J59: 28132 | K59: -4.20866249 | L59: 5360 | M59: 93000 | N59: 57.6344086 | O59: South East
A60: E07000118 | B60: Chorley | E60: 9 | F60: 9576 | G60: 40884 | H60: 23.42236572 | I60: 32005 | J60: 33040 | K60: 3.233869708 | L60: 3625 | M60: 109100 | N60: 33.2263978 | O60: North West
A61: E07000048 | B61: Christchurch | E61: 8 | F61: 3063 | G61: 19547 | H61: 15.66992377 | I61: 16658 | J61: 16178 | K61: -2.881498379 | L61: 1680 | M61: 48000 | N61: 35 | O61: South West
A62: E09000001 | B62: City of London | E62: 4.3 | F62: 19603 | G62: 356623 | H62: 5.496841202 | I62: 313519 | J62: 378794 | K62: 20.82010979 | L62: 13740 | M62: 7600 | N62: 1807.894737 | O62: London
A63: E07000071 | B63: Colchester | E63: 8.6 | F63: 16218 | G63: 77280 | H63: 20.98602484 | I63: 62333 | J63: 62545 | K63: 0.3401087706 | L63: 5945 | M63: 176000 | N63: 33.77840909 | O63: East of England
A64: E07000029 | B64: Copeland | E64: 12 | F64: 15050 | G64: 29950 | H64: 50.25041736 | I64: 15319 | J64: 14632 | K64: -4.484626934 | L64: 2175 | M64: 70300 | N64: 30.93883357 | O64: North West
A65: E07000150 | B65: Corby | E65: 13.2 | F65: 3557 | G65: 29236 | H65: 12.16650705 | I65: 25910 | J65: 26112 | K65: 0.7796217677 | L65: 1415 | M65: 63100 | N65: 22.42472266 | O65: East Midlands
A66: E06000052 | B66: Cornwall | E66: 10.4 | F66: 45125 | G66: 208215 | H66: =F66*100/G66 -> 21.67230987 | I66: 170328 | J66: 170331 | K66: =((J66/I66)-1)*100 -> 0.001761307595 | L66: 20785 | M66: 537900 | N66: =L66/(M66*0.001) -> 38.64101134 | O66: South West
A67: E07000079 | B67: Cotswold | E67: 4.9 | F67: 6108 | G67: 39297 | H67: 15.54317123 | I67: 33155 | J67: 34258 | K67: 3.326798371 | L67: 5405 | M67: 83600 | N67: 64.65311005 | O67: South West
A68: E06000047 | B68: County Durham | E68: 14.3 | F68: 43760 | G68: 167090 | H68: 26.18947872 | I68: 127446 | J68: 124720 | K68: -2.138945122 | L68: 11425 | M68: 514300 | N68: 22.2146607 | O68: North East
A69: E08000026 | B69: Coventry | E69: 12.7 | F69: 32831 | G69: 142184 | H69: 23.09050245 | I69: 110690 | J69: 112991 | K69: 2.078778571 | L69: 7315 | M69: 323100 | N69: 22.64004952 | O69: West Midlands
A70: E07000163 | B70: Craven | E70: 6.1 | F70: 4163 | G70: 27410 | H70: 15.18788763 | I70: 26814 | J70: 24267 | K70: -9.4987693 | L70: 3140 | M70: 55500 | N70: 56.57657658 | O70: Yorkshire and The Humber
A71: E07000226 | B71: Crawley | E71: 8.5 | F71: 9173 | G71: 81613 | H71: 11.23963094 | I71: 70558 | J71: 77131 | K71: 9.315740242 | L71: 2555 | M71: 108300 | N71: 23.59187442 | O71: South East
A72: E09000008 | B72: Croydon | E72: 11 | F72: 29568 | G72: 122305 | H72: 24.17562651 | I72: 96561 | J72: 90273 | K72: -6.511945817 | L72: 10720 | M72: 368900 | N72: 29.05936568 | O72: London
A73: E07000096 | B73: Dacorum | E73: 7.2 | F73: 8451 | G73: 59667 | H73: 14.16360802 | I73: 52047 | J73: 52518 | K73: 0.904951294 | L73: 6475 | M73: 146700 | N73: 44.13769598 | O73: East of England
A74: E06000005 | B74: Darlington | E74: 13.2 | F74: 13108 | G74: 53289 | H74: 24.59794704 | I74: 37273 | J74: 38035 | K74: 2.044375285 | L74: 2600 | M74: 105200 | N74: 24.7148289 | O74: North East
A75: E07000107 | B75: Dartford | E75: 8.4 | F75: 9949 | G75: 50993 | H75: 19.51052105 | I75: 42423 | J75: 47797 | K75: 12.6676567 | L75: 2965 | M75: 98900 | N75: 29.97977755 | O75: South East
A76: E07000151 | B76: Daventry | E76: 6.5 | F76: 4533 | G76: 35637 | H76: 12.71992592 | I76: 32544 | J76: 31507 | K76: -3.186455261 | L76: 3905 | M76: 78300 | N76: 49.87228608 | O76: East Midlands
A77: E06000015 | B77: Derby | E77: 12.7 | F77: 28745 | G77: 119427 | H77: 24.0690966 | I77: 92407 | J77: 97053 | K77: 5.027757637 | L77: 5735 | M77: 250600 | N77: 22.88507582 | O77: East Midlands
A78: E07000035 | B78: Derbyshire Dales | E78: 5.6 | F78: 12234 | G78: 37400 | H78: 32.71122995 | I78: 25723 | J78: 24239 | K78: -5.769156008 | L78: 4260 | M78: 71300 | N78: 59.74754558 | O78: East Midlands
A79: E08000017 | B79: Doncaster | E79: 14.1 | F79: 32396 | G79: 114481 | H79: 28.29814554 | I79: 85095 | J79: 79665 | K79: -6.381103473 | L79: 6350 | M79: 302700 | N79: 20.97786587 | O79: Yorkshire and The Humber
A80: E07000108 | B80: Dover | E80: 11.2 | F80: 8582 | G80: 36124 | H80: 23.75705902 | I80: 29088 | J80: 25408 | K80: -12.65126513 | L80: 2860 | M80: 111800 | N80: 25.58139535 | O80: South East
A81: E08000027 | B81: Dudley | E81: 12.4 | F81: 26219 | G81: 119515 | H81: 21.93783207 | I81: 97035 | J81: 84626 | K81: -12.78816922 | L81: 8400 | M81: 313600 | N81: 26.78571429 | O81: West Midlands
A82: E09000009 | B82: Ealing | E82: 10.4 | F82: 20057 | G82: 112121 | H82: 17.88870952 | I82: 91671 | J82: 103395 | K82: 12.7892136 | L82: 12685 | M82: 340700 | N82: 37.23216906 | O82: London
A83: E07000009 | B83: East Cambridgeshire | E83: 5.9 | F83: 2535 | G83: 25513 | H83: 9.936111002 | I83: 22731 | J83: 24208 | K83: 6.497734372 | L83: 3640 | M83: 85100 | N83: 42.77320799 | O83: East of England
A84: E07000040 | B84: East Devon | E84: 6.6 | F84: 7259 | G84: 45726 | H84: 15.87499453 | I84: 38182 | J84: 39393 | K84: 3.171651564 | L84: 5690 | M84: 134400 | N84: 42.33630952 | O84: South West
A85: E07000049 | B85: East Dorset | E85: 5.3 | F85: 5596 | G85: 31887 | H85: 17.54947157 | I85: 26678 | J85: 25729 | K85: -3.557238174 | L85: 4045 | M85: 87800 | N85: 46.07061503 | O85: South West
A86: E07000085 | B86: East Hampshire | E86: 5 | F86: 5790 | G86: 48873 | H86: 11.8470321 | I86: 41313 | J86: 42707 | K86: 3.374240554 | L86: 5870 | M86: 116400 | N86: 50.42955326 | O86: South East
A87: E07000097 | B87: East Hertfordshire | E87: 5.3 | F87: 8476 | G87: 56943 | H87: 14.8850605 | I87: 51464 | J87: 50991 | K87: -0.919089072 | L87: 6730 | M87: 139500 | N87: 48.2437276 | O87: East of England
A88: E07000137 | B88: East Lindsey | E88: 12.9 | F88: 7337 | G88: 44010 | H88: 16.67121109 | I88: 37691 | J88: 35864 | K88: -4.847311029 | L88: 5115 | M88: 136600 | N88: 37.44509517 | O88: East Midlands
A89: E07000152 | B89: East Northamptonshire | E89: 7.5 | F89: 2428 | G89: 27991 | H89: 8.674216713 | I89: 25567 | J89: 24677 | K89: -3.481049791 | L89: 3345 | M89: 87400 | N89: 38.27231121 | O89: East Midlands
A90: E06000011 | B90: East Riding of Yorkshire | E90: 8.3 | F90: 33909 | G90: 119658 | H90: 28.33826405 | I90: 89537 | J90: 84411 | K90: -5.725007539 | L90: 12085 | M90: 335900 | N90: 35.97796963 | O90: Yorkshire and The Humber
A91: E07000193 | B91: East Staffordshire | E91: 8.8 | F91: 10234 | G91: 56164 | H91: 18.22163664 | I91: 46312 | J91: 46124 | K91: -0.4059423044 | L91: 3940 | M91: 114400 | N91: 34.44055944 | O91: West Midlands
A92: E07000061 | B92: Eastbourne | E92: 11.9 | F92: 9483 | G92: 39475 | H92: 24.02279924 | I92: 30986 | J92: 30137 | K92: -2.739947073 | L92: 2630 | M92: 100000 | N92: 26.3 | O92: South East
A93: E07000086 | B93: Eastleigh | E93: 5.7 | F93: 10018 | G93: 62804 | H93: 15.9512133 | I93: 53727 | J93: 54961 | K93: 2.296796769 | L93: 4310 | M93: 126800 | N93: 33.99053628 | O93: South East
A94: E07000030 | B94: Eden | E94: 5.8 | F94: 4117 | G94: 24234 | H94: 16.98852851 | I94: 20350 | J94: 20204 | K94: -0.7174447174 | L94: 3440 | M94: 52700 | N94: 65.27514231 | O94: North West
A95: E07000207 | B95: Elmbridge | E95: 4.6 | F95: 4933 | G95: 56536 | H95: 8.725413896 | I95: 51189 | J95: 53115 | K95: 3.762527105 | L95: 7295 | M95: 131500 | N95: 55.47528517 | O95: South East
A96: E09000010 | B96: Enfield | E96: 12.8 | F96: 24467 | G96: 95763 | H96: 25.54953374 | I96: 71763 | J96: 76755 | K96: 6.956230927 | L96: 9050 | M96: 317300 | N96: 28.52190356 | O96: London
A97: E07000072 | B97: Epping Forest | E97: 7.6 | F97: 6515 | G97: 46913 | H97: 13.88740861 | I97: 40994 | J97: 39632 | K97: -3.32243743 | L97: 6280 | M97: 126100 | N97: 49.80174465 | O97: East of England
A98: E07000208 | B98: Epsom and Ewell | E98: 5.1 | F98: 6177 | G98: 28559 | H98: 21.62890858 | I98: 22930 | J98: 23301 | K98: 1.617967728 | L98: 2860 | M98: 76100 | N98: 37.58212878 | O98: South East
A99: E07000036 | B99: Erewash | E99: 10.4 | F99: 7586 | G99: 37203 | H99: 20.3908287 | I99: 32025 | J99: 29825 | K99: -6.869633099 | L99: 3150 | M99: 112800 | N99: 27.92553191 | O99: East Midlands
A100: E07000041 | B100: Exeter | E100: 8.4 | F100: 23922 | G100: 94009 | H100: 25.4464998 | I100: 71754 | J100: 62665 | K100: -12.66688965 | L100: 3495 | M100: 119400 | N100: 29.27135678 | O100: South West
A101: E07000087 | B101: Fareham | E101: 5.2 | F101: 9312 | G101: 48947 | H101: 19.02465933 | I101: 40184 | J101: 39789 | K101: -0.9829782998 | L101: 3740 | M101: 112800 | N101: 33.15602837 | O101: South East
A102: E07000010 | B102: Fenland | E102: 11.5 | F102: 4008 | G102: 30395 | H102: 13.18637934 | I102: 28189 | J102: 27694 | K102: -1.756004115 | L102: 3090 | M102: 96000 | N102: 32.1875 | O102: East of England
A103: E07000201 | B103: Forest Heath | E103: 6.8 | F103: 3664 | G103: 24603 | H103: 14.89249279 | I103: 20887 | J103: 20434 | K103: -2.168813137 | L103: 2165 | M103: 60700 | N103: 35.66721582 | O103: East of England
A104: E07000080 | B104: Forest of Dean | E104: 8.8 | F104: 4575 | G104: 23759 | H104: 19.25586094 | I104: 22034 | J104: 20023 | K104: -9.12680403 | L104: 3475 | M104: 82700 | N104: 42.01934704 | O104: South West
A105: E07000119 | B105: Fylde | E105: 9 | F105: 6897 | G105: 43021 | H105: 16.03170545 | I105: 37388 | J105: 33582 | K105: -10.17973681 | L105: 2845 | M105: 76000 | N105: 37.43421053 | O105: North West
A106: E08000020 | B106: Gateshead | E106: 14.4 | F106: 23706 | G106: 90999 | H106: 26.05083572 | I106: 71665 | J106: 69445 | K106: -3.097746459 | L106: 4245 | M106: 200200 | N106: 21.2037962 | O106: North East
A107: E07000173 | B107: Gedling | E107: 9.7 | F107: 7680 | G107: 31380 | H107: 24.47418738 | I107: 26552 | J107: 23631 | K107: -11.00105453 | L107: 2915 | M107: 114100 | N107: 25.54776512 | O107: East Midlands
A108: E07000081 | B108: Gloucester | E108: 11.3 | F108: 22703 | G108: 64465 | H108: 35.21755992 | I108: 44644 | J108: 42691 | K108: -4.37460801 | L108: 3010 | M108: 123400 | N108: 24.39222042 | O108: South West
A109: E07000088 | B109: Gosport | E109: 9.4 | F109: 5677 | G109: 20779 | H109: 27.32085278 | I109: 15282 | J109: 15204 | K109: -0.5104043973 | L109: 1645 | M109: 83300 | N109: 19.74789916 | O109: South East
A110: E07000109 | B110: Gravesham | E110: 10.6 | F110: 6589 | G110: 27137 | H110: 24.28050263 | I110: 21902 | J110: 21550 | K110: -1.607159164 | L110: 2695 | M110: 102800 | N110: 26.21595331 | O110: South East
A111: E07000145 | B111: Great Yarmouth | E111: 15.4 | F111: 9509 | G111: 38229 | H111: 24.87378692 | I111: 29913 | J111: 30255 | K111: 1.143315615 | L111: 2610 | M111: 97600 | N111: 26.74180328 | O111: East of England
A112: E09000011 | B112: Greenwich | E112: 12.4 | F112: 21701 | G112: 69701 | H112: 31.13441701 | I112: 48461 | J112: 51689 | K112: 6.661026392 | L112: 6195 | M112: 260100 | N112: 23.8177624 | O112: London
A113: E07000209 | B113: Guildford | E113: 4.9 | F113: 15505 | G113: 74662 | H113: 20.76692293 | I113: 60859 | J113: 63439 | K113: 4.239307251 | L113: 6415 | M113: 139700 | N113: 45.9198282 | O113: South East
A114: E09000012 | B114: Hackney | E114: 14.4 | F114: 18954 | G114: 88486 | H114: 21.42033768 | I114: 70748 | J114: 77621 | K114: 9.714762255 | L114: 10685 | M114: 252100 | N114: 42.38397461 | O114: London
A115: E06000006 | B115: Halton | E115: 15.7 | F115: 9493 | G115: 53166 | H115: 17.85539631 | I115: 44255 | J115: 48057 | K115: 8.591119647 | L115: 2705 | M115: 125700 | N115: 21.51949085 | O115: North West
A116: E07000164 | B116: Hambleton | E116: 5.6 | F116: 11795 | G116: 39348 | H116: 29.9761106 | I116: 29081 | J116: 28389 | K116: -2.379560538 | L116: 4745 | M116: 89700 | N116: 52.89855072 | O116: Yorkshire and The Humber
A117: E09000013 | B117: Hammersmith and Fulham | E117: 11 | F117: 30433 | G117: 128039 | H117: 23.76853927 | I117: 92401 | J117: 103937 | K117: 12.48471337 | L117: 10230 | M117: 179900 | N117: 56.86492496 | O117: London
A118: E07000131 | B118: Harborough | E118: 4.8 | F118: 4020 | G118: 35775 | H118: 11.23689727 | I118: 32819 | J118: 31848 | K118: -2.958652 | L118: 4420 | M118: 86400 | N118: 51.15740741 | O118: East Midlands
A119: E09000014 | B119: Haringey | E119: 13.4 | F119: 16068 | G119: 61945 | H119: 25.93913956 | I119: 47135 | J119: 51201 | K119: 8.626286199 | L119: 8530 | M119: 258900 | N119: 32.94708382 | O119: London
A120: E07000073 | B120: Harlow | E120: 12.1 | F120: 9056 | G120: 39184 | H120: 23.11147407 | I120: 30588 | J120: 30762 | K120: 0.5688505296 | L120: 2155 | M120: 82700 | N120: 26.05804111 | O120: East of England
A121: E07000165 | B121: Harrogate | E121: 5.4 | F121: 14602 | G121: 77721 | H121: 18.78771503 | I121: 64762 | J121: 64611 | K121: -0.2331614218 | L121: 7915 | M121: 158600 | N121: 49.90542245 | O121: Yorkshire and The Humber
A122: E09000015 | B122: Harrow | E122: 7.5 | F122: 13104 | G122: 67737 | H122: 19.34540945 | I122: 55225 | J122: 56766 | K122: 2.790402897 | L122: 10015 | M122: 242400 | N122: 41.3160066 | O122: London
A123: E07000089 | B123: Hart | E123: 3.6 | F123: 3997 | G123: 36403 | H123: 10.9798643 | I123: 31097 | J123: 31311 | K123: 0.6881692768 | L123: 4355 | M123: 92200 | N123: 47.23427332 | O123: South East
A124: E06000001 | B124: Hartlepool | E124: 18.8 | F124: 8256 | G124: 30425 | H124: 27.13557929 | I124: 22844 | J124: 21683 | K124: -5.082297321 | L124: 1810 | M124: 92200 | N124: 19.63123644 | O124: North East
A125: E07000062 | B125: Hastings | E125: 16.8 | F125: 8708 | G125: 30558 | H125: 28.49662936 | I125: 21932 | J125: 23261 | K125: 6.059638884 | L125: 2340 | M125: 90300 | N125: 25.91362126 | O125: South East
A126: E07000090 | B126: Havant | E126: 10.3 | F126: 8032 | G126: 40694 | H126: 19.73755345 | I126: 34173 | J126: 35244 | K126: 3.1340532 | L126: 3415 | M126: 121300 | N126: 28.15333883 | O126: South East
A127: E09000016 | B127: Havering | E127: 9.4 | F127: 16929 | G127: 73173 | H127: 23.1355828 | I127: 57624 | J127: 59021 | K127: 2.424337082 | L127: 6920 | M127: 239700 | N127: 28.86942011 | O127: London
A128: E06000019 | B128: Herefordshire, County of | E128: 7.9 | F128: 11993 | G128: 72230 | H128: 16.60390419 | I128: 61496 | J128: 63192 | K128: 2.757902953 | L128: 9270 | M128: 184900 | N128: 50.13520822 | O128: West Midlands
A129: E07000098 | B129: Hertsmere | E129: 7.5 | F129: 5097 | G129: 43775 | H129: 11.64363221 | I129: 38654 | J129: 43125 | K129: 11.56672013 | L129: 5225 | M129: 100700 | N129: 51.88679245 | O129: East of England
A130: E07000037 | B130: High Peak | E130: 8.6 | F130: 7126 | G130: 31203 | H130: =F130*100/G130 -> 22.83754767 | I130: 24939 | J130: 23796 | K130: =((J130/I130)-1)*100 -> -4.583182966 | L130: 3440 | M130: 91100 | N130: =L130/(M130*0.001) -> 37.76070252 | O130: East Midlands
A131: E09000017 | B131: Hillingdon | E131: 8.8 | F131: 21404 | G131: 184779 | H131: 11.5835674 | I131: 165730 | J131: 173146 | K131: 4.474748084 | L131: 9165 | M131: 281800 | N131: 32.523066 | O131: London
A132: E07000132 | B132: Hinckley and Bosworth | E132: 7.2 | F132: 5018 | G132: 39113 | H132: 12.82949403 | I132: 34058 | J132: 35447 | K132: 4.078336955 | L132: 3875 | M132: 106000 | N132: 36.55660377 | O132: East Midlands
A133: E07000227 | B133: Horsham | E133: 5.2 | F133: 6390 | G133: 52403 | H133: 12.19395836 | I133: 45595 | J133: 46071 | K133: 1.04397412 | L133: 6325 | M133: 132200 | N133: 47.84417549 | O133: South East
A134: E09000018 | B134: Hounslow | E134: 9.2 | F134: 24842 | G134: 127601 | H134: 19.46849946 | I134: 107256 | J134: 122324 | K134: 14.04863131 | L134: 9625 | M134: 259100 | N134: 37.14781937 | O134: London
A135: E07000011 | B135: Huntingdonshire | E135: 6.4 | F135: 17149 | G135: 72281 | H135: 23.72546036 | I135: 55631 | J135: 54786 | K135: -1.518937283 | L135: 6715 | M135: 171000 | N135: 39.26900585 | O135: East of England
A136: E07000120 | B136: Hyndburn | E136: 14.9 | F136: 5085 | G136: 26518 | H136: 19.17565427 | I136: 22708 | J136: 22389 | K136: -1.404791263 | L136: 2055 | M136: 80200 | N136: 25.6234414 | O136: North West
A137: E07000202 | B137: Ipswich | E137: 11.7 | F137: 20625 | G137: 67375 | H137: 30.6122449 | I137: 48781 | J137: 48765 | K137: -0.0327996556 | L137: 3315 | M137: 134500 | N137: 24.64684015 | O137: East of England
A138: E06000046 | B138: Isle of Wight | E138: 11.5 | F138: 12636 | G138: 51529 | H138: 24.52211376 | I138: 38955 | J138: 40449 | K138: 3.835194455 | L138: 4200 | M138: 138700 | N138: 30.28118241 | O138: South East
A139: E06000053 | B139: Isles of Scilly | E139: 1.7 | F139: 281 | G139: 1241 | H139: 22.64302981 | I139: 906 | J139: 940 | K139: 3.752759382 | L139: 190 | M139: 2300 | N139: 82.60869565 | O139: South West
A140: E09000019 | B140: Islington | E140: 13.7 | F140: 34306 | G140: 189258 | H140: 18.12657853 | I140: 154366 | J140: 161799 | K140: 4.815179508 | L140: 12495 | M140: 211000 | N140: 59.21800948 | O140: London
A141: E09000020 | B141: Kensington and Chelsea | E141: 8.9 | F141: 22881 | G141: 116744 | H141: 19.59929418 | I141: 92133 | J141: 105333 | K141: 14.32711406 | L141: 10635 | M141: 155900 | N141: 68.21680564 | O141: London
A142: E07000153 | B142: Kettering | E142: 10 | F142: 8456 | G142: 37963 | H142: 22.27431973 | I142: 30732 | J142: 31523 | K142: 2.573864376 | L142: 2965 | M142: 94800 | N142: 31.27637131 | O142: East Midlands
A143: E07000146 | B143: King`s Lynn and West Norfolk | E143: 10.3 | F143: 12770 | G143: 51342 | H143: 24.87242414 | I143: 40336 | J143: 40287 | K143: -0.1214795716 | L143: 4830 | M143: 148600 | N143: 32.50336474 | O143: East of England
A144: E06000010 | B144: Kingston upon Hull, City of | E144: 18.5 | F144: 29029 | G144: 117340 | H144: 24.73921936 | I144: 91527 | J144: 91382 | K144: -0.1584231975 | L144: 5035 | M144: 257200 | N144: 19.57620529 | O144: Yorkshire and The Humber
A145: E09000021 | B145: Kingston upon Thames | E145: 5.9 | F145: 14640 | G145: 77350 | H145: 18.9269554 | I145: 62193 | J145: 59187 | K145: -4.833341373 | L145: 6640 | M145: 163900 | N145: 40.51250763 | O145: London
A146: E08000034 | B146: Kirklees | E146: 12.1 | F146: 33987 | G146: 150624 | H146: 22.56413321 | I146: 124406 | J146: 121170 | K146: -2.601160716 | L146: 11975 | M146: 425500 | N146: 28.14336075 | O146: Yorkshire and The Humber
A147: E08000011 | B147: Knowsley | E147: 20.6 | F147: 14617 | G147: 56525 | H147: 25.85935427 | I147: 42410 | J147: 44076 | K147: 3.928318793 | L147: 2245 | M147: 145900 | N147: 15.38725154 | O147: North West
A148: E09000022 | B148: Lambeth | E148: 12.2 | F148: 36462 | G148: 126333 | H148: 28.86181758 | I148: 95191 | J148: 101354 | K148: 6.474351567 | L148: 10015 | M148: 310200 | N148: 32.28562218 | O148: London
A149: E07000121 | B149: Lancaster | E149: 10.5 | F149: 12499 | G149: 53640 | H149: 23.30164057 | I149: 41656 | J149: 42303 | K149: 1.553197619 | L149: 3960 | M149: 139700 | N149: 28.34645669 | O149: North West
A150: E08000035 | B150: Leeds | E150: 12.1 | F150: 94910 | G150: 404814 | H150: 23.44533539 | I150: 319245 | J150: 319955 | K150: 0.2223997243 | L150: 21255 | M150: 757700 | N150: 28.05199947 | O150: Yorkshire and The Humber
A151: E06000016 | B151: Leicester | E151: 14.3 | F151: 42455 | G151: 162518 | H151: 26.12326019 | I151: 120928 | J151: 119429 | K151: -1.239580577 | L151: 8430 | M151: 331600 | N151: 25.42219542 | O151: East Midlands
A152: E07000063 | B152: Lewes | E152: 8.1 | F152: 8414 | G152: 33468 | H152: 25.14043265 | I152: 25181 | J152: 25125 | K152: -0.2223898971 | L152: 3690 | M152: 98700 | N152: 37.38601824 | O152: South East
A153: E09000023 | B153: Lewisham | E153: 13.4 | F153: 18984 | G153: 60761 | H153: 31.24372542 | I153: 42852 | J153: 47468 | K153: 10.7719593 | L153: 6720 | M153: 281600 | N153: 23.86363636 | O153: London
A154: E07000194 | B154: Lichfield | E154: 7.4 | F154: 6415 | G154: 40147 | H154: 15.97877799 | I154: 35503 | J154: 34654 | K154: -2.39134721 | L154: 4150 | M154: 101200 | N154: 41.00790514 | O154: West Midlands
A155: E07000138 | B155: Lincoln | E155: 12.8 | F155: 16224 | G155: 56072 | H155: 28.93422742 | I155: 40645 | J155: 38907 | K155: -4.276048714 | L155: 2090 | M155: 94600 | N155: 22.09302326 | O155: East Midlands
A156: E08000012 | B156: Liverpool | E156: 18.9 | F156: 66815 | G156: 228592 | H156: 29.2289319 | I156: 165955 | J156: 170793 | K156: 2.915248109 | L156: 9650 | M156: 469700 | N156: 20.54502874 | O156: North West
A157: E06000032 | B157: Luton | E157: 11.4 | F157: 18034 | G157: 83175 | H157: 21.68199579 | I157: 68258 | J157: 65798 | K157: -3.603973161 | L157: 4565 | M157: 205800 | N157: 22.18172983 | O157: East of England
A158: E07000110 | B158: Maidstone | E158: 7.8 | F158: 20485 | G158: 71751 | H158: 28.55012474 | I158: 52820 | J158: 52463 | K158: -0.6758803484 | L158: 6095 | M158: 157300 | N158: 38.74761602 | O158: South East
A159: E07000074 | B159: Maldon | E159: 7 | F159: 3302 | G159: 19618 | H159: 16.83148129 | I159: 17212 | J159: 18026 | K159: 4.729258657 | L159: 3050 | M159: 61900 | N159: 49.273021 | O159: East of England
A160: E07000235 | B160: Malvern Hills | E160: 7.8 | F160: 3200 | G160: 26348 | H160: 12.14513436 | I160: 23681 | J160: 22983 | K160: -2.947510663 | L160: 3915 | M160: 75000 | N160: 52.2 | O160: West Midlands
A161: E08000003 | B161: Manchester | E161: 16.1 | F161: 79130 | G161: 315060 | H161: 25.11585095 | I161: 240744 | J161: 249264 | K161: 3.53902901 | L161: 13350 | M161: 510800 | N161: 26.13547377 | O161: North West
A162: E07000174 | B162: Mansfield | E162: 14.7 | F162: 9709 | G162: 39296 | H162: 24.70734935 | I162: 31268 | J162: 27729 | K162: -11.31828067 | L162: 2250 | M162: 104700 | N162: 21.48997135 | O162: East Midlands
A163: E06000035 | B163: Medway | E163: 11 | F163: 22561 | G163: 85760 | H163: 26.30713619 | I163: 64707 | J163: 64623 | K163: -0.1298159395 | L163: 6405 | M163: 268200 | N163: 23.88143177 | O163: South East
A164: E07000133 | B164: Melton | E164: 5.9 | F164: 2810 | G164: 20745 | H164: 13.54543263 | I164: 17746 | J164: 17064 | K164: -3.843119576 | L164: 2175 | M164: 50800 | N164: 42.81496063 | O164: East Midlands
A165: E07000187 | B165: Mendip | E165: 8.1 | F165: 5929 | G165: 44119 | H165: 13.43865455 | I165: 38895 | J165: 37935 | K165: -2.468183571 | L165: 5060 | M165: 109900 | N165: 46.04185623 | O165: South West
A166: E09000024 | B166: Merton | E166: 7.4 | F166: 10257 | G166: 69021 | H166: 14.86069457 | I166: 56765 | J166: 65824 | K166: 15.95877742 | L166: 8005 | M166: 202200 | N166: 39.58951533 | O166: London
A167: E07000042 | B167: Mid Devon | E167: 7.2 | F167: 3843 | G167: 24815 | H167: 15.48660085 | I167: 21764 | J167: 19816 | K167: -8.950560559 | L167: 4145 | M167: 78300 | N167: 52.93742018 | O167: South West
A168: E07000203 | B168: Mid Suffolk | E168: 5.6 | F168: 4854 | G168: 33818 | H168: 14.35330297 | I168: 29206 | J168: 28707 | K168: -1.708553037 | L168: 4485 | M168: 97600 | N168: 45.95286885 | O168: East of England
A169: E07000228 | B169: Mid Sussex | E169: 4.7 | F169: 9454 | G169: 55426 | H169: 17.05697687 | I169: 46804 | J169: 50268 | K169: 7.401076831 | L169: 6235 | M169: 141200 | N169: 44.1572238 | O169: South East
A170: E06000002 | B170: Middlesbrough | E170: 19.6 | F170: 22644 | G170: 63310 | H170: 35.76686148 | I170: 42783 | J170: 41124 | K170: -3.877708436 | L170: 2370 | M170: 138700 | N170: 17.08723864 | O170: North East
A171: E06000042 | B171: Milton Keynes | E171: 9.4 | F171: 21623 | G171: 145883 | H171: 14.822152 | I171: 123235 | J171: 128062 | K171: 3.916906723 | L171: 9080 | M171: 252400 | N171: 35.97464342 | O171: South East
A172: E07000210 | B172: Mole Valley | E172: 4.9 | F172: 4255 | G172: 45688 | H172: 9.313167571 | I172: 39481 | J172: 42382 | K172: 7.347838201 | L172: 4880 | M172: 85800 | N172: 56.87645688 | O172: South East
A173: E07000091 | B173: New Forest | E173: 6.5 | F173: 13801 | G173: 71903 | H173: 19.19391402 | I173: 59768 | J173: 57733 | K173: -3.404832017 | L173: 7110 | M173: 177400 | N173: 40.0789177 | O173: South East
A174: E07000175 | B174: Newark and Sherwood | E174: 9.7 | F174: 7255 | G174: 45393 | H174: 15.9826405 | I174: 38721 | J174: 38085 | K174: -1.642519563 | L174: 4110 | M174: 115800 | N174: 35.49222798 | O174: East Midlands
A175: E08000021 | B175: Newcastle upon Tyne | E175: 13.7 | F175: 54466 | G175: 172090 | H175: 31.64971817 | I175: 122685 | J175: 126423 | K175: 3.04682724 | L175: 6345 | M175: 282400 | N175: 22.46813031 | O175: North East
A176: E07000195 | B176: Newcastle-under-Lyme | E176: 10.4 | F176: 6936 | G176: 44603 | H176: 15.55052351 | I176: 40568 | J176: 39749 | K176: -2.018832577 | L176: 3020 | M176: 124200 | N176: 24.31561997 | O176: West Midlands
A177: E09000025 | B177: Newham | E177: 12 | F177: 24690 | G177: 75061 | H177: 32.89324683 | I177: 50592 | J177: 66060 | K177: 30.5740038 | L177: 6035 | M177: 314100 | N177: 19.21362623 | O177: London
A178: E07000043 | B178: North Devon | E178: 8.5 | F178: 8615 | G178: 42158 | H178: 20.43503012 | I178: 35266 | J178: 34467 | K178: -2.265638292 | L178: 4490 | M178: 93800 | N178: 47.86780384 | O178: South West
A179: E07000050 | B179: North Dorset | E179: 6.1 | F179: 5004 | G179: 24154 | H179: 20.7170655 | I179: 20422 | J179: 19566 | K179: -4.191558124 | L179: 3155 | M179: 69300 | N179: 45.52669553 | O179: South West
A180: E07000038 | B180: North East Derbyshire | E180: 9.9 | F180: 5700 | G180: 29169 | H180: 19.54129384 | I180: 23523 | J180: 21708 | K180: -7.71585257 | L180: 2970 | M180: 99300 | N180: 29.90936556 | O180: East Midlands
A181: E06000012 | B181: North East Lincolnshire | E181: 15.2 | F181: 16626 | G181: 69269 | H181: 24.00207885 | I181: 55518 | J181: 53221 | K181: -4.13739688 | L181: 3905 | M181: 159700 | N181: 24.45209768 | O181: Yorkshire and The Humber
A182: E07000099 | B182: North Hertfordshire | E182: 6.9 | F182: 5125 | G182: 47680 | H182: 10.74874161 | I182: 42763 | J182: 42625 | K182: -0.3227088838 | L182: 5620 | M182: 128400 | N182: 43.7694704 | O182: East of England
A183: E07000139 | B183: North Kesteven | E183: 6.8 | F183: 7438 | G183: 34660 | H183: 21.45989613 | I183: 28623 | J183: 29182 | K183: 1.95297488 | L183: 3880 | M183: 109300 | N183: 35.49862763 | O183: East Midlands
A184: E06000013 | B184: North Lincolnshire | E184: 10.9 | F184: 14304 | G184: 70595 | H184: 20.26205822 | I184: 56851 | J184: 55211 | K184: -2.884733778 | L184: 4650 | M184: 168400 | N184: 27.6128266 | O184: Yorkshire and The Humber
A185: E07000147 | B185: North Norfolk | E185: 9.1 | F185: 4581 | G185: 31167 | H185: 14.69823852 | I185: 27391 | J185: 26855 | K185: -1.95684714 | L185: 3965 | M185: 101800 | N185: 38.94891945 | O185: East of England
A186: E06000024 | B186: North Somerset | E186: 9.4 | F186: 14327 | G186: 77175 | H186: 18.56430191 | I186: 66182 | J186: 65016 | K186: -1.761808347 | L186: 7220 | M186: 204400 | N186: 35.32289628 | O186: South West
A187: E08000022 | B187: North Tyneside | E187: 12.6 | F187: 18684 | G187: 74057 | H187: 25.22921533 | I187: 52556 | J187: 55559 | K187: 5.713905168 | L187: 3885 | M187: 201400 | N187: 19.28997021 | O187: North East
A188: E07000218 | B188: North Warwickshire | E188: 8 | F188: 3689 | G188: 38641 | H188: 9.546854377 | I188: 35449 | J188: 34795 | K188: -1.844903947 | L188: 2515 | M188: 62200 | N188: 40.4340836 | O188: West Midlands
A189: E07000134 | B189: North West Leicestershire | E189: 8.1 | F189: 6240 | G189: 50467 | H189: 12.36451543 | I189: 45468 | J189: 46898 | K189: 3.14506906 | L189: 3585 | M189: 94000 | N189: 38.13829787 | O189: East Midlands
A190: E07000154 | B190: Northampton | E190: 10.7 | F190: 23796 | G190: 131131 | H190: 18.14673876 | I190: 106355 | J190: 102024 | K190: -4.072210991 | L190: 6220 | M190: 214600 | N190: 28.98415657 | O190: East Midlands
A191: E06000048 | B191: Northumberland | E191: 11.1 | F191: 28708 | G191: 106815 | H191: 26.87637504 | I191: 76629 | J191: 75536 | K191: -1.426352947 | L191: 9850 | M191: 316100 | N191: 31.16102499 | O191: North East
A192: E07000148 | B192: Norwich | E192: 13.4 | F192: 16713 | G192: 83959 | H192: 19.90614467 | I192: 71396 | J192: 71982 | K192: 0.8207742731 | L192: 3785 | M192: 134300 | N192: 28.183172 | O192: East of England
A193: E06000018 | B193: Nottingham | E193: 15.7 | F193: 53939 | G193: 197427 | H193: 27.32098447 | I193: 144757 | J193: 157755 | K193: 8.979185808 | L193: 6795 | M193: 308700 | N193: 22.01166181 | O193: East Midlands
A194: E07000219 | B194: Nuneaton and Bedworth | E194: 11.6 | F194: 9031 | G194: 39916 | H194: =F194*100/G194 -> 22.62501253 | I194: 31942 | J194: 33059 | K194: =((J194/I194)-1)*100 -> 3.496963246 | L194: 2905 | M194: 125800 | N194: =L194/(M194*0.001) -> 23.09220986 | O194: West Midlands
A195: E07000135 | B195: Oadby and Wigston | E195: 7.4 | F195: 3442 | G195: 19161 | H195: 17.96357184 | I195: 15896 | J195: 15352 | K195: -3.42224459 | L195: 1550 | M195: 56100 | N195: 27.62923351 | O195: East Midlands
A196: E08000004 | B196: Oldham | E196: 14.9 | F196: 17956 | G196: 74583 | H196: 24.0751914 | I196: 60275 | J196: 60405 | K196: 0.2156781418 | L196: 5340 | M196: 225900 | N196: 23.63877822 | O196: North West
A197: E07000178 | B197: Oxford | E197: 7.2 | F197: 26079 | G197: 106748 | H197: 24.43043429 | I197: 82062 | J197: 83015 | K197: 1.161317053 | L197: 4055 | M197: 152500 | N197: 26.59016393 | O197: South East
A198: E07000122 | B198: Pendle | E198: 13.1 | F198: 5008 | G198: 29739 | H198: 16.83983994 | I198: 25900 | J198: 27089 | K198: 4.590733591 | L198: 2455 | M198: 89600 | N198: 27.39955357 | O198: North West
A199: E06000031 | B199: Peterborough | E199: 12.9 | F199: 20305 | G199: 99009 | H199: 20.50823662 | I199: 79470 | J199: 82614 | K199: 3.956209891 | L199: 4925 | M199: 186400 | N199: 26.42167382 | O199: East of England
A200: E06000026 | B200: Plymouth | E200: 12.5 | F200: 26945 | G200: 105519 | H200: 25.53568552 | I200: 83027 | J200: 83817 | K200: 0.9514977056 | L200: 4950 | M200: 258000 | N200: 19.18604651 | O200: South West
... 139 more rows

Sheet Sheet1 (hidden)
